Workbook

Sheet INTRO
B1: The current version should be used in countries non-endemic for onchocerciasis
B2: PC Joint Reporting Form v.2
B4: The purpose of this template Joint Reporting Form (JRF) - available as an Excel file - is to provide national health authorities and data managers with a standardized tool to address these reporting challenges, facilitate integration and thereby further contribute to improving overall programme management. This template aims to standardize national reporting of programme implementation outcomes, improve availability and coordination of preventive chemotherapy data across the World Health Organization regions. National authorities are requested to complete this form for submission to the World Health Organization any time before 15 August of the current year for reporting data on PC interventions implemented during the previous year.
B6: Structure of the application (worksheets):
B8: INTRO | C8: This worksheet includes guides on how to complete the joint reporting form and information about status of PC for endemic diseases in the country
B9: COUNTRY_INFO | C9: This worksheet includes information about administrative structure of the country, population by age group, status of endemicity for each disease, population requiring PC, planned interventions and interventions implemented
B10: MDA2, T1, T2 and T3 | C10: These worksheets include information about endemic districts targeted for treatment with specified PC medicines, treatment plan, and number of people who received treatment by age group
B11: DISTRICT | C11: This worksheet includes summary of people treated by disease at the level of implementation. If data by gender is available, it requires to enter.
B12: SUMMARY | C12: This worksheet includes summary of people treated by disease and by PC intervention. Before generating the report (run macros) please select the disease for which you need the report. Follow the same rule to generate various reports. This worksheet should be printed and submitted as a Joint Report (see the instruction for submission in the SUMMARY worksheet).
B14: Instruction for data entry
B16: Most of the cells in the above-mentioned worksheets include formula that are calculated automatically according to the treatment policy recommended by WHO for each disease. See the link http://www.who.int/neglected_diseases/preventive_chemotherapy/pct_manual/en/index.html
B18: Please enter your data into the cells according to their colour code:
C20: White - cell is not protected. Please enter the value of the requested indicator.
C22: Yellow - cell is protected and includes name of indicator. No data entry required.
C24: Orange - cell is not protected and includes a drop-down menu. Please select the value from the drop-down list.
C27: Green - cell is not protected and includes formula. Please change the value only if your data are different from those that are calculated automatically.
C30: Blue - cell is protected and includes formula. No data entry required.
B32: Country data
B34: COUNTRY | E34: Rwanda
B36: Year of reporting data | E36: 2016
B38: Is country endemic for lymphatic filariasis (LF)? | E38: Non-endemic
B40: Is country endemic for onchocerciasis (ONCHO)? | E40: Non-endemic
B42: Is country endemic for soil-transmitted helminthiases (STH)? | E42: Endemic
B44: Is country endemic for schistosomiasis (SCH)? | E44: Endemic
B46: How many administrative units in the country? | E46: 30
B47: If demographical data at the second administrative level are not available by age group, please enter the proportion (%) of population by age group in the country. If data are available, please leave these cells blank.
B48: Preschool-age children (PreSAC) - aged 1-4 years | E48: 0.117
B49: School-age children (SAC) - aged 5-14 years | E49: 0.288
B50: Adults - aged 15 years and older | E50: 0.566

Sheet COUNTRY_INFO
A1: COUNTRY INFORMATION
A2: Administrative structure, population by age group, endemicity status, planned interventions and interventions implemented
A4: TOTAL | D4: =SUM(D$9:D$1000) -> 11653034 | E4: =SUM(E$9:E$1000) -> 1363403 | F4: =SUM(F$9:F$1000) -> 3356074 | G4: =SUM(G$9:G$1000) -> 6595616 | K4: =SUM(K$9:K$1000) -> 0 | L4: =SUM(L$9:L$1000) -> 4338846 | M4: =SUM(M$9:M$1000) -> 1788628.04
A6: Country administrative structure | D6: Population | H6: Endemicity | K6: Population requiring PC | N6: Number of treatment rounds planned | Q6: PC implemented | S6: Click to see the recommended strategy
A7: Country | B7: Province/State | C7: District | D7: Total | E7: PreSAC | F7: SAC | G7: Adults | H7: LF | I7: STH | J7: SCH | K7: LF | L7: STH | M7: SCH | N7: LF | O7: STH | P7: SCH | Q7: ROUND 1 | R7: ROUND2 | U7: IU_ID | V7: IU_Name
A9: =IF(INTRO!$E$34<>0,INTRO!$E$34,"") -> Rwanda | B9: East | C9: Bugesera | D9: 401047 | E9: =IF(INTRO!$E$48="","",ROUND($D9*INTRO!$E$48,0)) -> 46922 | F9: =IF(INTRO!$E$49="","",ROUND($D9*INTRO!$E$49,0)) -> 115502 | G9: =IF(INTRO!$E$50="","",ROUND($D9*INTRO!$E$50,0)) -> 226993 | H9: 0 | I9: 2 | J9: 2 | K9: =IF(INTRO!$E$38="Endemic", IF($H9>0, IF($H9=4,"Unknown", IF($H9=99,"Stopped", $D9)), 0),"Not required") -> Not required | L9: =IF(INTRO!$E$42="Endemic", IF(AND($I9>1,$I9<5), IF($I9=4, "Unknown", E9+F9), 0),"Not required") -> 162424 | M9: =IF(INTRO!$E$44="Endemic", IF(AND($J9>0,$J9<5), IF($J9=4,"Unknown", IF($J9=1, $F9*0.33, IF($J9=2, $F9*0.5+$G9*0.2, SUM(F9:G9)))), 0),"Not required") -> 103149.6 | N9: 0 | O9: 2 | P9: 1 | Q9: T3 (ALB/MBD) | U9: 38111 | V9: Bugesera | X9: =V9=C9 -> TRUE
A10: =IF(INTRO!$E$34<>0,INTRO!$E$34,"") -> Rwanda | B10: North | C10: Burera | D10: 372976 | E10: =IF(INTRO!$E$48="","",ROUND($D10*INTRO!$E$48,0)) -> 43638 | F10: =IF(INTRO!$E$49="","",ROUND($D10*INTRO!$E$49,0)) -> 107417 | G10: =IF(INTRO!$E$50="","",ROUND($D10*INTRO!$E$50,0)) -> 211104 | H10: 0 | I10: 3 | J10: 2 | K10: =IF(INTRO!$E$38="Endemic", IF($H10>0, IF($H10=4,"Unknown", IF($H10=99,"Stopped", $D10)), 0),"Not required") -> Not required | L10: =IF(INTRO!$E$42="Endemic", IF(AND($I10>1,$I10<5), IF($I10=4, "Unknown", E10+F10), 0),"Not required") -> 151055 | M10: =IF(INTRO!$E$44="Endemic", IF(AND($J10>0,$J10<5), IF($J10=4,"Unknown", IF($J10=1, $F10*0.33, IF($J10=2, $F10*0.5+$G10*0.2, SUM(F10:G10)))), 0),"Not required") -> 95929.3 | N10: 0 | O10: 2 | P10: 1 | Q10: T3 (ALB/MBD) | U10: 38121 | V10: Burera | X10: =V10=C10 -> TRUE
A11: =IF(INTRO!$E$34<>0,INTRO!$E$34,"") -> Rwanda | B11: North | C11: Gakenke | D11: 374806 | E11: =IF(INTRO!$E$48="","",ROUND($D11*INTRO!$E$48,0)) -> 43852 | F11: =IF(INTRO!$E$49="","",ROUND($D11*INTRO!$E$49,0)) -> 107944 | G11: =IF(INTRO!$E$50="","",ROUND($D11*INTRO!$E$50,0)) -> 212140 | H11: 0 | I11: 3 | J11: 2 | K11: =IF(INTRO!$E$38="Endemic", IF($H11>0, IF($H11=4,"Unknown", IF($H11=99,"Stopped", $D11)), 0),"Not required") -> Not required | L11: =IF(INTRO!$E$42="Endemic", IF(AND($I11>1,$I11<5), IF($I11=4, "Unknown", E11+F11), 0),"Not required") -> 151796 | M11: =IF(INTRO!$E$44="Endemic", IF(AND($J11>0,$J11<5), IF($J11=4,"Unknown", IF($J11=1, $F11*0.33, IF($J11=2, $F11*0.5+$G11*0.2, SUM(F11:G11)))), 0),"Not required") -> 96400 | N11: 0 | O11: 2 | P11: 1 | Q11: T3 (ALB/MBD) | U11: 38122 | V11: Gakenke | X11: TRUE
A12: =IF(INTRO!$E$34<>0,INTRO!$E$34,"") -> Rwanda | B12: Kigali | C12: Gasabo | D12: 586821 | E12: =IF(INTRO!$E$48="","",ROUND($D12*INTRO!$E$48,0)) -> 68658 | F12: =IF(INTRO!$E$49="","",ROUND($D12*INTRO!$E$49,0)) -> 169004 | G12: =IF(INTRO!$E$50="","",ROUND($D12*INTRO!$E$50,0)) -> 332141 | H12: 0 | I12: 1 | J12: 1 | K12: =IF(INTRO!$E$38="Endemic", IF($H12>0, IF($H12=4,"Unknown", IF($H12=99,"Stopped", $D12)), 0),"Not required") -> Not required | L12: =IF(INTRO!$E$42="Endemic", IF(AND($I12>1,$I12<5), IF($I12=4, "Unknown", E12+F12), 0),"Not required") -> 0 | M12: =IF(INTRO!$E$44="Endemic", IF(AND($J12>0,$J12<5), IF($J12=4,"Unknown", IF($J12=1, $F12*0.33, IF($J12=2, $F12*0.5+$G12*0.2, SUM(F12:G12)))), 0),"Not required") -> 55771.32 | N12: 0 | O12: 2 | P12: 0 | Q12: T3 (ALB/MBD) | U12: 38118 | V12: Gasabo | X12: TRUE
A13: =IF(INTRO!$E$34<>0,INTRO!$E$34,"") -> Rwanda | B13: East | C13: Gatsibo | D13: 479841 | E13: =IF(INTRO!$E$48="","",ROUND($D13*INTRO!$E$48,0)) -> 56141 | F13: =IF(INTRO!$E$49="","",ROUND($D13*INTRO!$E$49,0)) -> 138194 | G13: =IF(INTRO!$E$50="","",ROUND($D13*INTRO!$E$50,0)) -> 271590 | H13: 0 | I13: 3 | J13: 0 | K13: =IF(INTRO!$E$38="Endemic", IF($H13>0, IF($H13=4,"Unknown", IF($H13=99,"Stopped", $D13)), 0),"Not required") -> Not required | L13: =IF(INTRO!$E$42="Endemic", IF(AND($I13>1,$I13<5), IF($I13=4, "Unknown", E13+F13), 0),"Not required") -> 194335 | M13: =IF(INTRO!$E$44="Endemic", IF(AND($J13>0,$J13<5), IF($J13=4,"Unknown", IF($J13=1, $F13*0.33, IF($J13=2, $F13*0.5+$G13*0.2, SUM(F13:G13)))), 0),"Not required") -> 0 | N13: 0 | O13: 2 | P13: 0 | Q13: T3 (ALB/MBD) | U13: 38112 | V13: Gatsibo | X13: TRUE
A14: =IF(INTRO!$E$34<>0,INTRO!$E$34,"") -> Rwanda | B14: North | C14: Gicumbi | D14: 438382 | E14: =IF(INTRO!$E$48="","",ROUND($D14*INTRO!$E$48,0)) -> 51291 | F14: =IF(INTRO!$E$49="","",ROUND($D14*INTRO!$E$49,0)) -> 126254 | G14: =IF(INTRO!$E$50="","",ROUND($D14*INTRO!$E$50,0)) -> 248124 | H14: 0 | I14: 3 | J14: 3 | K14: =IF(INTRO!$E$38="Endemic", IF($H14>0, IF($H14=4,"Unknown", IF($H14=99,"Stopped", $D14)), 0),"Not required") -> Not required | L14: =IF(INTRO!$E$42="Endemic", IF(AND($I14>1,$I14<5), IF($I14=4, "Unknown", E14+F14), 0),"Not required") -> 177545 | M14: =IF(INTRO!$E$44="Endemic", IF(AND($J14>0,$J14<5), IF($J14=4,"Unknown", IF($J14=1, $F14*0.33, IF($J14=2, $F14*0.5+$G14*0.2, SUM(F14:G14)))), 0),"Not required") -> 374378 | N14: 0 | O14: 2 | P14: 1 | Q14: T3 (ALB/MBD) | U14: 38123 | V14: Gicumbi | X14: TRUE
A15: =IF(INTRO!$E$34<>0,INTRO!$E$34,"") -> Rwanda | B15: South | C15: Gisagara | D15: 357377 | E15: =IF(INTRO!$E$48="","",ROUND($D15*INTRO!$E$48,0)) -> 41813 | F15: =IF(INTRO!$E$49="","",ROUND($D15*INTRO!$E$49,0)) -> 102925 | G15: =IF(INTRO!$E$50="","",ROUND($D15*INTRO!$E$50,0)) -> 202275 | H15: 0 | I15: 3 | J15: 1 | K15: =IF(INTRO!$E$38="Endemic", IF($H15>0, IF($H15=4,"Unknown", IF($H15=99,"Stopped", $D15)), 0),"Not required") -> Not required | L15: =IF(INTRO!$E$42="Endemic", IF(AND($I15>1,$I15<5), IF($I15=4, "Unknown", E15+F15), 0),"Not required") -> 144738 | M15: =IF(INTRO!$E$44="Endemic", IF(AND($J15>0,$J15<5), IF($J15=4,"Unknown", IF($J15=1, $F15*0.33, IF($J15=2, $F15*0.5+$G15*0.2, SUM(F15:G15)))), 0),"Not required") -> 33965.25 | N15: 0 | O15: 2 | P15: 0 | Q15: T3 (ALB/MBD) | U15: 38126 | V15: Gisagara | X15: TRUE
A16: =IF(INTRO!$E$34<>0,INTRO!$E$34,"") -> Rwanda | B16: South | C16: Huye | D16: 363907 | E16: =IF(INTRO!$E$48="","",ROUND($D16*INTRO!$E$48,0)) -> 42577 | F16: =IF(INTRO!$E$49="","",ROUND($D16*INTRO!$E$49,0)) -> 104805 | G16: =IF(INTRO!$E$50="","",ROUND($D16*INTRO!$E$50,0)) -> 205971 | H16: 0 | I16: 3 | J16: 0 | K16: =IF(INTRO!$E$38="Endemic", IF($H16>0, IF($H16=4,"Unknown", IF($H16=99,"Stopped", $D16)), 0),"Not required") -> Not required | L16: =IF(INTRO!$E$42="Endemic", IF(AND($I16>1,$I16<5), IF($I16=4, "Unknown", E16+F16), 0),"Not required") -> 147382 | M16: =IF(INTRO!$E$44="Endemic", IF(AND($J16>0,$J16<5), IF($J16=4,"Unknown", IF($J16=1, $F16*0.33, IF($J16=2, $F16*0.5+$G16*0.2, SUM(F16:G16)))), 0),"Not required") -> 0 | N16: 0 | O16: 2 | P16: 0 | Q16: T3 (ALB/MBD) | U16: 38127 | V16: Huye | X16: TRUE
A17: =IF(INTRO!$E$34<>0,INTRO!$E$34,"") -> Rwanda | B17: South | C17: Kamonyi | D17: 377319 | E17: =IF(INTRO!$E$48="","",ROUND($D17*INTRO!$E$48,0)) -> 44146 | F17: =IF(INTRO!$E$49="","",ROUND($D17*INTRO!$E$49,0)) -> 108668 | G17: =IF(INTRO!$E$50="","",ROUND($D17*INTRO!$E$50,0)) -> 213563 | H17: 0 | I17: 2 | J17: 0 | K17: =IF(INTRO!$E$38="Endemic", IF($H17>0, IF($H17=4,"Unknown", IF($H17=99,"Stopped", $D17)), 0),"Not required") -> Not required | L17: =IF(INTRO!$E$42="Endemic", IF(AND($I17>1,$I17<5), IF($I17=4, "Unknown", E17+F17), 0),"Not required") -> 152814 | M17: =IF(INTRO!$E$44="Endemic", IF(AND($J17>0,$J17<5), IF($J17=4,"Unknown", IF($J17=1, $F17*0.33, IF($J17=2, $F17*0.5+$G17*0.2, SUM(F17:G17)))), 0),"Not required") -> 0 | N17: 0 | O17: 2 | P17: 0 | Q17: T3 (ALB/MBD) | U17: 38128 | V17: Kamonyi | X17: TRUE
A18: =IF(INTRO!$E$34<>0,INTRO!$E$34,"") -> Rwanda | B18: West | C18: Karongi | D18: 367686 | E18: =IF(INTRO!$E$48="","",ROUND($D18*INTRO!$E$48,0)) -> 43019 | F18: =IF(INTRO!$E$49="","",ROUND($D18*INTRO!$E$49,0)) -> 105894 | G18: =IF(INTRO!$E$50="","",ROUND($D18*INTRO!$E$50,0)) -> 208110 | H18: 0 | I18: 3 | J18: 1 | K18: =IF(INTRO!$E$38="Endemic", IF($H18>0, IF($H18=4,"Unknown", IF($H18=99,"Stopped", $D18)), 0),"Not required") -> Not required | L18: =IF(INTRO!$E$42="Endemic", IF(AND($I18>1,$I18<5), IF($I18=4, "Unknown", E18+F18), 0),"Not required") -> 148913 | M18: =IF(INTRO!$E$44="Endemic", IF(AND($J18>0,$J18<5), IF($J18=4,"Unknown", IF($J18=1, $F18*0.33, IF($J18=2, $F18*0.5+$G18*0.2, SUM(F18:G18)))), 0),"Not required") -> 34945.02 | N18: 0 | O18: 2 | P18: 0 | Q18: T3 (ALB/MBD) | U18: 38134 | V18: Karongi | X18: TRUE
A19: =IF(INTRO!$E$34<>0,INTRO!$E$34,"") -> Rwanda | B19: East | C19: Kayonza | D19: 381369 | E19: =IF(INTRO!$E$48="","",ROUND($D19*INTRO!$E$48,0)) -> 44620 | F19: =IF(INTRO!$E$49="","",ROUND($D19*INTRO!$E$49,0)) -> 109834 | G19: =IF(INTRO!$E$50="","",ROUND($D19*INTRO!$E$50,0)) -> 215855 | H19: 0 | I19: 2 | J19: 0 | K19: =IF(INTRO!$E$38="Endemic", IF($H19>0, IF($H19=4,"Unknown", IF($H19=99,"Stopped", $D19)), 0),"Not required") -> Not required | L19: =IF(INTRO!$E$42="Endemic", IF(AND($I19>1,$I19<5), IF($I19=4, "Unknown", E19+F19), 0),"Not required") -> 154454 | M19: =IF(INTRO!$E$44="Endemic", IF(AND($J19>0,$J19<5), IF($J19=4,"Unknown", IF($J19=1, $F19*0.33, IF($J19=2, $F19*0.5+$G19*0.2, SUM(F19:G19)))), 0),"Not required") -> 0 | N19: 0 | O19: 2 | P19: 0 | Q19: T3 (ALB/MBD) | U19: 38113 | V19: Kayonza | X19: TRUE
A20: =IF(INTRO!$E$34<>0,INTRO!$E$34,"") -> Rwanda | B20: Kigali | C20: Kicukiro | D20: 353010 | E20: =IF(INTRO!$E$48="","",ROUND($D20*INTRO!$E$48,0)) -> 41302 | F20: =IF(INTRO!$E$49="","",ROUND($D20*INTRO!$E$49,0)) -> 101667 | G20: =IF(INTRO!$E$50="","",ROUND($D20*INTRO!$E$50,0)) -> 199804 | H20: 0 | I20: 1 | J20: 0 | K20: =IF(INTRO!$E$38="Endemic", IF($H20>0, IF($H20=4,"Unknown", IF($H20=99,"Stopped", $D20)), 0),"Not required") -> Not required | L20: =IF(INTRO!$E$42="Endemic", IF(AND($I20>1,$I20<5), IF($I20=4, "Unknown", E20+F20), 0),"Not required") -> 0 | M20: =IF(INTRO!$E$44="Endemic", IF(AND($J20>0,$J20<5), IF($J20=4,"Unknown", IF($J20=1, $F20*0.33, IF($J20=2, $F20*0.5+$G20*0.2, SUM(F20:G20)))), 0),"Not required") -> 0 | N20: 0 | O20: 2 | P20: 0 | Q20: T3 (ALB/MBD) | U20: 38119 | V20: Kicukiro | X20: TRUE
A21: =IF(INTRO!$E$34<>0,INTRO!$E$34,"") -> Rwanda | B21: East | C21: Kirehe | D21: 377171 | E21: =IF(INTRO!$E$48="","",ROUND($D21*INTRO!$E$48,0)) -> 44129 | F21: =IF(INTRO!$E$49="","",ROUND($D21*INTRO!$E$49,0)) -> 108625 | G21: =IF(INTRO!$E$50="","",ROUND($D21*INTRO!$E$50,0)) -> 213479 | H21: 0 | I21: 3 | J21: 0 | K21: =IF(INTRO!$E$38="Endemic", IF($H21>0, IF($H21=4,"Unknown", IF($H21=99,"Stopped", $D21)), 0),"Not required") -> Not required | L21: =IF(INTRO!$E$42="Endemic", IF(AND($I21>1,$I21<5), IF($I21=4, "Unknown", E21+F21), 0),"Not required") -> 152754 | M21: =IF(INTRO!$E$44="Endemic", IF(AND($J21>0,$J21<5), IF($J21=4,"Unknown", IF($J21=1, $F21*0.33, IF($J21=2, $F21*0.5+$G21*0.2, SUM(F21:G21)))), 0),"Not required") -> 0 | N21: 0 | O21: 2 | P21: 0 | Q21: T3 (ALB/MBD) | U21: 38114 | V21: Kirehe | X21: TRUE
A22: =IF(INTRO!$E$34<>0,INTRO!$E$34,"") -> Rwanda | B22: South | C22: Muhanga | D22: 353649 | E22: =IF(INTRO!$E$48="","",ROUND($D22*INTRO!$E$48,0)) -> 41377 | F22: =IF(INTRO!$E$49="","",ROUND($D22*INTRO!$E$49,0)) -> 101851 | G22: =IF(INTRO!$E$50="","",ROUND($D22*INTRO!$E$50,0)) -> 200165 | H22: 0 | I22: 3 | J22: 1 | K22: =IF(INTRO!$E$38="Endemic", IF($H22>0, IF($H22=4,"Unknown", IF($H22=99,"Stopped", $D22)), 0),"Not required") -> Not required | L22: =IF(INTRO!$E$42="Endemic", IF(AND($I22>1,$I22<5), IF($I22=4, "Unknown", E22+F22), 0),"Not required") -> 143228 | M22: =IF(INTRO!$E$44="Endemic", IF(AND($J22>0,$J22<5), IF($J22=4,"Unknown", IF($J22=1, $F22*0.33, IF($J22=2, $F22*0.5+$G22*0.2, SUM(F22:G22)))), 0),"Not required") -> 33610.83 | N22: 0 | O22: 2 | P22: 0 | Q22: T3 (ALB/MBD) | U22: 38129 | V22: Muhanga | X22: TRUE
A23: =IF(INTRO!$E$34<>0,INTRO!$E$34,"") -> Rwanda | B23: North | C23: Musanze | D23: 408086 | E23: =IF(INTRO!$E$48="","",ROUND($D23*INTRO!$E$48,0)) -> 47746 | F23: =IF(INTRO!$E$49="","",ROUND($D23*INTRO!$E$49,0)) -> 117529 | G23: =IF(INTRO!$E$50="","",ROUND($D23*INTRO!$E$50,0)) -> 230977 | H23: 0 | I23: 3 | J23: 2 | K23: =IF(INTRO!$E$38="Endemic", IF($H23>0, IF($H23=4,"Unknown", IF($H23=99,"Stopped", $D23)), 0),"Not required") -> Not required | L23: =IF(INTRO!$E$42="Endemic", IF(AND($I23>1,$I23<5), IF($I23=4, "Unknown", E23+F23), 0),"Not required") -> 165275 | M23: =IF(INTRO!$E$44="Endemic", IF(AND($J23>0,$J23<5), IF($J23=4,"Unknown", IF($J23=1, $F23*0.33, IF($J23=2, $F23*0.5+$G23*0.2, SUM(F23:G23)))), 0),"Not required") -> 104959.9 | N23: 0 | O23: 2 | P23: 1 | Q23: T3 (ALB/MBD) | U23: 38124 | V23: Musanze | X23: TRUE
A24: =IF(INTRO!$E$34<>0,INTRO!$E$34,"") -> Rwanda | B24: East | C24: Ngoma | D24: 373359 | E24: =IF(INTRO!$E$48="","",ROUND($D24*INTRO!$E$48,0)) -> 43683 | F24: =IF(INTRO!$E$49="","",ROUND($D24*INTRO!$E$49,0)) -> 107527 | G24: =IF(INTRO!$E$50="","",ROUND($D24*INTRO!$E$50,0)) -> 211321 | H24: 0 | I24: 3 | J24: 1 | K24: =IF(INTRO!$E$38="Endemic", IF($H24>0, IF($H24=4,"Unknown", IF($H24=99,"Stopped", $D24)), 0),"Not required") -> Not required | L24: =IF(INTRO!$E$42="Endemic", IF(AND($I24>1,$I24<5), IF($I24=4, "Unknown", E24+F24), 0),"Not required") -> 151210 | M24: =IF(INTRO!$E$44="Endemic", IF(AND($J24>0,$J24<5), IF($J24=4,"Unknown", IF($J24=1, $F24*0.33, IF($J24=2, $F24*0.5+$G24*0.2, SUM(F24:G24)))), 0),"Not required") -> 35483.91 | N24: 0 | O24: 2 | P24: 0 | Q24: T3 (ALB/MBD) | U24: 38115 | V24: Ngoma | X24: TRUE
A25: =IF(INTRO!$E$34<>0,INTRO!$E$34,"") -> Rwanda | B25: West | C25: Ngororero | D25: 369796 | E25: =IF(INTRO!$E$48="","",ROUND($D25*INTRO!$E$48,0)) -> 43266 | F25: =IF(INTRO!$E$49="","",ROUND($D25*INTRO!$E$49,0)) -> 106501 | G25: =IF(INTRO!$E$50="","",ROUND($D25*INTRO!$E$50,0)) -> 209305 | H25: 0 | I25: 3 | J25: 0 | K25: =IF(INTRO!$E$38="Endemic", IF($H25>0, IF($H25=4,"Unknown", IF($H25=99,"Stopped", $D25)), 0),"Not required") -> Not required | L25: =IF(INTRO!$E$42="Endemic", IF(AND($I25>1,$I25<5), IF($I25=4, "Unknown", E25+F25), 0),"Not required") -> 149767 | M25: =IF(INTRO!$E$44="Endemic", IF(AND($J25>0,$J25<5), IF($J25=4,"Unknown", IF($J25=1, $F25*0.33, IF($J25=2, $F25*0.5+$G25*0.2, SUM(F25:G25)))), 0),"Not required") -> 0 | N25: 0 | O25: 2 | P25: 0 | Q25: T3 (ALB/MBD) | U25: 38136 | V25: Ngororero | X25: TRUE
A26: =IF(INTRO!$E$34<>0,INTRO!$E$34,"") -> Rwanda | B26: West | C26: Nyabihu | D26: 326610 | E26: =IF(INTRO!$E$48="","",ROUND($D26*INTRO!$E$48,0)) -> 38213 | F26: =IF(INTRO!$E$49="","",ROUND($D26*INTRO!$E$49,0)) -> 94064 | G26: =IF(INTRO!$E$50="","",ROUND($D26*INTRO!$E$50,0)) -> 184861 | H26: 0 | I26: 3 | J26: 1 | K26: =IF(INTRO!$E$38="Endemic", IF($H26>0, IF($H26=4,"Unknown", IF($H26=99,"Stopped", $D26)), 0),"Not required") -> Not required | L26: =IF(INTRO!$E$42="Endemic", IF(AND($I26>1,$I26<5), IF($I26=4, "Unknown", E26+F26), 0),"Not required") -> 132277 | M26: =IF(INTRO!$E$44="Endemic", IF(AND($J26>0,$J26<5), IF($J26=4,"Unknown", IF($J26=1, $F26*0.33, IF($J26=2, $F26*0.5+$G26*0.2, SUM(F26:G26)))), 0),"Not required") -> 31041.12 | N26: 0 | O26: 2 | P26: 0 | Q26: T3 (ALB/MBD) | U26: 38137 | V26: Nyabihu | X26: TRUE
A27: =IF(INTRO!$E$34<>0,INTRO!$E$34,"") -> Rwanda | B27: East | C27: Nyagatare | D27: 516227 | E27: =IF(INTRO!$E$48="","",ROUND($D27*INTRO!$E$48,0)) -> 60399 | F27: =IF(INTRO!$E$49="","",ROUND($D27*INTRO!$E$49,0)) -> 148673 | G27: =IF(INTRO!$E$50="","",ROUND($D27*INTRO!$E$50,0)) -> 292184 | H27: 0 | I27: 3 | J27: 2 | K27: =IF(INTRO!$E$38="Endemic", IF($H27>0, IF($H27=4,"Unknown", IF($H27=99,"Stopped", $D27)), 0),"Not required") -> Not required | L27: =IF(INTRO!$E$42="Endemic", IF(AND($I27>1,$I27<5), IF($I27=4, "Unknown", E27+F27), 0),"Not required") -> 209072 | M27: =IF(INTRO!$E$44="Endemic", IF(AND($J27>0,$J27<5), IF($J27=4,"Unknown", IF($J27=1, $F27*0.33, IF($J27=2, $F27*0.5+$G27*0.2, SUM(F27:G27)))), 0),"Not required") -> 132773.3 | N27: 0 | O27: 2 | P27: 1 | Q27: T3 (ALB/MBD) | U27: 38116 | V27: Nyagatare | X27: TRUE
A28: =IF(INTRO!$E$34<>0,INTRO!$E$34,"") -> Rwanda | B28: South | C28: Nyamagabe | D28: 378415 | E28: =IF(INTRO!$E$48="","",ROUND($D28*INTRO!$E$48,0)) -> 44275 | F28: =IF(INTRO!$E$49="","",ROUND($D28*INTRO!$E$49,0)) -> 108984 | G28: =IF(INTRO!$E$50="","",ROUND($D28*INTRO!$E$50,0)) -> 214183 | H28: 0 | I28: 3 | J28: 0 | K28: =IF(INTRO!$E$38="Endemic", IF($H28>0, IF($H28=4,"Unknown", IF($H28=99,"Stopped", $D28)), 0),"Not required") -> Not required | L28: =IF(INTRO!$E$42="Endemic", IF(AND($I28>1,$I28<5), IF($I28=4, "Unknown", E28+F28), 0),"Not required") -> 153259 | M28: =IF(INTRO!$E$44="Endemic", IF(AND($J28>0,$J28<5), IF($J28=4,"Unknown", IF($J28=1, $F28*0.33, IF($J28=2, $F28*0.5+$G28*0.2, SUM(F28:G28)))), 0),"Not required") -> 0 | N28: 0 | O28: 2 | P28: 0 | Q28: T3 (ALB/MBD) | U28: 38130 | V28: Nyamagabe | X28: TRUE
A29: =IF(INTRO!$E$34<>0,INTRO!$E$34,"") -> Rwanda | B29: West | C29: Nyamasheke | D29: 423088 | E29: =IF(INTRO!$E$48="","",ROUND($D29*INTRO!$E$48,0)) -> 49501 | F29: =IF(INTRO!$E$49="","",ROUND($D29*INTRO!$E$49,0)) -> 121849 | G29: =IF(INTRO!$E$50="","",ROUND($D29*INTRO!$E$50,0)) -> 239468 | H29: 0 | I29: 3 | J29: 2 | K29: =IF(INTRO!$E$38="Endemic", IF($H29>0, IF($H29=4,"Unknown", IF($H29=99,"Stopped", $D29)), 0),"Not required") -> Not required | L29: =IF(INTRO!$E$42="Endemic", IF(AND($I29>1,$I29<5), IF($I29=4, "Unknown", E29+F29), 0),"Not required") -> 171350 | M29: =IF(INTRO!$E$44="Endemic", IF(AND($J29>0,$J29<5), IF($J29=4,"Unknown", IF($J29=1, $F29*0.33, IF($J29=2, $F29*0.5+$G29*0.2, SUM(F29:G29)))), 0),"Not required") -> 108818.1 | N29: 0 | O29: 2 | P29: 1 | Q29: T3 (ALB/MBD) | U29: 38138 | V29: Nyamasheke | X29: TRUE
A30: =IF(INTRO!$E$34<>0,INTRO!$E$34,"") -> Rwanda | B30: South | C30: Nyanza | D30: 358721 | E30: =IF(INTRO!$E$48="","",ROUND($D30*INTRO!$E$48,0)) -> 41970 | F30: =IF(INTRO!$E$49="","",ROUND($D30*INTRO!$E$49,0)) -> 103312 | G30: =IF(INTRO!$E$50="","",ROUND($D30*INTRO!$E$50,0)) -> 203036 | H30: 0 | I30: 2 | J30: 0 | K30: =IF(INTRO!$E$38="Endemic", IF($H30>0, IF($H30=4,"Unknown", IF($H30=99,"Stopped", $D30)), 0),"Not required") -> Not required | L30: =IF(INTRO!$E$42="Endemic", IF(AND($I30>1,$I30<5), IF($I30=4, "Unknown", E30+F30), 0),"Not required") -> 145282 | M30: =IF(INTRO!$E$44="Endemic", IF(AND($J30>0,$J30<5), IF($J30=4,"Unknown", IF($J30=1, $F30*0.33, IF($J30=2, $F30*0.5+$G30*0.2, SUM(F30:G30)))), 0),"Not required") -> 0 | N30: 0 | O30: 2 | P30: 0 | Q30: T3 (ALB/MBD) | U30: 38131 | V30: Nyanza | X30: TRUE
A31: =IF(INTRO!$E$34<>0,INTRO!$E$34,"") -> Rwanda | B31: Kigali | C31: Nyarugenge | D31: 315330 | E31: =IF(INTRO!$E$48="","",ROUND($D31*INTRO!$E$48,0)) -> 36894 | F31: =IF(INTRO!$E$49="","",ROUND($D31*INTRO!$E$49,0)) -> 90815 | G31: =IF(INTRO!$E$50="","",ROUND($D31*INTRO!$E$50,0)) -> 178477 | H31: 0 | I31: 2 | J31: 0 | K31: =IF(INTRO!$E$38="Endemic", IF($H31>0, IF($H31=4,"Unknown", IF($H31=99,"Stopped", $D31)), 0),"Not required") -> Not required | L31: =IF(INTRO!$E$42="Endemic", IF(AND($I31>1,$I31<5), IF($I31=4, "Unknown", E31+F31), 0),"Not required") -> 127709 | M31: =IF(INTRO!$E$44="Endemic", IF(AND($J31>0,$J31<5), IF($J31=4,"Unknown", IF($J31=1, $F31*0.33, IF($J31=2, $F31*0.5+$G31*0.2, SUM(F31:G31)))), 0),"Not required") -> 0 | N31: 0 | O31: 2 | P31: 0 | Q31: T3 (ALB/MBD) | U31: 38120 | V31: Nyarugenge | X31: TRUE
A32: =IF(INTRO!$E$34<>0,INTRO!$E$34,"") -> Rwanda | B32: South | C32: Nyaruguru | D32: 326159 | E32: =IF(INTRO!$E$48="","",ROUND($D32*INTRO!$E$48,0)) -> 38161 | F32: =IF(INTRO!$E$49="","",ROUND($D32*INTRO!$E$49,0)) -> 93934 | G32: =IF(INTRO!$E$50="","",ROUND($D32*INTRO!$E$50,0)) -> 184606 | H32: 0 | I32: 3 | J32: 0 | K32: =IF(INTRO!$E$38="Endemic", IF($H32>0, IF($H32=4,"Unknown", IF($H32=99,"Stopped", $D32)), 0),"Not required") -> Not required | L32: =IF(INTRO!$E$42="Endemic", IF(AND($I32>1,$I32<5), IF($I32=4, "Unknown", E32+F32), 0),"Not required") -> 132095 | M32: =IF(INTRO!$E$44="Endemic", IF(AND($J32>0,$J32<5), IF($J32=4,"Unknown", IF($J32=1, $F32*0.33, IF($J32=2, $F32*0.5+$G32*0.2, SUM(F32:G32)))), 0),"Not required") -> 0 | N32: 0 | O32: 2 | P32: 0 | Q32: T3 (ALB/MBD) | U32: 38132 | V32: Nyaruguru | X32: TRUE
A33: =IF(INTRO!$E$34<>0,INTRO!$E$34,"") -> Rwanda | B33: West | C33: Rubavu | D33: 447308 | E33: =IF(INTRO!$E$48="","",ROUND($D33*INTRO!$E$48,0)) -> 52335 | F33: =IF(INTRO!$E$49="","",ROUND($D33*INTRO!$E$49,0)) -> 128825 | G33: =IF(INTRO!$E$50="","",ROUND($D33*INTRO!$E$50,0)) -> 253176 | H33: 0 | I33: 3 | J33: 1 | K33: =IF(INTRO!$E$38="Endemic", IF($H33>0, IF($H33=4,"Unknown", IF($H33=99,"Stopped", $D33)), 0),"Not required") -> Not required | L33: =IF(INTRO!$E$42="Endemic", IF(AND($I33>1,$I33<5), IF($I33=4, "Unknown", E33+F33), 0),"Not required") -> 181160 | M33: =IF(INTRO!$E$44="Endemic", IF(AND($J33>0,$J33<5), IF($J33=4,"Unknown", IF($J33=1, $F33*0.33, IF($J33=2, $F33*0.5+$G33*0.2, SUM(F33:G33)))), 0),"Not required") -> 42512.25 | N33: 0 | O33: 2 | P33: 0 | Q33: T3 (ALB/MBD) | U33: 38139 | V33: Rubavu | X33: TRUE
A34: =IF(INTRO!$E$34<>0,INTRO!$E$34,"") -> Rwanda | B34: South | C34: Ruhango | D34: 354473 | E34: =IF(INTRO!$E$48="","",ROUND($D34*INTRO!$E$48,0)) -> 41473 | F34: =IF(INTRO!$E$49="","",ROUND($D34*INTRO!$E$49,0)) -> 102088 | G34: =IF(INTRO!$E$50="","",ROUND($D34*INTRO!$E$50,0)) -> 200632 | H34: 0 | I34: 3 | J34: 0 | K34: =IF(INTRO!$E$38="Endemic", IF($H34>0, IF($H34=4,"Unknown", IF($H34=99,"Stopped", $D34)), 0),"Not required") -> Not required | L34: =IF(INTRO!$E$42="Endemic", IF(AND($I34>1,$I34<5), IF($I34=4, "Unknown", E34+F34), 0),"Not required") -> 143561 | M34: =IF(INTRO!$E$44="Endemic", IF(AND($J34>0,$J34<5), IF($J34=4,"Unknown", IF($J34=1, $F34*0.33, IF($J34=2, $F34*0.5+$G34*0.2, SUM(F34:G34)))), 0),"Not required") -> 0 | N34: 0 | O34: 2 | P34: 0 | Q34: T3 (ALB/MBD) | U34: 38133 | V34: Ruhango | X34: TRUE
A35: =IF(INTRO!$E$34<>0,INTRO!$E$34,"") -> Rwanda | B35: North | C35: Rulindo | D35: 318787 | E35: =IF(INTRO!$E$48="","",ROUND($D35*INTRO!$E$48,0)) -> 37298 | F35: =IF(INTRO!$E$49="","",ROUND($D35*INTRO!$E$49,0)) -> 91811 | G35: =IF(INTRO!$E$50="","",ROUND($D35*INTRO!$E$50,0)) -> 180433 | H35: 0 | I35: 3 | J35: 0 | K35: =IF(INTRO!$E$38="Endemic", IF($H35>0, IF($H35=4,"Unknown", IF($H35=99,"Stopped", $D35)), 0),"Not required") -> Not required | L35: =IF(INTRO!$E$42="Endemic", IF(AND($I35>1,$I35<5), IF($I35=4, "Unknown", E35+F35), 0),"Not required") -> 129109 | M35: =IF(INTRO!$E$44="Endemic", IF(AND($J35>0,$J35<5), IF($J35=4,"Unknown", IF($J35=1, $F35*0.33, IF($J35=2, $F35*0.5+$G35*0.2, SUM(F35:G35)))), 0),"Not required") -> 0 | N35: 0 | O35: 2 | P35: 0 | Q35: T3 (ALB/MBD) | U35: 38125 | V35: Rulindo | X35: TRUE
A36: =IF(INTRO!$E$34<>0,INTRO!$E$34,"") -> Rwanda | B36: West | C36: Rusizi | D36: 444202 | E36: =IF(INTRO!$E$48="","",ROUND($D36*INTRO!$E$48,0)) -> 51972 | F36: =IF(INTRO!$E$49="","",ROUND($D36*INTRO!$E$49,0)) -> 127930 | G36: =IF(INTRO!$E$50="","",ROUND($D36*INTRO!$E$50,0)) -> 251418 | H36: 0 | I36: 3 | J36: 3 | K36: =IF(INTRO!$E$38="Endemic", IF($H36>0, IF($H36=4,"Unknown", IF($H36=99,"Stopped", $D36)), 0),"Not required") -> Not required | L36: =IF(INTRO!$E$42="Endemic", IF(AND($I36>1,$I36<5), IF($I36=4, "Unknown", E36+F36), 0),"Not required") -> 179902 | M36: =IF(INTRO!$E$44="Endemic", IF(AND($J36>0,$J36<5), IF($J36=4,"Unknown", IF($J36=1, $F36*0.33, IF($J36=2, $F36*0.5+$G36*0.2, SUM(F36:G36)))), 0),"Not required") -> 379348 | N36: 0 | O36: 2 | P36: 1 | Q36: T3 (ALB/MBD) | U36: 38140 | V36: Rusizi | X36: TRUE
A37: =IF(INTRO!$E$34<>0,INTRO!$E$34,"") -> Rwanda | B37: West | C37: Rutsiro | D37: 359758 | E37: =IF(INTRO!$E$48="","",ROUND($D37*INTRO!$E$48,0)) -> 42092 | F37: =IF(INTRO!$E$49="","",ROUND($D37*INTRO!$E$49,0)) -> 103610 | G37: =IF(INTRO!$E$50="","",ROUND($D37*INTRO!$E$50,0)) -> 203623 | H37: 0 | I37: 3 | J37: 2 | K37: =IF(INTRO!$E$38="Endemic", IF($H37>0, IF($H37=4,"Unknown", IF($H37=99,"Stopped", $D37)), 0),"Not required") -> Not required | L37: =IF(INTRO!$E$42="Endemic", IF(AND($I37>1,$I37<5), IF($I37=4, "Unknown", E37+F37), 0),"Not required") -> 145702 | M37: =IF(INTRO!$E$44="Endemic", IF(AND($J37>0,$J37<5), IF($J37=4,"Unknown", IF($J37=1, $F37*0.33, IF($J37=2, $F37*0.5+$G37*0.2, SUM(F37:G37)))), 0),"Not required") -> 92529.6 | N37: 0 | O37: 2 | P37: 1 | Q37: T3 (ALB/MBD) | U37: 38141 | V37: Rutsiro | X37: TRUE
A38: =IF(INTRO!$E$34<>0,INTRO!$E$34,"") -> Rwanda | B38: East | C38: Rwamagana | D38: 347354 | E38: =IF(INTRO!$E$48="","",ROUND($D38*INTRO!$E$48,0)) -> 40640 | F38: =IF(INTRO!$E$49="","",ROUND($D38*INTRO!$E$49,0)) -> 100038 | G38: =IF(INTRO!$E$50="","",ROUND($D38*INTRO!$E$50,0)) -> 196602 | H38: 0 | I38: 3 | J38: 1 | K38: =IF(INTRO!$E$38="Endemic", IF($H38>0, IF($H38=4,"Unknown", IF($H38=99,"Stopped", $D38)), 0),"Not required") -> Not required | L38: =IF(INTRO!$E$42="Endemic", IF(AND($I38>1,$I38<5), IF($I38=4, "Unknown", E38+F38), 0),"Not required") -> 140678 | M38: =IF(INTRO!$E$44="Endemic", IF(AND($J38>0,$J38<5), IF($J38=4,"Unknown", IF($J38=1, $F38*0.33, IF($J38=2, $F38*0.5+$G38*0.2, SUM(F38:G38)))), 0),"Not required") -> 33012.54 | N38: 0 | O38: 2 | P38: 0 | Q38: T3 (ALB/MBD) | U38: 38117 | V38: Rwamagana | X38: TRUE

Sheet MDA2
A1: MDA 2 - Diethylcarbamazine citrate (DEC) + Albendazole (ALB)
A2: Administrative structure, population requiring PC by age group, population treated by age group and coverage
A4: TOTAL | F4: =SUM(F$9:F$1000) -> 0 | G4: =SUM(G$9:G$1000) -> 0 | H4: 0 | I4: 0 | J4: 0 | K4: 0 | L4: 0 | M4: 0 | N4: =IF(F4<>0, IF(J4/F4*100=0, "-", J4/F4*100), " ") ->  | O4: =IF(G4<>0, IF(K4/G4*100=0, "-", K4/G4*100), " ") ->  | P4: =IF(H4<>0, IF(L4/H4*100=0, "-", L4/H4*100), " ") ->  | Q4: =IF(I4<>0, IF(M4/I4*100=0, "-", M4/I4*100), " ") -> 
D6: PC implemented | E6: Date | F6: Population targeted for MDA 2 | J6: Population treated | N6: Programme coverage (%)
A7: Country | B7: Province/State | C7: District | F7: PreSAC | G7: SAC | H7: Adults | I7: Total | J7: PreSAC | K7: SAC | L7: Adults | M7: Total | N7: PreSAC | O7: SAC | P7: Adults | Q7: Total
A9: =IF(COUNTRY_INFO!A9=0," ",COUNTRY_INFO!A9) -> Rwanda | B9: =IF(COUNTRY_INFO!B9=0," ",COUNTRY_INFO!B9) -> East | C9: =IF(COUNTRY_INFO!C9=0," ",COUNTRY_INFO!C9) -> Bugesera | D9: =IF(COUNTRY_INFO!$Q$9:$Q$1000="MDA2 (DEC+ALB)", COUNTRY_INFO!$Q$9:$Q$1000, " ") ->  | I9: =SUM(F9:H9) -> 0 | M9: =SUM(J9:L9) -> 0 | N9: =IF(F9<>0, IF(J9/F9*100=0, "-", J9/F9*100), " ") ->  | O9: =IF(G9<>0, IF(K9/G9*100=0, "-", K9/G9*100), " ") ->  | P9: =IF(H9<>0, IF(L9/H9*100=0, "-", L9/H9*100), " ") ->  | Q9: =IF(I9<>0, IF(M9/I9*100=0, "-", M9/I9*100), " ") -> 
A10: =IF(COUNTRY_INFO!A10=0," ",COUNTRY_INFO!A10) -> Rwanda | B10: =IF(COUNTRY_INFO!B10=0," ",COUNTRY_INFO!B10) -> North | C10: =IF(COUNTRY_INFO!C10=0," ",COUNTRY_INFO!C10) -> Burera | D10: =IF(COUNTRY_INFO!$Q$9:$Q$1000="MDA2 (DEC+ALB)", COUNTRY_INFO!$Q$9:$Q$1000, " ") ->  | I10: =SUM(F10:H10) -> 0 | M10: =SUM(J10:L10) -> 0 | N10: =IF(F10<>0, IF(J10/F10*100=0, "-", J10/F10*100), " ") ->  | O10: =IF(G10<>0, IF(K10/G10*100=0, "-", K10/G10*100), " ") ->  | P10: =IF(H10<>0, IF(L10/H10*100=0, "-", L10/H10*100), " ") ->  | Q10: =IF(I10<>0, IF(M10/I10*100=0, "-", M10/I10*100), " ") -> 
A11: =IF(COUNTRY_INFO!A11=0," ",COUNTRY_INFO!A11) -> Rwanda | B11: =IF(COUNTRY_INFO!B11=0," ",COUNTRY_INFO!B11) -> North | C11: =IF(COUNTRY_INFO!C11=0," ",COUNTRY_INFO!C11) -> Gakenke | D11: =IF(COUNTRY_INFO!$Q$9:$Q$1000="MDA2 (DEC+ALB)", COUNTRY_INFO!$Q$9:$Q$1000, " ") ->  | I11: 0 | M11: 0
A12: =IF(COUNTRY_INFO!A12=0," ",COUNTRY_INFO!A12) -> Rwanda | B12: =IF(COUNTRY_INFO!B12=0," ",COUNTRY_INFO!B12) -> Kigali | C12: =IF(COUNTRY_INFO!C12=0," ",COUNTRY_INFO!C12) -> Gasabo | D12: =IF(COUNTRY_INFO!$Q$9:$Q$1000="MDA2 (DEC+ALB)", COUNTRY_INFO!$Q$9:$Q$1000, " ") ->  | I12: 0 | M12: 0
A13: =IF(COUNTRY_INFO!A13=0," ",COUNTRY_INFO!A13) -> Rwanda | B13: =IF(COUNTRY_INFO!B13=0," ",COUNTRY_INFO!B13) -> East | C13: =IF(COUNTRY_INFO!C13=0," ",COUNTRY_INFO!C13) -> Gatsibo | D13: =IF(COUNTRY_INFO!$Q$9:$Q$1000="MDA2 (DEC+ALB)", COUNTRY_INFO!$Q$9:$Q$1000, " ") ->  | I13: 0 | M13: 0
A14: =IF(COUNTRY_INFO!A14=0," ",COUNTRY_INFO!A14) -> Rwanda | B14: =IF(COUNTRY_INFO!B14=0," ",COUNTRY_INFO!B14) -> North | C14: =IF(COUNTRY_INFO!C14=0," ",COUNTRY_INFO!C14) -> Gicumbi | D14: =IF(COUNTRY_INFO!$Q$9:$Q$1000="MDA2 (DEC+ALB)", COUNTRY_INFO!$Q$9:$Q$1000, " ") ->  | I14: 0 | M14: 0
A15: =IF(COUNTRY_INFO!A15=0," ",COUNTRY_INFO!A15) -> Rwanda | B15: =IF(COUNTRY_INFO!B15=0," ",COUNTRY_INFO!B15) -> South | C15: =IF(COUNTRY_INFO!C15=0," ",COUNTRY_INFO!C15) -> Gisagara | D15: =IF(COUNTRY_INFO!$Q$9:$Q$1000="MDA2 (DEC+ALB)", COUNTRY_INFO!$Q$9:$Q$1000, " ") ->  | I15: 0 | M15: 0
A16: =IF(COUNTRY_INFO!A16=0," ",COUNTRY_INFO!A16) -> Rwanda | B16: =IF(COUNTRY_INFO!B16=0," ",COUNTRY_INFO!B16) -> South | C16: =IF(COUNTRY_INFO!C16=0," ",COUNTRY_INFO!C16) -> Huye | D16: =IF(COUNTRY_INFO!$Q$9:$Q$1000="MDA2 (DEC+ALB)", COUNTRY_INFO!$Q$9:$Q$1000, " ") ->  | I16: 0 | M16: 0
A17: =IF(COUNTRY_INFO!A17=0," ",COUNTRY_INFO!A17) -> Rwanda | B17: =IF(COUNTRY_INFO!B17=0," ",COUNTRY_INFO!B17) -> South | C17: =IF(COUNTRY_INFO!C17=0," ",COUNTRY_INFO!C17) -> Kamonyi | D17: =IF(COUNTRY_INFO!$Q$9:$Q$1000="MDA2 (DEC+ALB)", COUNTRY_INFO!$Q$9:$Q$1000, " ") ->  | I17: 0 | M17: 0
A18: =IF(COUNTRY_INFO!A18=0," ",COUNTRY_INFO!A18) -> Rwanda | B18: =IF(COUNTRY_INFO!B18=0," ",COUNTRY_INFO!B18) -> West | C18: =IF(COUNTRY_INFO!C18=0," ",COUNTRY_INFO!C18) -> Karongi | D18: =IF(COUNTRY_INFO!$Q$9:$Q$1000="MDA2 (DEC+ALB)", COUNTRY_INFO!$Q$9:$Q$1000, " ") ->  | I18: 0 | M18: 0
A19: =IF(COUNTRY_INFO!A19=0," ",COUNTRY_INFO!A19) -> Rwanda | B19: =IF(COUNTRY_INFO!B19=0," ",COUNTRY_INFO!B19) -> East | C19: =IF(COUNTRY_INFO!C19=0," ",COUNTRY_INFO!C19) -> Kayonza | D19: =IF(COUNTRY_INFO!$Q$9:$Q$1000="MDA2 (DEC+ALB)", COUNTRY_INFO!$Q$9:$Q$1000, " ") ->  | I19: 0 | M19: 0
A20: =IF(COUNTRY_INFO!A20=0," ",COUNTRY_INFO!A20) -> Rwanda | B20: =IF(COUNTRY_INFO!B20=0," ",COUNTRY_INFO!B20) -> Kigali | C20: =IF(COUNTRY_INFO!C20=0," ",COUNTRY_INFO!C20) -> Kicukiro | D20: =IF(COUNTRY_INFO!$Q$9:$Q$1000="MDA2 (DEC+ALB)", COUNTRY_INFO!$Q$9:$Q$1000, " ") ->  | I20: 0 | M20: 0
A21: =IF(COUNTRY_INFO!A21=0," ",COUNTRY_INFO!A21) -> Rwanda | B21: =IF(COUNTRY_INFO!B21=0," ",COUNTRY_INFO!B21) -> East | C21: =IF(COUNTRY_INFO!C21=0," ",COUNTRY_INFO!C21) -> Kirehe | D21: =IF(COUNTRY_INFO!$Q$9:$Q$1000="MDA2 (DEC+ALB)", COUNTRY_INFO!$Q$9:$Q$1000, " ") ->  | I21: 0 | M21: 0
A22: =IF(COUNTRY_INFO!A22=0," ",COUNTRY_INFO!A22) -> Rwanda | B22: =IF(COUNTRY_INFO!B22=0," ",COUNTRY_INFO!B22) -> South | C22: =IF(COUNTRY_INFO!C22=0," ",COUNTRY_INFO!C22) -> Muhanga | D22: =IF(COUNTRY_INFO!$Q$9:$Q$1000="MDA2 (DEC+ALB)", COUNTRY_INFO!$Q$9:$Q$1000, " ") ->  | I22: 0 | M22: 0
A23: =IF(COUNTRY_INFO!A23=0," ",COUNTRY_INFO!A23) -> Rwanda | B23: =IF(COUNTRY_INFO!B23=0," ",COUNTRY_INFO!B23) -> North | C23: =IF(COUNTRY_INFO!C23=0," ",COUNTRY_INFO!C23) -> Musanze | D23: =IF(COUNTRY_INFO!$Q$9:$Q$1000="MDA2 (DEC+ALB)", COUNTRY_INFO!$Q$9:$Q$1000, " ") ->  | I23: 0 | M23: 0
A24: =IF(COUNTRY_INFO!A24=0," ",COUNTRY_INFO!A24) -> Rwanda | B24: =IF(COUNTRY_INFO!B24=0," ",COUNTRY_INFO!B24) -> East | C24: =IF(COUNTRY_INFO!C24=0," ",COUNTRY_INFO!C24) -> Ngoma | D24: =IF(COUNTRY_INFO!$Q$9:$Q$1000="MDA2 (DEC+ALB)", COUNTRY_INFO!$Q$9:$Q$1000, " ") ->  | I24: 0 | M24: 0
A25: =IF(COUNTRY_INFO!A25=0," ",COUNTRY_INFO!A25) -> Rwanda | B25: =IF(COUNTRY_INFO!B25=0," ",COUNTRY_INFO!B25) -> West | C25: =IF(COUNTRY_INFO!C25=0," ",COUNTRY_INFO!C25) -> Ngororero | D25: =IF(COUNTRY_INFO!$Q$9:$Q$1000="MDA2 (DEC+ALB)", COUNTRY_INFO!$Q$9:$Q$1000, " ") ->  | I25: 0 | M25: 0
A26: =IF(COUNTRY_INFO!A26=0," ",COUNTRY_INFO!A26) -> Rwanda | B26: =IF(COUNTRY_INFO!B26=0," ",COUNTRY_INFO!B26) -> West | C26: =IF(COUNTRY_INFO!C26=0," ",COUNTRY_INFO!C26) -> Nyabihu | D26: =IF(COUNTRY_INFO!$Q$9:$Q$1000="MDA2 (DEC+ALB)", COUNTRY_INFO!$Q$9:$Q$1000, " ") ->  | I26: 0 | M26: 0
A27: =IF(COUNTRY_INFO!A27=0," ",COUNTRY_INFO!A27) -> Rwanda | B27: =IF(COUNTRY_INFO!B27=0," ",COUNTRY_INFO!B27) -> East | C27: =IF(COUNTRY_INFO!C27=0," ",COUNTRY_INFO!C27) -> Nyagatare | D27: =IF(COUNTRY_INFO!$Q$9:$Q$1000="MDA2 (DEC+ALB)", COUNTRY_INFO!$Q$9:$Q$1000, " ") ->  | I27: 0 | M27: 0
A28: =IF(COUNTRY_INFO!A28=0," ",COUNTRY_INFO!A28) -> Rwanda | B28: =IF(COUNTRY_INFO!B28=0," ",COUNTRY_INFO!B28) -> South | C28: =IF(COUNTRY_INFO!C28=0," ",COUNTRY_INFO!C28) -> Nyamagabe | D28: =IF(COUNTRY_INFO!$Q$9:$Q$1000="MDA2 (DEC+ALB)", COUNTRY_INFO!$Q$9:$Q$1000, " ") ->  | I28: 0 | M28: 0
A29: =IF(COUNTRY_INFO!A29=0," ",COUNTRY_INFO!A29) -> Rwanda | B29: =IF(COUNTRY_INFO!B29=0," ",COUNTRY_INFO!B29) -> West | C29: =IF(COUNTRY_INFO!C29=0," ",COUNTRY_INFO!C29) -> Nyamasheke | D29: =IF(COUNTRY_INFO!$Q$9:$Q$1000="MDA2 (DEC+ALB)", COUNTRY_INFO!$Q$9:$Q$1000, " ") ->  | I29: 0 | M29: 0
A30: =IF(COUNTRY_INFO!A30=0," ",COUNTRY_INFO!A30) -> Rwanda | B30: =IF(COUNTRY_INFO!B30=0," ",COUNTRY_INFO!B30) -> South | C30: =IF(COUNTRY_INFO!C30=0," ",COUNTRY_INFO!C30) -> Nyanza | D30: =IF(COUNTRY_INFO!$Q$9:$Q$1000="MDA2 (DEC+ALB)", COUNTRY_INFO!$Q$9:$Q$1000, " ") ->  | I30: 0 | M30: 0
A31: =IF(COUNTRY_INFO!A31=0," ",COUNTRY_INFO!A31) -> Rwanda | B31: =IF(COUNTRY_INFO!B31=0," ",COUNTRY_INFO!B31) -> Kigali | C31: =IF(COUNTRY_INFO!C31=0," ",COUNTRY_INFO!C31) -> Nyarugenge | D31: =IF(COUNTRY_INFO!$Q$9:$Q$1000="MDA2 (DEC+ALB)", COUNTRY_INFO!$Q$9:$Q$1000, " ") ->  | I31: 0 | M31: 0
A32: =IF(COUNTRY_INFO!A32=0," ",COUNTRY_INFO!A32) -> Rwanda | B32: =IF(COUNTRY_INFO!B32=0," ",COUNTRY_INFO!B32) -> South | C32: =IF(COUNTRY_INFO!C32=0," ",COUNTRY_INFO!C32) -> Nyaruguru | D32: =IF(COUNTRY_INFO!$Q$9:$Q$1000="MDA2 (DEC+ALB)", COUNTRY_INFO!$Q$9:$Q$1000, " ") ->  | I32: 0 | M32: 0
A33: =IF(COUNTRY_INFO!A33=0," ",COUNTRY_INFO!A33) -> Rwanda | B33: =IF(COUNTRY_INFO!B33=0," ",COUNTRY_INFO!B33) -> West | C33: =IF(COUNTRY_INFO!C33=0," ",COUNTRY_INFO!C33) -> Rubavu | D33: =IF(COUNTRY_INFO!$Q$9:$Q$1000="MDA2 (DEC+ALB)", COUNTRY_INFO!$Q$9:$Q$1000, " ") ->  | I33: 0 | M33: 0
A34: =IF(COUNTRY_INFO!A34=0," ",COUNTRY_INFO!A34) -> Rwanda | B34: =IF(COUNTRY_INFO!B34=0," ",COUNTRY_INFO!B34) -> South | C34: =IF(COUNTRY_INFO!C34=0," ",COUNTRY_INFO!C34) -> Ruhango | D34: =IF(COUNTRY_INFO!$Q$9:$Q$1000="MDA2 (DEC+ALB)", COUNTRY_INFO!$Q$9:$Q$1000, " ") ->  | I34: 0 | M34: 0
A35: =IF(COUNTRY_INFO!A35=0," ",COUNTRY_INFO!A35) -> Rwanda | B35: =IF(COUNTRY_INFO!B35=0," ",COUNTRY_INFO!B35) -> North | C35: =IF(COUNTRY_INFO!C35=0," ",COUNTRY_INFO!C35) -> Rulindo | D35: =IF(COUNTRY_INFO!$Q$9:$Q$1000="MDA2 (DEC+ALB)", COUNTRY_INFO!$Q$9:$Q$1000, " ") ->  | I35: 0 | M35: 0
A36: =IF(COUNTRY_INFO!A36=0," ",COUNTRY_INFO!A36) -> Rwanda | B36: =IF(COUNTRY_INFO!B36=0," ",COUNTRY_INFO!B36) -> West | C36: =IF(COUNTRY_INFO!C36=0," ",COUNTRY_INFO!C36) -> Rusizi | D36: =IF(COUNTRY_INFO!$Q$9:$Q$1000="MDA2 (DEC+ALB)", COUNTRY_INFO!$Q$9:$Q$1000, " ") ->  | I36: 0 | M36: 0
A37: =IF(COUNTRY_INFO!A37=0," ",COUNTRY_INFO!A37) -> Rwanda | B37: =IF(COUNTRY_INFO!B37=0," ",COUNTRY_INFO!B37) -> West | C37: =IF(COUNTRY_INFO!C37=0," ",COUNTRY_INFO!C37) -> Rutsiro | D37: =IF(COUNTRY_INFO!$Q$9:$Q$1000="MDA2 (DEC+ALB)", COUNTRY_INFO!$Q$9:$Q$1000, " ") ->  | I37: 0 | M37: 0
A38: =IF(COUNTRY_INFO!A38=0," ",COUNTRY_INFO!A38) -> Rwanda | B38: =IF(COUNTRY_INFO!B38=0," ",COUNTRY_INFO!B38) -> East | C38: =IF(COUNTRY_INFO!C38=0," ",COUNTRY_INFO!C38) -> Rwamagana | D38: =IF(COUNTRY_INFO!$Q$9:$Q$1000="MDA2 (DEC+ALB)", COUNTRY_INFO!$Q$9:$Q$1000, " ") ->  | I38: 0 | M38: 0

Sheet T1
A1: T 1 - Praziquantel (PZQ) and Albendazole (ALB) or Mebendazole (MBD)
A2: Administrative structure, population requiring PC by age group, population treated by age group and coverage
A4: TOTAL | G4: =SUM(G$9:G$1000) -> 0 | H4: 0 | I4: 0 | J4: 0 | K4: =SUM(K$9:K$1000) -> 0 | L4: 0 | M4: 0 | N4: 0 | O4: 0 | P4: =IF(G4<>0, IF(L4/G4*100=0, "-", L4/G4*100), " ") ->  | Q4: =IF(OR(I4<>0,H4<>0), IF(M4/MAX(H4,I4)*100=0, "-", M4/MAX(H4,I4)*100), " ") ->  | R4: =IF(J4<>0, IF(N4/J4*100=0, "-", N4/J4*100), " ") ->  | S4: =IF(K4<>0, IF(O4/K4*100=0, "-", O4/K4*100), " ") -> 
D6: PC implemented | E6: Medicine | F6: Date | G6: Population targeted for T1 | L6: Population treated | P6: Programme coverage (%)
A7: Country | B7: Province/State | C7: District | G7: PreSAC (ALB) | H7: SAC (ALB) | I7: SAC (PZQ) | J7: Adults (PZQ) | K7: Total | L7: PreSAC | M7: SAC | N7: Adults | O7: Total | P7: PreSAC | Q7: SAC | R7: Adults | S7: Total
A9: =IF(COUNTRY_INFO!A9=0," ",COUNTRY_INFO!A9) -> Rwanda | B9: =IF(COUNTRY_INFO!B9=0," ",COUNTRY_INFO!B9) -> East | C9: =IF(COUNTRY_INFO!C9=0," ",COUNTRY_INFO!C9) -> Bugesera | K9: =MAX(H9:I9)+G9+J9 -> 0 | O9: =SUM(L9:N9) -> 0 | P9: =IF(G9<>0, IF(L9/G9*100=0, "-", L9/G9*100), " ") ->  | Q9: =IF(OR(I9<>0,H9<>0), IF(M9/MAX(H9,I9)*100=0, "-", M9/MAX(H9,I9)*100), " ") ->  | R9: =IF(J9<>0, IF(N9/J9*100=0, "-", N9/J9*100), " ") ->  | S9: =IF(K9<>0, IF(O9/K9*100=0, "-", O9/K9*100), " ") -> 
A10: =IF(COUNTRY_INFO!A10=0," ",COUNTRY_INFO!A10) -> Rwanda | B10: =IF(COUNTRY_INFO!B10=0," ",COUNTRY_INFO!B10) -> North | C10: =IF(COUNTRY_INFO!C10=0," ",COUNTRY_INFO!C10) -> Burera | K10: =MAX(H10:I10)+G10+J10 -> 0 | O10: =SUM(L10:N10) -> 0 | P10: =IF(G10<>0, IF(L10/G10*100=0, "-", L10/G10*100), " ") ->  | Q10: =IF(OR(I10<>0,H10<>0), IF(M10/MAX(H10,I10)*100=0, "-", M10/MAX(H10,I10)*100), " ") ->  | R10: =IF(J10<>0, IF(N10/J10*100=0, "-", N10/J10*100), " ") ->  | S10: =IF(K10<>0, IF(O10/K10*100=0, "-", O10/K10*100), " ") -> 
A11: =IF(COUNTRY_INFO!A11=0," ",COUNTRY_INFO!A11) -> Rwanda | B11: =IF(COUNTRY_INFO!B11=0," ",COUNTRY_INFO!B11) -> North | C11: =IF(COUNTRY_INFO!C11=0," ",COUNTRY_INFO!C11) -> Gakenke | K11: 0 | O11: 0
A12: =IF(COUNTRY_INFO!A12=0," ",COUNTRY_INFO!A12) -> Rwanda | B12: =IF(COUNTRY_INFO!B12=0," ",COUNTRY_INFO!B12) -> Kigali | C12: =IF(COUNTRY_INFO!C12=0," ",COUNTRY_INFO!C12) -> Gasabo | K12: 0 | O12: 0
A13: =IF(COUNTRY_INFO!A13=0," ",COUNTRY_INFO!A13) -> Rwanda | B13: =IF(COUNTRY_INFO!B13=0," ",COUNTRY_INFO!B13) -> East | C13: =IF(COUNTRY_INFO!C13=0," ",COUNTRY_INFO!C13) -> Gatsibo | K13: 0 | O13: 0
A14: =IF(COUNTRY_INFO!A14=0," ",COUNTRY_INFO!A14) -> Rwanda | B14: =IF(COUNTRY_INFO!B14=0," ",COUNTRY_INFO!B14) -> North | C14: =IF(COUNTRY_INFO!C14=0," ",COUNTRY_INFO!C14) -> Gicumbi | K14: 0 | O14: 0
A15: =IF(COUNTRY_INFO!A15=0," ",COUNTRY_INFO!A15) -> Rwanda | B15: =IF(COUNTRY_INFO!B15=0," ",COUNTRY_INFO!B15) -> South | C15: =IF(COUNTRY_INFO!C15=0," ",COUNTRY_INFO!C15) -> Gisagara | K15: 0 | O15: 0
A16: =IF(COUNTRY_INFO!A16=0," ",COUNTRY_INFO!A16) -> Rwanda | B16: =IF(COUNTRY_INFO!B16=0," ",COUNTRY_INFO!B16) -> South | C16: =IF(COUNTRY_INFO!C16=0," ",COUNTRY_INFO!C16) -> Huye | K16: 0 | O16: 0
A17: =IF(COUNTRY_INFO!A17=0," ",COUNTRY_INFO!A17) -> Rwanda | B17: =IF(COUNTRY_INFO!B17=0," ",COUNTRY_INFO!B17) -> South | C17: =IF(COUNTRY_INFO!C17=0," ",COUNTRY_INFO!C17) -> Kamonyi | K17: 0 | O17: 0
A18: =IF(COUNTRY_INFO!A18=0," ",COUNTRY_INFO!A18) -> Rwanda | B18: =IF(COUNTRY_INFO!B18=0," ",COUNTRY_INFO!B18) -> West | C18: =IF(COUNTRY_INFO!C18=0," ",COUNTRY_INFO!C18) -> Karongi | K18: 0 | O18: 0
A19: =IF(COUNTRY_INFO!A19=0," ",COUNTRY_INFO!A19) -> Rwanda | B19: =IF(COUNTRY_INFO!B19=0," ",COUNTRY_INFO!B19) -> East | C19: =IF(COUNTRY_INFO!C19=0," ",COUNTRY_INFO!C19) -> Kayonza | K19: 0 | O19: 0
A20: =IF(COUNTRY_INFO!A20=0," ",COUNTRY_INFO!A20) -> Rwanda | B20: =IF(COUNTRY_INFO!B20=0," ",COUNTRY_INFO!B20) -> Kigali | C20: =IF(COUNTRY_INFO!C20=0," ",COUNTRY_INFO!C20) -> Kicukiro | K20: 0 | O20: 0
A21: =IF(COUNTRY_INFO!A21=0," ",COUNTRY_INFO!A21) -> Rwanda | B21: =IF(COUNTRY_INFO!B21=0," ",COUNTRY_INFO!B21) -> East | C21: =IF(COUNTRY_INFO!C21=0," ",COUNTRY_INFO!C21) -> Kirehe | K21: 0 | O21: 0
A22: =IF(COUNTRY_INFO!A22=0," ",COUNTRY_INFO!A22) -> Rwanda | B22: =IF(COUNTRY_INFO!B22=0," ",COUNTRY_INFO!B22) -> South | C22: =IF(COUNTRY_INFO!C22=0," ",COUNTRY_INFO!C22) -> Muhanga | K22: 0 | O22: 0
A23: =IF(COUNTRY_INFO!A23=0," ",COUNTRY_INFO!A23) -> Rwanda | B23: =IF(COUNTRY_INFO!B23=0," ",COUNTRY_INFO!B23) -> North | C23: =IF(COUNTRY_INFO!C23=0," ",COUNTRY_INFO!C23) -> Musanze | O23: 0
A24: =IF(COUNTRY_INFO!A24=0," ",COUNTRY_INFO!A24) -> Rwanda | B24: =IF(COUNTRY_INFO!B24=0," ",COUNTRY_INFO!B24) -> East | C24: =IF(COUNTRY_INFO!C24=0," ",COUNTRY_INFO!C24) -> Ngoma | O24: 0
A25: =IF(COUNTRY_INFO!A25=0," ",COUNTRY_INFO!A25) -> Rwanda | B25: =IF(COUNTRY_INFO!B25=0," ",COUNTRY_INFO!B25) -> West | C25: =IF(COUNTRY_INFO!C25=0," ",COUNTRY_INFO!C25) -> Ngororero | O25: 0
A26: =IF(COUNTRY_INFO!A26=0," ",COUNTRY_INFO!A26) -> Rwanda | B26: =IF(COUNTRY_INFO!B26=0," ",COUNTRY_INFO!B26) -> West | C26: =IF(COUNTRY_INFO!C26=0," ",COUNTRY_INFO!C26) -> Nyabihu | O26: 0
A27: =IF(COUNTRY_INFO!A27=0," ",COUNTRY_INFO!A27) -> Rwanda | B27: =IF(COUNTRY_INFO!B27=0," ",COUNTRY_INFO!B27) -> East | C27: =IF(COUNTRY_INFO!C27=0," ",COUNTRY_INFO!C27) -> Nyagatare | O27: 0
A28: =IF(COUNTRY_INFO!A28=0," ",COUNTRY_INFO!A28) -> Rwanda | B28: =IF(COUNTRY_INFO!B28=0," ",COUNTRY_INFO!B28) -> South | C28: =IF(COUNTRY_INFO!C28=0," ",COUNTRY_INFO!C28) -> Nyamagabe | O28: 0
A29: =IF(COUNTRY_INFO!A29=0," ",COUNTRY_INFO!A29) -> Rwanda | B29: =IF(COUNTRY_INFO!B29=0," ",COUNTRY_INFO!B29) -> West | C29: =IF(COUNTRY_INFO!C29=0," ",COUNTRY_INFO!C29) -> Nyamasheke | O29: 0
A30: =IF(COUNTRY_INFO!A30=0," ",COUNTRY_INFO!A30) -> Rwanda | B30: =IF(COUNTRY_INFO!B30=0," ",COUNTRY_INFO!B30) -> South | C30: =IF(COUNTRY_INFO!C30=0," ",COUNTRY_INFO!C30) -> Nyanza | O30: 0
A31: =IF(COUNTRY_INFO!A31=0," ",COUNTRY_INFO!A31) -> Rwanda | B31: =IF(COUNTRY_INFO!B31=0," ",COUNTRY_INFO!B31) -> Kigali | C31: =IF(COUNTRY_INFO!C31=0," ",COUNTRY_INFO!C31) -> Nyarugenge | K31: 0 | O31: 0
A32: =IF(COUNTRY_INFO!A32=0," ",COUNTRY_INFO!A32) -> Rwanda | B32: =IF(COUNTRY_INFO!B32=0," ",COUNTRY_INFO!B32) -> South | C32: =IF(COUNTRY_INFO!C32=0," ",COUNTRY_INFO!C32) -> Nyaruguru | K32: 0 | O32: 0
A33: =IF(COUNTRY_INFO!A33=0," ",COUNTRY_INFO!A33) -> Rwanda | B33: =IF(COUNTRY_INFO!B33=0," ",COUNTRY_INFO!B33) -> West | C33: =IF(COUNTRY_INFO!C33=0," ",COUNTRY_INFO!C33) -> Rubavu | K33: 0 | O33: 0
A34: =IF(COUNTRY_INFO!A34=0," ",COUNTRY_INFO!A34) -> Rwanda | B34: =IF(COUNTRY_INFO!B34=0," ",COUNTRY_INFO!B34) -> South | C34: =IF(COUNTRY_INFO!C34=0," ",COUNTRY_INFO!C34) -> Ruhango | K34: 0 | O34: 0
A35: =IF(COUNTRY_INFO!A35=0," ",COUNTRY_INFO!A35) -> Rwanda | B35: =IF(COUNTRY_INFO!B35=0," ",COUNTRY_INFO!B35) -> North | C35: =IF(COUNTRY_INFO!C35=0," ",COUNTRY_INFO!C35) -> Rulindo | O35: 0
A36: =IF(COUNTRY_INFO!A36=0," ",COUNTRY_INFO!A36) -> Rwanda | B36: =IF(COUNTRY_INFO!B36=0," ",COUNTRY_INFO!B36) -> West | C36: =IF(COUNTRY_INFO!C36=0," ",COUNTRY_INFO!C36) -> Rusizi | O36: 0
A37: =IF(COUNTRY_INFO!A37=0," ",COUNTRY_INFO!A37) -> Rwanda | B37: =IF(COUNTRY_INFO!B37=0," ",COUNTRY_INFO!B37) -> West | C37: =IF(COUNTRY_INFO!C37=0," ",COUNTRY_INFO!C37) -> Rutsiro | O37: 0
A38: =IF(COUNTRY_INFO!A38=0," ",COUNTRY_INFO!A38) -> Rwanda | B38: =IF(COUNTRY_INFO!B38=0," ",COUNTRY_INFO!B38) -> East | C38: =IF(COUNTRY_INFO!C38=0," ",COUNTRY_INFO!C38) -> Rwamagana | D38: =IF(OR(COUNTRY_INFO!$Q$9:$Q$1000="T1 (PZQ+ALB/MBD)",COUNTRY_INFO!$R$9:$R$1000="T1 (PZQ+ALB/MBD)"), "T1 (PZQ+ALB/MBD)", " ") ->  | O38: 0

Sheet T2
A1: T 2 - Praziquantel (PZQ)
A2: Administrative structure, population requiring PC by age group, population treated by age group and coverage
A4: TOTAL | F4: =SUM(F$9:F$1000) -> 0 | G4: 0 | H4: 0 | I4: 0 | J4: 0 | K4: 0 | L4: 0 | M4: 0 | N4: =IF(F4<>0, IF(J4/F4*100=0, "-", J4/F4*100), " ") ->  | O4: =IF(G4<>0, IF(K4/G4*100=0, "-", K4/G4*100), " ") ->  | P4: =IF(H4<>0, IF(L4/H4*100=0, "-", L4/H4*100), " ") ->  | Q4: =IF(I4<>0, IF(M4/I4*100=0, "-", M4/I4*100), " ") -> 
D6: PC implemented | E6: Date | F6: Population targeted for T2 | J6: Population treated | N6: Programme coverage (%)
A7: Country | B7: Province/State | C7: District | F7: PreSAC | G7: SAC | H7: Adults | I7: Total | J7: PreSAC | K7: SAC | L7: Adults | M7: Total | N7: PreSAC | O7: SAC | P7: Adults | Q7: Total
A9: =IF(COUNTRY_INFO!A9=0," ",COUNTRY_INFO!A9) -> Rwanda | B9: =IF(COUNTRY_INFO!B9=0," ",COUNTRY_INFO!B9) -> East | C9: =IF(COUNTRY_INFO!C9=0," ",COUNTRY_INFO!C9) -> Bugesera | D9: =IF(COUNTRY_INFO!$R$9:$R$1000="T2 (PZQ)", COUNTRY_INFO!$R$9:$R$1000, " ") ->  | I9: =SUM(F9:H9) -> 0 | M9: =SUM(J9:L9) -> 0 | N9: =IF(F9<>0, IF(J9/F9*100=0, "-", J9/F9*100), " ") ->  | O9: =IF(G9<>0, IF(K9/G9*100=0, "-", K9/G9*100), " ") ->  | P9: =IF(H9<>0, IF(L9/H9*100=0, "-", L9/H9*100), " ") ->  | Q9: =IF(I9<>0, IF(M9/I9*100=0, "-", M9/I9*100), " ") -> 
A10: =IF(COUNTRY_INFO!A10=0," ",COUNTRY_INFO!A10) -> Rwanda | B10: =IF(COUNTRY_INFO!B10=0," ",COUNTRY_INFO!B10) -> North | C10: =IF(COUNTRY_INFO!C10=0," ",COUNTRY_INFO!C10) -> Burera | D10: =IF(COUNTRY_INFO!$R$9:$R$1000="T2 (PZQ)", COUNTRY_INFO!$R$9:$R$1000, " ") ->  | I10: =SUM(F10:H10) -> 0 | M10: =SUM(J10:L10) -> 0 | N10: =IF(F10<>0, IF(J10/F10*100=0, "-", J10/F10*100), " ") ->  | O10: =IF(G10<>0, IF(K10/G10*100=0, "-", K10/G10*100), " ") ->  | P10: =IF(H10<>0, IF(L10/H10*100=0, "-", L10/H10*100), " ") ->  | Q10: =IF(I10<>0, IF(M10/I10*100=0, "-", M10/I10*100), " ") -> 
A11: =IF(COUNTRY_INFO!A11=0," ",COUNTRY_INFO!A11) -> Rwanda | B11: =IF(COUNTRY_INFO!B11=0," ",COUNTRY_INFO!B11) -> North | C11: =IF(COUNTRY_INFO!C11=0," ",COUNTRY_INFO!C11) -> Gakenke | D11: =IF(COUNTRY_INFO!$R$9:$R$1000="T2 (PZQ)", COUNTRY_INFO!$R$9:$R$1000, " ") ->  | I11: 0 | M11: 0
A12: =IF(COUNTRY_INFO!A12=0," ",COUNTRY_INFO!A12) -> Rwanda | B12: =IF(COUNTRY_INFO!B12=0," ",COUNTRY_INFO!B12) -> Kigali | C12: =IF(COUNTRY_INFO!C12=0," ",COUNTRY_INFO!C12) -> Gasabo | D12: =IF(COUNTRY_INFO!$R$9:$R$1000="T2 (PZQ)", COUNTRY_INFO!$R$9:$R$1000, " ") ->  | I12: 0 | M12: 0
A13: =IF(COUNTRY_INFO!A13=0," ",COUNTRY_INFO!A13) -> Rwanda | B13: =IF(COUNTRY_INFO!B13=0," ",COUNTRY_INFO!B13) -> East | C13: =IF(COUNTRY_INFO!C13=0," ",COUNTRY_INFO!C13) -> Gatsibo | D13: =IF(COUNTRY_INFO!$R$9:$R$1000="T2 (PZQ)", COUNTRY_INFO!$R$9:$R$1000, " ") ->  | I13: 0 | M13: 0
A14: =IF(COUNTRY_INFO!A14=0," ",COUNTRY_INFO!A14) -> Rwanda | B14: =IF(COUNTRY_INFO!B14=0," ",COUNTRY_INFO!B14) -> North | C14: =IF(COUNTRY_INFO!C14=0," ",COUNTRY_INFO!C14) -> Gicumbi | D14: =IF(COUNTRY_INFO!$R$9:$R$1000="T2 (PZQ)", COUNTRY_INFO!$R$9:$R$1000, " ") ->  | I14: 0 | M14: 0
A15: =IF(COUNTRY_INFO!A15=0," ",COUNTRY_INFO!A15) -> Rwanda | B15: =IF(COUNTRY_INFO!B15=0," ",COUNTRY_INFO!B15) -> South | C15: =IF(COUNTRY_INFO!C15=0," ",COUNTRY_INFO!C15) -> Gisagara | D15: =IF(COUNTRY_INFO!$R$9:$R$1000="T2 (PZQ)", COUNTRY_INFO!$R$9:$R$1000, " ") ->  | I15: 0 | M15: 0
A16: =IF(COUNTRY_INFO!A16=0," ",COUNTRY_INFO!A16) -> Rwanda | B16: =IF(COUNTRY_INFO!B16=0," ",COUNTRY_INFO!B16) -> South | C16: =IF(COUNTRY_INFO!C16=0," ",COUNTRY_INFO!C16) -> Huye | D16: =IF(COUNTRY_INFO!$R$9:$R$1000="T2 (PZQ)", COUNTRY_INFO!$R$9:$R$1000, " ") ->  | I16: 0 | M16: 0
A17: =IF(COUNTRY_INFO!A17=0," ",COUNTRY_INFO!A17) -> Rwanda | B17: =IF(COUNTRY_INFO!B17=0," ",COUNTRY_INFO!B17) -> South | C17: =IF(COUNTRY_INFO!C17=0," ",COUNTRY_INFO!C17) -> Kamonyi | D17: =IF(COUNTRY_INFO!$R$9:$R$1000="T2 (PZQ)", COUNTRY_INFO!$R$9:$R$1000, " ") ->  | I17: 0 | M17: 0
A18: =IF(COUNTRY_INFO!A18=0," ",COUNTRY_INFO!A18) -> Rwanda | B18: =IF(COUNTRY_INFO!B18=0," ",COUNTRY_INFO!B18) -> West | C18: =IF(COUNTRY_INFO!C18=0," ",COUNTRY_INFO!C18) -> Karongi | D18: =IF(COUNTRY_INFO!$R$9:$R$1000="T2 (PZQ)", COUNTRY_INFO!$R$9:$R$1000, " ") ->  | I18: 0 | M18: 0
A19: =IF(COUNTRY_INFO!A19=0," ",COUNTRY_INFO!A19) -> Rwanda | B19: =IF(COUNTRY_INFO!B19=0," ",COUNTRY_INFO!B19) -> East | C19: =IF(COUNTRY_INFO!C19=0," ",COUNTRY_INFO!C19) -> Kayonza | D19: =IF(COUNTRY_INFO!$R$9:$R$1000="T2 (PZQ)", COUNTRY_INFO!$R$9:$R$1000, " ") ->  | I19: 0 | M19: 0
A20: =IF(COUNTRY_INFO!A20=0," ",COUNTRY_INFO!A20) -> Rwanda | B20: =IF(COUNTRY_INFO!B20=0," ",COUNTRY_INFO!B20) -> Kigali | C20: =IF(COUNTRY_INFO!C20=0," ",COUNTRY_INFO!C20) -> Kicukiro | D20: =IF(COUNTRY_INFO!$R$9:$R$1000="T2 (PZQ)", COUNTRY_INFO!$R$9:$R$1000, " ") ->  | I20: 0 | M20: 0
A21: =IF(COUNTRY_INFO!A21=0," ",COUNTRY_INFO!A21) -> Rwanda | B21: =IF(COUNTRY_INFO!B21=0," ",COUNTRY_INFO!B21) -> East | C21: =IF(COUNTRY_INFO!C21=0," ",COUNTRY_INFO!C21) -> Kirehe | D21: =IF(COUNTRY_INFO!$R$9:$R$1000="T2 (PZQ)", COUNTRY_INFO!$R$9:$R$1000, " ") ->  | I21: 0 | M21: 0
A22: =IF(COUNTRY_INFO!A22=0," ",COUNTRY_INFO!A22) -> Rwanda | B22: =IF(COUNTRY_INFO!B22=0," ",COUNTRY_INFO!B22) -> South | C22: =IF(COUNTRY_INFO!C22=0," ",COUNTRY_INFO!C22) -> Muhanga | D22: =IF(COUNTRY_INFO!$R$9:$R$1000="T2 (PZQ)", COUNTRY_INFO!$R$9:$R$1000, " ") ->  | I22: 0 | M22: 0
A23: =IF(COUNTRY_INFO!A23=0," ",COUNTRY_INFO!A23) -> Rwanda | B23: =IF(COUNTRY_INFO!B23=0," ",COUNTRY_INFO!B23) -> North | C23: =IF(COUNTRY_INFO!C23=0," ",COUNTRY_INFO!C23) -> Musanze | D23: =IF(COUNTRY_INFO!$R$9:$R$1000="T2 (PZQ)", COUNTRY_INFO!$R$9:$R$1000, " ") ->  | I23: 0 | M23: 0
A24: =IF(COUNTRY_INFO!A24=0," ",COUNTRY_INFO!A24) -> Rwanda | B24: =IF(COUNTRY_INFO!B24=0," ",COUNTRY_INFO!B24) -> East | C24: =IF(COUNTRY_INFO!C24=0," ",COUNTRY_INFO!C24) -> Ngoma | D24: =IF(COUNTRY_INFO!$R$9:$R$1000="T2 (PZQ)", COUNTRY_INFO!$R$9:$R$1000, " ") ->  | I24: 0 | M24: 0
A25: =IF(COUNTRY_INFO!A25=0," ",COUNTRY_INFO!A25) -> Rwanda | B25: =IF(COUNTRY_INFO!B25=0," ",COUNTRY_INFO!B25) -> West | C25: =IF(COUNTRY_INFO!C25=0," ",COUNTRY_INFO!C25) -> Ngororero | D25: =IF(COUNTRY_INFO!$R$9:$R$1000="T2 (PZQ)", COUNTRY_INFO!$R$9:$R$1000, " ") ->  | I25: 0 | M25: 0
A26: =IF(COUNTRY_INFO!A26=0," ",COUNTRY_INFO!A26) -> Rwanda | B26: =IF(COUNTRY_INFO!B26=0," ",COUNTRY_INFO!B26) -> West | C26: =IF(COUNTRY_INFO!C26=0," ",COUNTRY_INFO!C26) -> Nyabihu | D26: =IF(COUNTRY_INFO!$R$9:$R$1000="T2 (PZQ)", COUNTRY_INFO!$R$9:$R$1000, " ") ->  | I26: 0 | M26: 0
A27: =IF(COUNTRY_INFO!A27=0," ",COUNTRY_INFO!A27) -> Rwanda | B27: =IF(COUNTRY_INFO!B27=0," ",COUNTRY_INFO!B27) -> East | C27: =IF(COUNTRY_INFO!C27=0," ",COUNTRY_INFO!C27) -> Nyagatare | D27: =IF(COUNTRY_INFO!$R$9:$R$1000="T2 (PZQ)", COUNTRY_INFO!$R$9:$R$1000, " ") ->  | I27: 0 | M27: 0
A28: =IF(COUNTRY_INFO!A28=0," ",COUNTRY_INFO!A28) -> Rwanda | B28: =IF(COUNTRY_INFO!B28=0," ",COUNTRY_INFO!B28) -> South | C28: =IF(COUNTRY_INFO!C28=0," ",COUNTRY_INFO!C28) -> Nyamagabe | D28: =IF(COUNTRY_INFO!$R$9:$R$1000="T2 (PZQ)", COUNTRY_INFO!$R$9:$R$1000, " ") ->  | I28: 0 | M28: 0
A29: =IF(COUNTRY_INFO!A29=0," ",COUNTRY_INFO!A29) -> Rwanda | B29: =IF(COUNTRY_INFO!B29=0," ",COUNTRY_INFO!B29) -> West | C29: =IF(COUNTRY_INFO!C29=0," ",COUNTRY_INFO!C29) -> Nyamasheke | D29: =IF(COUNTRY_INFO!$R$9:$R$1000="T2 (PZQ)", COUNTRY_INFO!$R$9:$R$1000, " ") ->  | I29: 0 | M29: 0
A30: =IF(COUNTRY_INFO!A30=0," ",COUNTRY_INFO!A30) -> Rwanda | B30: =IF(COUNTRY_INFO!B30=0," ",COUNTRY_INFO!B30) -> South | C30: =IF(COUNTRY_INFO!C30=0," ",COUNTRY_INFO!C30) -> Nyanza | D30: =IF(COUNTRY_INFO!$R$9:$R$1000="T2 (PZQ)", COUNTRY_INFO!$R$9:$R$1000, " ") ->  | I30: 0 | M30: 0
A31: =IF(COUNTRY_INFO!A31=0," ",COUNTRY_INFO!A31) -> Rwanda | B31: =IF(COUNTRY_INFO!B31=0," ",COUNTRY_INFO!B31) -> Kigali | C31: =IF(COUNTRY_INFO!C31=0," ",COUNTRY_INFO!C31) -> Nyarugenge | D31: =IF(COUNTRY_INFO!$R$9:$R$1000="T2 (PZQ)", COUNTRY_INFO!$R$9:$R$1000, " ") ->  | I31: 0 | M31: 0
A32: =IF(COUNTRY_INFO!A32=0," ",COUNTRY_INFO!A32) -> Rwanda | B32: =IF(COUNTRY_INFO!B32=0," ",COUNTRY_INFO!B32) -> South | C32: =IF(COUNTRY_INFO!C32=0," ",COUNTRY_INFO!C32) -> Nyaruguru | D32: =IF(COUNTRY_INFO!$R$9:$R$1000="T2 (PZQ)", COUNTRY_INFO!$R$9:$R$1000, " ") ->  | I32: 0 | M32: 0
A33: =IF(COUNTRY_INFO!A33=0," ",COUNTRY_INFO!A33) -> Rwanda | B33: =IF(COUNTRY_INFO!B33=0," ",COUNTRY_INFO!B33) -> West | C33: =IF(COUNTRY_INFO!C33=0," ",COUNTRY_INFO!C33) -> Rubavu | D33: =IF(COUNTRY_INFO!$R$9:$R$1000="T2 (PZQ)", COUNTRY_INFO!$R$9:$R$1000, " ") ->  | I33: 0 | M33: 0
A34: =IF(COUNTRY_INFO!A34=0," ",COUNTRY_INFO!A34) -> Rwanda | B34: =IF(COUNTRY_INFO!B34=0," ",COUNTRY_INFO!B34) -> South | C34: =IF(COUNTRY_INFO!C34=0," ",COUNTRY_INFO!C34) -> Ruhango | D34: =IF(COUNTRY_INFO!$R$9:$R$1000="T2 (PZQ)", COUNTRY_INFO!$R$9:$R$1000, " ") ->  | I34: 0 | M34: 0
A35: =IF(COUNTRY_INFO!A35=0," ",COUNTRY_INFO!A35) -> Rwanda | B35: =IF(COUNTRY_INFO!B35=0," ",COUNTRY_INFO!B35) -> North | C35: =IF(COUNTRY_INFO!C35=0," ",COUNTRY_INFO!C35) -> Rulindo | D35: =IF(COUNTRY_INFO!$R$9:$R$1000="T2 (PZQ)", COUNTRY_INFO!$R$9:$R$1000, " ") ->  | I35: 0 | M35: 0
A36: =IF(COUNTRY_INFO!A36=0," ",COUNTRY_INFO!A36) -> Rwanda | B36: =IF(COUNTRY_INFO!B36=0," ",COUNTRY_INFO!B36) -> West | C36: =IF(COUNTRY_INFO!C36=0," ",COUNTRY_INFO!C36) -> Rusizi | D36: =IF(COUNTRY_INFO!$R$9:$R$1000="T2 (PZQ)", COUNTRY_INFO!$R$9:$R$1000, " ") ->  | I36: 0 | M36: 0
A37: =IF(COUNTRY_INFO!A37=0," ",COUNTRY_INFO!A37) -> Rwanda | B37: =IF(COUNTRY_INFO!B37=0," ",COUNTRY_INFO!B37) -> West | C37: =IF(COUNTRY_INFO!C37=0," ",COUNTRY_INFO!C37) -> Rutsiro | D37: =IF(COUNTRY_INFO!$R$9:$R$1000="T2 (PZQ)", COUNTRY_INFO!$R$9:$R$1000, " ") ->  | I37: 0 | M37: 0
A38: =IF(COUNTRY_INFO!A38=0," ",COUNTRY_INFO!A38) -> Rwanda | B38: =IF(COUNTRY_INFO!B38=0," ",COUNTRY_INFO!B38) -> East | C38: =IF(COUNTRY_INFO!C38=0," ",COUNTRY_INFO!C38) -> Rwamagana | D38: =IF(COUNTRY_INFO!$R$9:$R$1000="T2 (PZQ)", COUNTRY_INFO!$R$9:$R$1000, " ") ->  | I38: 0 | M38: 0

Sheet T3_R1
A1: T 3 - Albendazole (ALB) or Mebendazole (MBD) - Round 1
A2: Administrative structure, population requiring PC by age group, population treated by age group and coverage
A4: TOTAL | G4: =SUM(G$9:G$1000) -> 1375888 | H4: 3317376 | I4: 0 | J4: 4693264 | K4: 1412841 | L4: 3323164 | M4: 0 | N4: 4736005 | O4: =IF(G4<>0, IF(K4/G4*100=0, "-", K4/G4*100), " ") -> 102.6857564 | P4: =IF(H4<>0, IF(L4/H4*100=0, "-", L4/H4*100), " ") -> 100.1744752 | Q4: =IF(I4<>0, IF(M4/I4*100=0, "-", M4/I4*100), " ") ->  | R4: =IF(J4<>0, IF(N4/J4*100=0, "-", N4/J4*100), " ") -> 100.9106882
D6: PC implemented | E6: Medicine | F6: Date | G6: Population targeted for T3 | K6: Population treated | O6: Programme coverage (%)
A7: Country | B7: Province/State | C7: District | G7: PreSAC | H7: SAC | I7: Adults | J7: Total | K7: PreSAC | L7: SAC | M7: Adults | N7: Total | O7: PreSAC | P7: SAC | Q7: Adults | R7: Total
A9: =IF(COUNTRY_INFO!A9=0," ",COUNTRY_INFO!A9) -> Rwanda | B9: =IF(COUNTRY_INFO!B9=0," ",COUNTRY_INFO!B9) -> East | C9: =IF(COUNTRY_INFO!C9=0," ",COUNTRY_INFO!C9) -> Bugesera | D9: =IF(OR(COUNTRY_INFO!$Q$9:$Q$1000="T3 (ALB/MBD)",COUNTRY_INFO!$R$9:$R$1000="T3 (ALB/MBD)"), "T3 (ALB/MBD)", " ") -> T3 (ALB/MBD) | F9: 26 - 29 Apr 2016 | G9: 52938 | H9: 113496 | J9: =SUM(G9:I9) -> 166434 | K9: 43372 | L9: 115275 | N9: =SUM(K9:M9) -> 158647 | O9: =IF(G9<>0, IF(K9/G9*100=0, "-", K9/G9*100), " ") -> 81.92980468 | P9: =IF(H9<>0, IF(L9/H9*100=0, "-", L9/H9*100), " ") -> 101.5674561 | Q9: =IF(I9<>0, IF(M9/I9*100=0, "-", M9/I9*100), " ") ->  | R9: =IF(J9<>0, IF(N9/J9*100=0, "-", N9/J9*100), " ") -> 95.32126849
A10: =IF(COUNTRY_INFO!A10=0," ",COUNTRY_INFO!A10) -> Rwanda | B10: =IF(COUNTRY_INFO!B10=0," ",COUNTRY_INFO!B10) -> North | C10: =IF(COUNTRY_INFO!C10=0," ",COUNTRY_INFO!C10) -> Burera | D10: =IF(OR(COUNTRY_INFO!$Q$9:$Q$1000="T3 (ALB/MBD)",COUNTRY_INFO!$R$9:$R$1000="T3 (ALB/MBD)"), "T3 (ALB/MBD)", " ") -> T3 (ALB/MBD) | F10: 26 - 29 Apr 2016 | G10: 40281 | H10: 121217 | J10: =SUM(G10:I10) -> 161498 | K10: 45670 | L10: 119538 | N10: =SUM(K10:M10) -> 165208 | O10: =IF(G10<>0, IF(K10/G10*100=0, "-", K10/G10*100), " ") -> 113.3785159 | P10: =IF(H10<>0, IF(L10/H10*100=0, "-", L10/H10*100), " ") -> 98.61488075 | Q10: =IF(I10<>0, IF(M10/I10*100=0, "-", M10/I10*100), " ") ->  | R10: =IF(J10<>0, IF(N10/J10*100=0, "-", N10/J10*100), " ") -> 102.2972421
A11: =IF(COUNTRY_INFO!A11=0," ",COUNTRY_INFO!A11) -> Rwanda | B11: =IF(COUNTRY_INFO!B11=0," ",COUNTRY_INFO!B11) -> North | C11: =IF(COUNTRY_INFO!C11=0," ",COUNTRY_INFO!C11) -> Gakenke | D11: =IF(OR(COUNTRY_INFO!$Q$9:$Q$1000="T3 (ALB/MBD)",COUNTRY_INFO!$R$9:$R$1000="T3 (ALB/MBD)"), "T3 (ALB/MBD)", " ") -> T3 (ALB/MBD) | F11: 26 - 29 Apr 2016 | G11: 39355 | H11: 110193 | J11: 149548 | K11: 40183 | L11: 93310 | N11: 133493 | O11: 102.1039258 | P11: 84.6787001 | R11: 89.26431647
A12: =IF(COUNTRY_INFO!A12=0," ",COUNTRY_INFO!A12) -> Rwanda | B12: =IF(COUNTRY_INFO!B12=0," ",COUNTRY_INFO!B12) -> Kigali | C12: =IF(COUNTRY_INFO!C12=0," ",COUNTRY_INFO!C12) -> Gasabo | D12: =IF(OR(COUNTRY_INFO!$Q$9:$Q$1000="T3 (ALB/MBD)",COUNTRY_INFO!$R$9:$R$1000="T3 (ALB/MBD)"), "T3 (ALB/MBD)", " ") -> T3 (ALB/MBD) | F12: 26 - 29 Apr 2016 | G12: 66311 | H12: 127927 | J12: 194238 | K12: 65600 | L12: 138672 | N12: 204272 | O12: 98.9277797 | P12: 108.3993215 | R12: 105.1658275
A13: =IF(COUNTRY_INFO!A13=0," ",COUNTRY_INFO!A13) -> Rwanda | B13: =IF(COUNTRY_INFO!B13=0," ",COUNTRY_INFO!B13) -> East | C13: =IF(COUNTRY_INFO!C13=0," ",COUNTRY_INFO!C13) -> Gatsibo | D13: =IF(OR(COUNTRY_INFO!$Q$9:$Q$1000="T3 (ALB/MBD)",COUNTRY_INFO!$R$9:$R$1000="T3 (ALB/MBD)"), "T3 (ALB/MBD)", " ") -> T3 (ALB/MBD) | F13: 26 - 29 Apr 2016 | G13: 59500 | H13: 147311 | J13: 206811 | K13: 60627 | L13: 134253 | N13: 194880 | O13: 101.8941176 | P13: 91.1357604 | R13: 94.2309645
A14: =IF(COUNTRY_INFO!A14=0," ",COUNTRY_INFO!A14) -> Rwanda | B14: =IF(COUNTRY_INFO!B14=0," ",COUNTRY_INFO!B14) -> North | C14: =IF(COUNTRY_INFO!C14=0," ",COUNTRY_INFO!C14) -> Gicumbi | D14: =IF(OR(COUNTRY_INFO!$Q$9:$Q$1000="T3 (ALB/MBD)",COUNTRY_INFO!$R$9:$R$1000="T3 (ALB/MBD)"), "T3 (ALB/MBD)", " ") -> T3 (ALB/MBD) | F14: 26 - 29 Apr 2016 | G14: 46030 | H14: 135460 | J14: 181490 | K14: 45980 | L14: 113698 | N14: 159678 | O14: 99.89137519 | P14: 83.93474088 | R14: 87.98170698
A15: =IF(COUNTRY_INFO!A15=0," ",COUNTRY_INFO!A15) -> Rwanda | B15: =IF(COUNTRY_INFO!B15=0," ",COUNTRY_INFO!B15) -> South | C15: =IF(COUNTRY_INFO!C15=0," ",COUNTRY_INFO!C15) -> Gisagara | D15: =IF(OR(COUNTRY_INFO!$Q$9:$Q$1000="T3 (ALB/MBD)",COUNTRY_INFO!$R$9:$R$1000="T3 (ALB/MBD)"), "T3 (ALB/MBD)", " ") -> T3 (ALB/MBD) | F15: 26 - 29 Apr 2016 | G15: 47174 | H15: 102210 | J15: 149384 | K15: 41179 | L15: 97531 | N15: 138710 | O15: 87.29172849 | P15: 95.42217004 | R15: 92.85465646
A16: =IF(COUNTRY_INFO!A16=0," ",COUNTRY_INFO!A16) -> Rwanda | B16: =IF(COUNTRY_INFO!B16=0," ",COUNTRY_INFO!B16) -> South | C16: =IF(COUNTRY_INFO!C16=0," ",COUNTRY_INFO!C16) -> Huye | D16: =IF(OR(COUNTRY_INFO!$Q$9:$Q$1000="T3 (ALB/MBD)",COUNTRY_INFO!$R$9:$R$1000="T3 (ALB/MBD)"), "T3 (ALB/MBD)", " ") -> T3 (ALB/MBD) | F16: 26 - 29 Apr 2016 | G16: 41121 | H16: 95708 | J16: 136829 | K16: 40211 | L16: 105260 | N16: 145471 | O16: 97.7870188 | P16: 109.9803569 | R16: 106.3159126
A17: =IF(COUNTRY_INFO!A17=0," ",COUNTRY_INFO!A17) -> Rwanda | B17: =IF(COUNTRY_INFO!B17=0," ",COUNTRY_INFO!B17) -> South | C17: =IF(COUNTRY_INFO!C17=0," ",COUNTRY_INFO!C17) -> Kamonyi | D17: =IF(OR(COUNTRY_INFO!$Q$9:$Q$1000="T3 (ALB/MBD)",COUNTRY_INFO!$R$9:$R$1000="T3 (ALB/MBD)"), "T3 (ALB/MBD)", " ") -> T3 (ALB/MBD) | F17: 26 - 29 Apr 2016 | G17: 43014 | H17: 105649 | J17: 148663 | K17: 42772 | L17: 103455 | N17: 146227 | O17: 99.43739248 | P17: 97.9233121 | R17: 98.36139456
A18: =IF(COUNTRY_INFO!A18=0," ",COUNTRY_INFO!A18) -> Rwanda | B18: =IF(COUNTRY_INFO!B18=0," ",COUNTRY_INFO!B18) -> West | C18: =IF(COUNTRY_INFO!C18=0," ",COUNTRY_INFO!C18) -> Karongi | D18: =IF(OR(COUNTRY_INFO!$Q$9:$Q$1000="T3 (ALB/MBD)",COUNTRY_INFO!$R$9:$R$1000="T3 (ALB/MBD)"), "T3 (ALB/MBD)", " ") -> T3 (ALB/MBD) | F18: 26 - 29 Apr 2016 | G18: 42652 | H18: 109203 | J18: 151855 | K18: 44363 | L18: 111554 | N18: 155917 | O18: 104.0115352 | P18: 102.1528713 | R18: 102.6749202
A19: =IF(COUNTRY_INFO!A19=0," ",COUNTRY_INFO!A19) -> Rwanda | B19: =IF(COUNTRY_INFO!B19=0," ",COUNTRY_INFO!B19) -> East | C19: =IF(COUNTRY_INFO!C19=0," ",COUNTRY_INFO!C19) -> Kayonza | D19: =IF(OR(COUNTRY_INFO!$Q$9:$Q$1000="T3 (ALB/MBD)",COUNTRY_INFO!$R$9:$R$1000="T3 (ALB/MBD)"), "T3 (ALB/MBD)", " ") -> T3 (ALB/MBD) | F19: 26 - 29 Apr 2016 | G19: 47671 | H19: 114411 | J19: 162082 | K19: 53662 | L19: 116177 | N19: 169839 | O19: 112.567389 | P19: 101.5435579 | R19: 104.7858491
A20: =IF(COUNTRY_INFO!A20=0," ",COUNTRY_INFO!A20) -> Rwanda | B20: =IF(COUNTRY_INFO!B20=0," ",COUNTRY_INFO!B20) -> Kigali | C20: =IF(COUNTRY_INFO!C20=0," ",COUNTRY_INFO!C20) -> Kicukiro | D20: =IF(OR(COUNTRY_INFO!$Q$9:$Q$1000="T3 (ALB/MBD)",COUNTRY_INFO!$R$9:$R$1000="T3 (ALB/MBD)"), "T3 (ALB/MBD)", " ") -> T3 (ALB/MBD) | F20: 26 - 29 Apr 2016 | G20: 35654 | H20: 78015 | J20: 113669 | K20: 45083 | L20: 91187 | N20: 136270 | O20: 126.4458406 | P20: 116.8839326 | R20: 119.8831696
A21: =IF(COUNTRY_INFO!A21=0," ",COUNTRY_INFO!A21) -> Rwanda | B21: =IF(COUNTRY_INFO!B21=0," ",COUNTRY_INFO!B21) -> East | C21: =IF(COUNTRY_INFO!C21=0," ",COUNTRY_INFO!C21) -> Kirehe | D21: =IF(OR(COUNTRY_INFO!$Q$9:$Q$1000="T3 (ALB/MBD)",COUNTRY_INFO!$R$9:$R$1000="T3 (ALB/MBD)"), "T3 (ALB/MBD)", " ") -> T3 (ALB/MBD) | F21: 26 - 29 Apr 2016 | G21: 47146 | H21: 113906 | J21: 161052 | K21: 46658 | L21: 114859 | N21: 161517 | O21: 98.96491749 | P21: 100.8366548 | R21: 100.2887266
A22: =IF(COUNTRY_INFO!A22=0," ",COUNTRY_INFO!A22) -> Rwanda | B22: =IF(COUNTRY_INFO!B22=0," ",COUNTRY_INFO!B22) -> South | C22: =IF(COUNTRY_INFO!C22=0," ",COUNTRY_INFO!C22) -> Muhanga | D22: =IF(OR(COUNTRY_INFO!$Q$9:$Q$1000="T3 (ALB/MBD)",COUNTRY_INFO!$R$9:$R$1000="T3 (ALB/MBD)"), "T3 (ALB/MBD)", " ") -> T3 (ALB/MBD) | F22: 26 - 29 Apr 2016 | G22: 36426 | H22: 98668 | J22: 135094 | K22: 37404 | L22: 93645 | N22: 131049 | O22: 102.6848954 | P22: 94.90919042 | R22: 97.00578856
A23: =IF(COUNTRY_INFO!A23=0," ",COUNTRY_INFO!A23) -> Rwanda | B23: =IF(COUNTRY_INFO!B23=0," ",COUNTRY_INFO!B23) -> North | C23: =IF(COUNTRY_INFO!C23=0," ",COUNTRY_INFO!C23) -> Musanze | D23: =IF(OR(COUNTRY_INFO!$Q$9:$Q$1000="T3 (ALB/MBD)",COUNTRY_INFO!$R$9:$R$1000="T3 (ALB/MBD)"), "T3 (ALB/MBD)", " ") -> T3 (ALB/MBD) | F23: 26 - 29 Apr 2016 | G23: 44889 | H23: 120385 | J23: 165274 | K23: 47892 | L23: 126987 | N23: 174879 | O23: 106.6898349 | P23: 105.4840719 | R23: 105.8115614
A24: =IF(COUNTRY_INFO!A24=0," ",COUNTRY_INFO!A24) -> Rwanda | B24: =IF(COUNTRY_INFO!B24=0," ",COUNTRY_INFO!B24) -> East | C24: =IF(COUNTRY_INFO!C24=0," ",COUNTRY_INFO!C24) -> Ngoma | D24: =IF(OR(COUNTRY_INFO!$Q$9:$Q$1000="T3 (ALB/MBD)",COUNTRY_INFO!$R$9:$R$1000="T3 (ALB/MBD)"), "T3 (ALB/MBD)", " ") -> T3 (ALB/MBD) | F24: 26 - 29 Apr 2016 | G24: 60111 | H24: 105287 | J24: 165398 | K24: 55010 | L24: 110250 | N24: 165260 | O24: 91.51403237 | P24: 104.7137823 | R24: 99.91656489
A25: =IF(COUNTRY_INFO!A25=0," ",COUNTRY_INFO!A25) -> Rwanda | B25: =IF(COUNTRY_INFO!B25=0," ",COUNTRY_INFO!B25) -> West | C25: =IF(COUNTRY_INFO!C25=0," ",COUNTRY_INFO!C25) -> Ngororero | D25: =IF(OR(COUNTRY_INFO!$Q$9:$Q$1000="T3 (ALB/MBD)",COUNTRY_INFO!$R$9:$R$1000="T3 (ALB/MBD)"), "T3 (ALB/MBD)", " ") -> T3 (ALB/MBD) | F25: 26 - 29 Apr 2016 | G25: 44376 | H25: 113897 | J25: 158273 | K25: 48443 | L25: 108221 | N25: 156664 | O25: 109.1648639 | P25: 95.01655004 | R25: 98.9834021
A26: =IF(COUNTRY_INFO!A26=0," ",COUNTRY_INFO!A26) -> Rwanda | B26: =IF(COUNTRY_INFO!B26=0," ",COUNTRY_INFO!B26) -> West | C26: =IF(COUNTRY_INFO!C26=0," ",COUNTRY_INFO!C26) -> Nyabihu | D26: =IF(OR(COUNTRY_INFO!$Q$9:$Q$1000="T3 (ALB/MBD)",COUNTRY_INFO!$R$9:$R$1000="T3 (ALB/MBD)"), "T3 (ALB/MBD)", " ") -> T3 (ALB/MBD) | F26: 26 - 29 Apr 2016 | G26: 38540 | H26: 102882 | J26: 141422 | K26: 44860 | L26: 92654 | N26: 137514 | O26: 116.398547 | P26: 90.05851364 | R26: 97.23663928
A27: =IF(COUNTRY_INFO!A27=0," ",COUNTRY_INFO!A27) -> Rwanda | B27: =IF(COUNTRY_INFO!B27=0," ",COUNTRY_INFO!B27) -> East | C27: =IF(COUNTRY_INFO!C27=0," ",COUNTRY_INFO!C27) -> Nyagatare | D27: =IF(OR(COUNTRY_INFO!$Q$9:$Q$1000="T3 (ALB/MBD)",COUNTRY_INFO!$R$9:$R$1000="T3 (ALB/MBD)"), "T3 (ALB/MBD)", " ") -> T3 (ALB/MBD) | F27: 26 - 29 Apr 2016 | G27: 64528 | H27: 158998 | J27: 223526 | K27: 69528 | L27: 158078 | N27: 227606 | O27: 107.7485743 | P27: 99.42137637 | R27: 101.825291
A28: =IF(COUNTRY_INFO!A28=0," ",COUNTRY_INFO!A28) -> Rwanda | B28: =IF(COUNTRY_INFO!B28=0," ",COUNTRY_INFO!B28) -> South | C28: =IF(COUNTRY_INFO!C28=0," ",COUNTRY_INFO!C28) -> Nyamagabe | D28: =IF(OR(COUNTRY_INFO!$Q$9:$Q$1000="T3 (ALB/MBD)",COUNTRY_INFO!$R$9:$R$1000="T3 (ALB/MBD)"), "T3 (ALB/MBD)", " ") -> T3 (ALB/MBD) | F28: 26 - 29 Apr 2016 | G28: 42382 | H28: 116173 | J28: 158555 | K28: 40595 | L28: 117566 | N28: 158161 | O28: 95.78358737 | P28: 101.1990738 | R28: 99.75150579
A29: =IF(COUNTRY_INFO!A29=0," ",COUNTRY_INFO!A29) -> Rwanda | B29: =IF(COUNTRY_INFO!B29=0," ",COUNTRY_INFO!B29) -> West | C29: =IF(COUNTRY_INFO!C29=0," ",COUNTRY_INFO!C29) -> Nyamasheke | D29: =IF(OR(COUNTRY_INFO!$Q$9:$Q$1000="T3 (ALB/MBD)",COUNTRY_INFO!$R$9:$R$1000="T3 (ALB/MBD)"), "T3 (ALB/MBD)", " ") -> T3 (ALB/MBD) | F29: 26 - 29 Apr 2016 | G29: 51194 | H29: 110849 | J29: 162043 | K29: 54821 | L29: 125601 | N29: 180422 | O29: 107.0848146 | P29: 113.308194 | R29: 111.3420512
A30: =IF(COUNTRY_INFO!A30=0," ",COUNTRY_INFO!A30) -> Rwanda | B30: =IF(COUNTRY_INFO!B30=0," ",COUNTRY_INFO!B30) -> South | C30: =IF(COUNTRY_INFO!C30=0," ",COUNTRY_INFO!C30) -> Nyanza | D30: =IF(OR(COUNTRY_INFO!$Q$9:$Q$1000="T3 (ALB/MBD)",COUNTRY_INFO!$R$9:$R$1000="T3 (ALB/MBD)"), "T3 (ALB/MBD)", " ") -> T3 (ALB/MBD) | F30: 26 - 29 Apr 2016 | G30: 43047 | H30: 95061 | J30: 138108 | K30: 40923 | L30: 103094 | N30: 144017 | O30: 95.06585825 | P30: 108.4503635 | R30: 104.2785356
A31: =IF(COUNTRY_INFO!A31=0," ",COUNTRY_INFO!A31) -> Rwanda | B31: =IF(COUNTRY_INFO!B31=0," ",COUNTRY_INFO!B31) -> Kigali | C31: =IF(COUNTRY_INFO!C31=0," ",COUNTRY_INFO!C31) -> Nyarugenge | D31: =IF(OR(COUNTRY_INFO!$Q$9:$Q$1000="T3 (ALB/MBD)",COUNTRY_INFO!$R$9:$R$1000="T3 (ALB/MBD)"), "T3 (ALB/MBD)", " ") -> T3 (ALB/MBD) | F31: 26 - 29 Apr 2016 | G31: 32794 | H31: 69057 | J31: 101851 | K31: 41553 | L31: 80124 | N31: 121677 | O31: 126.7091541 | P31: 116.0258917 | R31: 119.4656901
A32: =IF(COUNTRY_INFO!A32=0," ",COUNTRY_INFO!A32) -> Rwanda | B32: =IF(COUNTRY_INFO!B32=0," ",COUNTRY_INFO!B32) -> South | C32: =IF(COUNTRY_INFO!C32=0," ",COUNTRY_INFO!C32) -> Nyaruguru | D32: =IF(OR(COUNTRY_INFO!$Q$9:$Q$1000="T3 (ALB/MBD)",COUNTRY_INFO!$R$9:$R$1000="T3 (ALB/MBD)"), "T3 (ALB/MBD)", " ") -> T3 (ALB/MBD) | F32: 26 - 29 Apr 2016 | G32: 38161 | H32: 104371 | J32: 142532 | K32: 38708 | L32: 93067 | N32: 131775 | O32: 101.4334006 | P32: 89.16940529 | R32: 92.45292285
A33: =IF(COUNTRY_INFO!A33=0," ",COUNTRY_INFO!A33) -> Rwanda | B33: =IF(COUNTRY_INFO!B33=0," ",COUNTRY_INFO!B33) -> West | C33: =IF(COUNTRY_INFO!C33=0," ",COUNTRY_INFO!C33) -> Rubavu | D33: =IF(OR(COUNTRY_INFO!$Q$9:$Q$1000="T3 (ALB/MBD)",COUNTRY_INFO!$R$9:$R$1000="T3 (ALB/MBD)"), "T3 (ALB/MBD)", " ") -> T3 (ALB/MBD) | F33: 26 - 29 Apr 2016 | G33: 57255 | H33: 120773 | J33: 178028 | K33: 55916 | L33: 125105 | N33: 181021 | O33: 97.66133962 | P33: 103.5868944 | R33: 101.6811962
A34: =IF(COUNTRY_INFO!A34=0," ",COUNTRY_INFO!A34) -> Rwanda | B34: =IF(COUNTRY_INFO!B34=0," ",COUNTRY_INFO!B34) -> South | C34: =IF(COUNTRY_INFO!C34=0," ",COUNTRY_INFO!C34) -> Ruhango | D34: =IF(OR(COUNTRY_INFO!$Q$9:$Q$1000="T3 (ALB/MBD)",COUNTRY_INFO!$R$9:$R$1000="T3 (ALB/MBD)"), "T3 (ALB/MBD)", " ") -> T3 (ALB/MBD) | F34: 26 - 29 Apr 2016 | G34: 41119 | H34: 101734 | J34: 142853 | K34: 43095 | L34: 105357 | N34: 148452 | O34: 104.8055643 | P34: 103.561248 | R34: 103.9194137
A35: =IF(COUNTRY_INFO!A35=0," ",COUNTRY_INFO!A35) -> Rwanda | B35: =IF(COUNTRY_INFO!B35=0," ",COUNTRY_INFO!B35) -> North | C35: =IF(COUNTRY_INFO!C35=0," ",COUNTRY_INFO!C35) -> Rulindo | D35: =IF(OR(COUNTRY_INFO!$Q$9:$Q$1000="T3 (ALB/MBD)",COUNTRY_INFO!$R$9:$R$1000="T3 (ALB/MBD)"), "T3 (ALB/MBD)", " ") -> T3 (ALB/MBD) | F35: 26 - 29 Apr 2016 | G35: 33473 | H35: 91811 | J35: 125284 | K35: 39412 | L35: 92936 | N35: 132348 | O35: 117.7426583 | P35: 101.2253434 | R35: 105.6383896
A36: =IF(COUNTRY_INFO!A36=0," ",COUNTRY_INFO!A36) -> Rwanda | B36: =IF(COUNTRY_INFO!B36=0," ",COUNTRY_INFO!B36) -> West | C36: =IF(COUNTRY_INFO!C36=0," ",COUNTRY_INFO!C36) -> Rusizi | D36: =IF(OR(COUNTRY_INFO!$Q$9:$Q$1000="T3 (ALB/MBD)",COUNTRY_INFO!$R$9:$R$1000="T3 (ALB/MBD)"), "T3 (ALB/MBD)", " ") -> T3 (ALB/MBD) | F36: 26 - 29 Apr 2016 | G36: 54637 | H36: 127042 | J36: 181679 | K36: 57624 | L36: 129839 | N36: 187463 | O36: 105.4669912 | P36: 102.2016341 | R36: 103.1836371
A37: =IF(COUNTRY_INFO!A37=0," ",COUNTRY_INFO!A37) -> Rwanda | B37: =IF(COUNTRY_INFO!B37=0," ",COUNTRY_INFO!B37) -> West | C37: =IF(COUNTRY_INFO!C37=0," ",COUNTRY_INFO!C37) -> Rutsiro | D37: =IF(OR(COUNTRY_INFO!$Q$9:$Q$1000="T3 (ALB/MBD)",COUNTRY_INFO!$R$9:$R$1000="T3 (ALB/MBD)"), "T3 (ALB/MBD)", " ") -> T3 (ALB/MBD) | F37: 26 - 29 Apr 2016 | G37: 41732 | H37: 112244 | J37: 153976 | K37: 40867 | L37: 102649 | N37: 143516 | O37: 97.92725007 | P37: 91.45165889 | R37: 93.20673352
A38: =IF(COUNTRY_INFO!A38=0," ",COUNTRY_INFO!A38) -> Rwanda | B38: =IF(COUNTRY_INFO!B38=0," ",COUNTRY_INFO!B38) -> East | C38: =IF(COUNTRY_INFO!C38=0," ",COUNTRY_INFO!C38) -> Rwamagana | D38: =IF(OR(COUNTRY_INFO!$Q$9:$Q$1000="T3 (ALB/MBD)",COUNTRY_INFO!$R$9:$R$1000="T3 (ALB/MBD)"), "T3 (ALB/MBD)", " ") -> T3 (ALB/MBD) | F38: 26 - 29 Apr 2016 | G38: 42377 | H38: 93438 | J38: 135815 | K38: 40830 | L38: 103222 | N38: 144052 | O38: 96.34943483 | P38: 110.4711145 | R38: 106.0648677

Sheet T3_R2
A1: T 3 - Albendazole (ALB) or Mebendazole (MBD) - Round 2
A2: Administrative structure, population requiring PC by age group, population treated by age group and coverage
A4: TOTAL | G4: =SUM(G$9:G$1000) -> 0 | H4: 0 | I4: 0 | J4: 0 | K4: 0 | L4: 0 | M4: 0 | N4: 0 | O4: =IF(G4<>0, IF(K4/G4*100=0, "-", K4/G4*100), " ") ->  | P4: =IF(H4<>0, IF(L4/H4*100=0, "-", L4/H4*100), " ") ->  | Q4: =IF(I4<>0, IF(M4/I4*100=0, "-", M4/I4*100), " ") ->  | R4: =IF(J4<>0, IF(N4/J4*100=0, "-", N4/J4*100), " ") -> 
D6: PC implemented | E6: Medicine | F6: Date | G6: Population targeted for T3 | K6: Population treated | O6: Programme coverage (%)
A7: Country | B7: Province/State | C7: District | G7: PreSAC | H7: SAC | I7: Adults | J7: Total | K7: PreSAC | L7: SAC | M7: Adults | N7: Total | O7: PreSAC | P7: SAC | Q7: Adults | R7: Total
A9: =IF(COUNTRY_INFO!A9=0," ",COUNTRY_INFO!A9) -> Rwanda | B9: =IF(COUNTRY_INFO!B9=0," ",COUNTRY_INFO!B9) -> East | C9: =IF(COUNTRY_INFO!C9=0," ",COUNTRY_INFO!C9) -> Bugesera | D9: =IF(AND(COUNTRY_INFO!$Q$9:$Q$1000="T3 (ALB/MBD)",COUNTRY_INFO!$R$9:$R$1000="T3 (ALB/MBD)"), "T3 (ALB/MBD)", " ") ->  | J9: =SUM(G9:I9) -> 0 | N9: =SUM(K9:M9) -> 0 | O9: =IF(G9<>0, IF(K9/G9*100=0, "-", K9/G9*100), " ") ->  | P9: =IF(H9<>0, IF(L9/H9*100=0, "-", L9/H9*100), " ") ->  | Q9: =IF(I9<>0, IF(M9/I9*100=0, "-", M9/I9*100), " ") ->  | R9: =IF(J9<>0, IF(N9/J9*100=0, "-", N9/J9*100), " ") -> 
A10: =IF(COUNTRY_INFO!A10=0," ",COUNTRY_INFO!A10) -> Rwanda | B10: =IF(COUNTRY_INFO!B10=0," ",COUNTRY_INFO!B10) -> North | C10: =IF(COUNTRY_INFO!C10=0," ",COUNTRY_INFO!C10) -> Burera | D10: =IF(AND(COUNTRY_INFO!$Q$9:$Q$1000="T3 (ALB/MBD)",COUNTRY_INFO!$R$9:$R$1000="T3 (ALB/MBD)"), "T3 (ALB/MBD)", " ") ->  | J10: =SUM(G10:I10) -> 0 | N10: =SUM(K10:M10) -> 0 | O10: =IF(G10<>0, IF(K10/G10*100=0, "-", K10/G10*100), " ") ->  | P10: =IF(H10<>0, IF(L10/H10*100=0, "-", L10/H10*100), " ") ->  | Q10: =IF(I10<>0, IF(M10/I10*100=0, "-", M10/I10*100), " ") ->  | R10: =IF(J10<>0, IF(N10/J10*100=0, "-", N10/J10*100), " ") -> 
A11: =IF(COUNTRY_INFO!A11=0," ",COUNTRY_INFO!A11) -> Rwanda | B11: =IF(COUNTRY_INFO!B11=0," ",COUNTRY_INFO!B11) -> North | C11: =IF(COUNTRY_INFO!C11=0," ",COUNTRY_INFO!C11) -> Gakenke | D11: =IF(AND(COUNTRY_INFO!$Q$9:$Q$1000="T3 (ALB/MBD)",COUNTRY_INFO!$R$9:$R$1000="T3 (ALB/MBD)"), "T3 (ALB/MBD)", " ") ->  | J11: 0 | N11: 0
A12: =IF(COUNTRY_INFO!A12=0," ",COUNTRY_INFO!A12) -> Rwanda | B12: =IF(COUNTRY_INFO!B12=0," ",COUNTRY_INFO!B12) -> Kigali | C12: =IF(COUNTRY_INFO!C12=0," ",COUNTRY_INFO!C12) -> Gasabo | D12: =IF(AND(COUNTRY_INFO!$Q$9:$Q$1000="T3 (ALB/MBD)",COUNTRY_INFO!$R$9:$R$1000="T3 (ALB/MBD)"), "T3 (ALB/MBD)", " ") ->  | E12: ALB | J12: 0 | N12: 0
A13: =IF(COUNTRY_INFO!A13=0," ",COUNTRY_INFO!A13) -> Rwanda | B13: =IF(COUNTRY_INFO!B13=0," ",COUNTRY_INFO!B13) -> East | C13: =IF(COUNTRY_INFO!C13=0," ",COUNTRY_INFO!C13) -> Gatsibo | D13: =IF(AND(COUNTRY_INFO!$Q$9:$Q$1000="T3 (ALB/MBD)",COUNTRY_INFO!$R$9:$R$1000="T3 (ALB/MBD)"), "T3 (ALB/MBD)", " ") ->  | E13: ALB | J13: 0 | N13: 0
A14: =IF(COUNTRY_INFO!A14=0," ",COUNTRY_INFO!A14) -> Rwanda | B14: =IF(COUNTRY_INFO!B14=0," ",COUNTRY_INFO!B14) -> North | C14: =IF(COUNTRY_INFO!C14=0," ",COUNTRY_INFO!C14) -> Gicumbi | D14: =IF(AND(COUNTRY_INFO!$Q$9:$Q$1000="T3 (ALB/MBD)",COUNTRY_INFO!$R$9:$R$1000="T3 (ALB/MBD)"), "T3 (ALB/MBD)", " ") ->  | J14: 0 | N14: 0
A15: =IF(COUNTRY_INFO!A15=0," ",COUNTRY_INFO!A15) -> Rwanda | B15: =IF(COUNTRY_INFO!B15=0," ",COUNTRY_INFO!B15) -> South | C15: =IF(COUNTRY_INFO!C15=0," ",COUNTRY_INFO!C15) -> Gisagara | D15: =IF(AND(COUNTRY_INFO!$Q$9:$Q$1000="T3 (ALB/MBD)",COUNTRY_INFO!$R$9:$R$1000="T3 (ALB/MBD)"), "T3 (ALB/MBD)", " ") ->  | E15: ALB | J15: 0 | N15: 0
A16: =IF(COUNTRY_INFO!A16=0," ",COUNTRY_INFO!A16) -> Rwanda | B16: =IF(COUNTRY_INFO!B16=0," ",COUNTRY_INFO!B16) -> South | C16: =IF(COUNTRY_INFO!C16=0," ",COUNTRY_INFO!C16) -> Huye | D16: =IF(AND(COUNTRY_INFO!$Q$9:$Q$1000="T3 (ALB/MBD)",COUNTRY_INFO!$R$9:$R$1000="T3 (ALB/MBD)"), "T3 (ALB/MBD)", " ") ->  | E16: ALB | J16: 0 | N16: 0
A17: =IF(COUNTRY_INFO!A17=0," ",COUNTRY_INFO!A17) -> Rwanda | B17: =IF(COUNTRY_INFO!B17=0," ",COUNTRY_INFO!B17) -> South | C17: =IF(COUNTRY_INFO!C17=0," ",COUNTRY_INFO!C17) -> Kamonyi | D17: =IF(AND(COUNTRY_INFO!$Q$9:$Q$1000="T3 (ALB/MBD)",COUNTRY_INFO!$R$9:$R$1000="T3 (ALB/MBD)"), "T3 (ALB/MBD)", " ") ->  | E17: ALB | J17: 0 | N17: 0
A18: =IF(COUNTRY_INFO!A18=0," ",COUNTRY_INFO!A18) -> Rwanda | B18: =IF(COUNTRY_INFO!B18=0," ",COUNTRY_INFO!B18) -> West | C18: =IF(COUNTRY_INFO!C18=0," ",COUNTRY_INFO!C18) -> Karongi | D18: =IF(AND(COUNTRY_INFO!$Q$9:$Q$1000="T3 (ALB/MBD)",COUNTRY_INFO!$R$9:$R$1000="T3 (ALB/MBD)"), "T3 (ALB/MBD)", " ") ->  | E18: ALB | J18: 0 | N18: 0
A19: =IF(COUNTRY_INFO!A19=0," ",COUNTRY_INFO!A19) -> Rwanda | B19: =IF(COUNTRY_INFO!B19=0," ",COUNTRY_INFO!B19) -> East | C19: =IF(COUNTRY_INFO!C19=0," ",COUNTRY_INFO!C19) -> Kayonza | D19: =IF(AND(COUNTRY_INFO!$Q$9:$Q$1000="T3 (ALB/MBD)",COUNTRY_INFO!$R$9:$R$1000="T3 (ALB/MBD)"), "T3 (ALB/MBD)", " ") ->  | E19: ALB | J19: 0 | N19: 0
A20: =IF(COUNTRY_INFO!A20=0," ",COUNTRY_INFO!A20) -> Rwanda | B20: =IF(COUNTRY_INFO!B20=0," ",COUNTRY_INFO!B20) -> Kigali | C20: =IF(COUNTRY_INFO!C20=0," ",COUNTRY_INFO!C20) -> Kicukiro | D20: =IF(AND(COUNTRY_INFO!$Q$9:$Q$1000="T3 (ALB/MBD)",COUNTRY_INFO!$R$9:$R$1000="T3 (ALB/MBD)"), "T3 (ALB/MBD)", " ") ->  | E20: ALB | J20: 0 | N20: 0
A21: =IF(COUNTRY_INFO!A21=0," ",COUNTRY_INFO!A21) -> Rwanda | B21: =IF(COUNTRY_INFO!B21=0," ",COUNTRY_INFO!B21) -> East | C21: =IF(COUNTRY_INFO!C21=0," ",COUNTRY_INFO!C21) -> Kirehe | D21: =IF(AND(COUNTRY_INFO!$Q$9:$Q$1000="T3 (ALB/MBD)",COUNTRY_INFO!$R$9:$R$1000="T3 (ALB/MBD)"), "T3 (ALB/MBD)", " ") ->  | E21: ALB | J21: 0 | N21: 0
A22: =IF(COUNTRY_INFO!A22=0," ",COUNTRY_INFO!A22) -> Rwanda | B22: =IF(COUNTRY_INFO!B22=0," ",COUNTRY_INFO!B22) -> South | C22: =IF(COUNTRY_INFO!C22=0," ",COUNTRY_INFO!C22) -> Muhanga | D22: =IF(AND(COUNTRY_INFO!$Q$9:$Q$1000="T3 (ALB/MBD)",COUNTRY_INFO!$R$9:$R$1000="T3 (ALB/MBD)"), "T3 (ALB/MBD)", " ") ->  | E22: ALB | J22: 0 | N22: 0
A23: =IF(COUNTRY_INFO!A23=0," ",COUNTRY_INFO!A23) -> Rwanda | B23: =IF(COUNTRY_INFO!B23=0," ",COUNTRY_INFO!B23) -> North | C23: =IF(COUNTRY_INFO!C23=0," ",COUNTRY_INFO!C23) -> Musanze | D23: =IF(AND(COUNTRY_INFO!$Q$9:$Q$1000="T3 (ALB/MBD)",COUNTRY_INFO!$R$9:$R$1000="T3 (ALB/MBD)"), "T3 (ALB/MBD)", " ") ->  | J23: 0 | N23: 0
A24: =IF(COUNTRY_INFO!A24=0," ",COUNTRY_INFO!A24) -> Rwanda | B24: =IF(COUNTRY_INFO!B24=0," ",COUNTRY_INFO!B24) -> East | C24: =IF(COUNTRY_INFO!C24=0," ",COUNTRY_INFO!C24) -> Ngoma | D24: =IF(AND(COUNTRY_INFO!$Q$9:$Q$1000="T3 (ALB/MBD)",COUNTRY_INFO!$R$9:$R$1000="T3 (ALB/MBD)"), "T3 (ALB/MBD)", " ") ->  | E24: ALB | J24: 0 | N24: 0
A25: =IF(COUNTRY_INFO!A25=0," ",COUNTRY_INFO!A25) -> Rwanda | B25: =IF(COUNTRY_INFO!B25=0," ",COUNTRY_INFO!B25) -> West | C25: =IF(COUNTRY_INFO!C25=0," ",COUNTRY_INFO!C25) -> Ngororero | D25: =IF(AND(COUNTRY_INFO!$Q$9:$Q$1000="T3 (ALB/MBD)",COUNTRY_INFO!$R$9:$R$1000="T3 (ALB/MBD)"), "T3 (ALB/MBD)", " ") ->  | E25: ALB | J25: 0 | N25: 0
A26: =IF(COUNTRY_INFO!A26=0," ",COUNTRY_INFO!A26) -> Rwanda | B26: =IF(COUNTRY_INFO!B26=0," ",COUNTRY_INFO!B26) -> West | C26: =IF(COUNTRY_INFO!C26=0," ",COUNTRY_INFO!C26) -> Nyabihu | D26: =IF(AND(COUNTRY_INFO!$Q$9:$Q$1000="T3 (ALB/MBD)",COUNTRY_INFO!$R$9:$R$1000="T3 (ALB/MBD)"), "T3 (ALB/MBD)", " ") ->  | E26: ALB | J26: 0 | N26: 0
A27: =IF(COUNTRY_INFO!A27=0," ",COUNTRY_INFO!A27) -> Rwanda | B27: =IF(COUNTRY_INFO!B27=0," ",COUNTRY_INFO!B27) -> East | C27: =IF(COUNTRY_INFO!C27=0," ",COUNTRY_INFO!C27) -> Nyagatare | D27: =IF(AND(COUNTRY_INFO!$Q$9:$Q$1000="T3 (ALB/MBD)",COUNTRY_INFO!$R$9:$R$1000="T3 (ALB/MBD)"), "T3 (ALB/MBD)", " ") ->  | J27: 0 | N27: 0
A28: =IF(COUNTRY_INFO!A28=0," ",COUNTRY_INFO!A28) -> Rwanda | B28: =IF(COUNTRY_INFO!B28=0," ",COUNTRY_INFO!B28) -> South | C28: =IF(COUNTRY_INFO!C28=0," ",COUNTRY_INFO!C28) -> Nyamagabe | D28: =IF(AND(COUNTRY_INFO!$Q$9:$Q$1000="T3 (ALB/MBD)",COUNTRY_INFO!$R$9:$R$1000="T3 (ALB/MBD)"), "T3 (ALB/MBD)", " ") ->  | E28: ALB | J28: 0 | N28: 0
A29: =IF(COUNTRY_INFO!A29=0," ",COUNTRY_INFO!A29) -> Rwanda | B29: =IF(COUNTRY_INFO!B29=0," ",COUNTRY_INFO!B29) -> West | C29: =IF(COUNTRY_INFO!C29=0," ",COUNTRY_INFO!C29) -> Nyamasheke | D29: =IF(AND(COUNTRY_INFO!$Q$9:$Q$1000="T3 (ALB/MBD)",COUNTRY_INFO!$R$9:$R$1000="T3 (ALB/MBD)"), "T3 (ALB/MBD)", " ") ->  | J29: 0 | N29: 0
A30: =IF(COUNTRY_INFO!A30=0," ",COUNTRY_INFO!A30) -> Rwanda | B30: =IF(COUNTRY_INFO!B30=0," ",COUNTRY_INFO!B30) -> South | C30: =IF(COUNTRY_INFO!C30=0," ",COUNTRY_INFO!C30) -> Nyanza | D30: =IF(AND(COUNTRY_INFO!$Q$9:$Q$1000="T3 (ALB/MBD)",COUNTRY_INFO!$R$9:$R$1000="T3 (ALB/MBD)"), "T3 (ALB/MBD)", " ") ->  | E30: ALB | J30: 0 | N30: 0
A31: =IF(COUNTRY_INFO!A31=0," ",COUNTRY_INFO!A31) -> Rwanda | B31: =IF(COUNTRY_INFO!B31=0," ",COUNTRY_INFO!B31) -> Kigali | C31: =IF(COUNTRY_INFO!C31=0," ",COUNTRY_INFO!C31) -> Nyarugenge | D31: =IF(AND(COUNTRY_INFO!$Q$9:$Q$1000="T3 (ALB/MBD)",COUNTRY_INFO!$R$9:$R$1000="T3 (ALB/MBD)"), "T3 (ALB/MBD)", " ") ->  | E31: ALB | J31: 0 | N31: 0
A32: =IF(COUNTRY_INFO!A32=0," ",COUNTRY_INFO!A32) -> Rwanda | B32: =IF(COUNTRY_INFO!B32=0," ",COUNTRY_INFO!B32) -> South | C32: =IF(COUNTRY_INFO!C32=0," ",COUNTRY_INFO!C32) -> Nyaruguru | D32: =IF(AND(COUNTRY_INFO!$Q$9:$Q$1000="T3 (ALB/MBD)",COUNTRY_INFO!$R$9:$R$1000="T3 (ALB/MBD)"), "T3 (ALB/MBD)", " ") ->  | E32: ALB | J32: 0 | N32: 0
A33: =IF(COUNTRY_INFO!A33=0," ",COUNTRY_INFO!A33) -> Rwanda | B33: =IF(COUNTRY_INFO!B33=0," ",COUNTRY_INFO!B33) -> West | C33: =IF(COUNTRY_INFO!C33=0," ",COUNTRY_INFO!C33) -> Rubavu | D33: =IF(AND(COUNTRY_INFO!$Q$9:$Q$1000="T3 (ALB/MBD)",COUNTRY_INFO!$R$9:$R$1000="T3 (ALB/MBD)"), "T3 (ALB/MBD)", " ") ->  | E33: ALB | J33: 0 | N33: 0
A34: =IF(COUNTRY_INFO!A34=0," ",COUNTRY_INFO!A34) -> Rwanda | B34: =IF(COUNTRY_INFO!B34=0," ",COUNTRY_INFO!B34) -> South | C34: =IF(COUNTRY_INFO!C34=0," ",COUNTRY_INFO!C34) -> Ruhango | D34: =IF(AND(COUNTRY_INFO!$Q$9:$Q$1000="T3 (ALB/MBD)",COUNTRY_INFO!$R$9:$R$1000="T3 (ALB/MBD)"), "T3 (ALB/MBD)", " ") ->  | E34: ALB | J34: 0 | N34: 0
A35: =IF(COUNTRY_INFO!A35=0," ",COUNTRY_INFO!A35) -> Rwanda | B35: =IF(COUNTRY_INFO!B35=0," ",COUNTRY_INFO!B35) -> North | C35: =IF(COUNTRY_INFO!C35=0," ",COUNTRY_INFO!C35) -> Rulindo | D35: =IF(AND(COUNTRY_INFO!$Q$9:$Q$1000="T3 (ALB/MBD)",COUNTRY_INFO!$R$9:$R$1000="T3 (ALB/MBD)"), "T3 (ALB/MBD)", " ") ->  | E35: ALB | J35: 0 | N35: 0
A36: =IF(COUNTRY_INFO!A36=0," ",COUNTRY_INFO!A36) -> Rwanda | B36: =IF(COUNTRY_INFO!B36=0," ",COUNTRY_INFO!B36) -> West | C36: =IF(COUNTRY_INFO!C36=0," ",COUNTRY_INFO!C36) -> Rusizi | D36: =IF(AND(COUNTRY_INFO!$Q$9:$Q$1000="T3 (ALB/MBD)",COUNTRY_INFO!$R$9:$R$1000="T3 (ALB/MBD)"), "T3 (ALB/MBD)", " ") ->  | J36: 0 | N36: 0
A37: =IF(COUNTRY_INFO!A37=0," ",COUNTRY_INFO!A37) -> Rwanda | B37: =IF(COUNTRY_INFO!B37=0," ",COUNTRY_INFO!B37) -> West | C37: =IF(COUNTRY_INFO!C37=0," ",COUNTRY_INFO!C37) -> Rutsiro | D37: =IF(AND(COUNTRY_INFO!$Q$9:$Q$1000="T3 (ALB/MBD)",COUNTRY_INFO!$R$9:$R$1000="T3 (ALB/MBD)"), "T3 (ALB/MBD)", " ") ->  | J37: 0 | N37: 0
A38: =IF(COUNTRY_INFO!A38=0," ",COUNTRY_INFO!A38) -> Rwanda | B38: =IF(COUNTRY_INFO!B38=0," ",COUNTRY_INFO!B38) -> East | C38: =IF(COUNTRY_INFO!C38=0," ",COUNTRY_INFO!C38) -> Rwamagana | D38: =IF(AND(COUNTRY_INFO!$Q$9:$Q$1000="T3 (ALB/MBD)",COUNTRY_INFO!$R$9:$R$1000="T3 (ALB/MBD)"), "T3 (ALB/MBD)", " ") ->  | E38: ALB | J38: 0 | N38: 0

Sheet DISTRICT
A1: Number of individuals treated
A2: Administrative structure, population treated by age group and gender
A4: TOTAL | D4: =SUM(D$9:D$1000) -> 0 | E4: =SUM(E$9:E$1000) -> 0 | F4: =SUM(F$9:F$1000) -> 0 | G4: =SUM(G$9:G$1000) -> 0 | H4: =SUM(H$9:H$1000) -> 0 | I4: =IF(D4>0, IF(H4/D4*100<>0, H4/D4*100, "-"),0) -> 0 | J4: =SUM(J$9:J$1000) -> 4338846 | K4: =SUM(K$9:K$1000) -> 0 | L4: =SUM(L$9:L$1000) -> 0 | M4: =SUM(M$9:M$1000) -> 4736005 | N4: =SUM(N$9:N$1000) -> 4262252 | O4: =IF(J4>0, IF(N4/J4*100<>0, N4/J4*100, "-"),0) -> 98.2346919 | P4: =SUM(P$9:P$1000) -> 1788628.04 | Q4: =SUM(Q$9:Q$1000) -> 0 | R4: =SUM(R$9:R$1000) -> 0 | S4: =SUM(S$9:S$1000) -> 0 | T4: =SUM(T$9:T$1000) -> 0 | U4: =IF(P4>0, IF(T4/P4*100<>0, T4/P4*100, "-"),0) -> -
D6: Population requiring PC for LF | E6: Population treated for lymphatic filariasis | J6: Population requiring PC for STH | K6: Population treated for STH | P6: Population requiring PC for SCH | Q6: Population treated for schistosomiasis
A7: Country | B7: Province/State | C7: District | E7: Male | F7: Female | G7: Total treated | H7: Total treated in need of PC | I7: (%) | K7: Male | L7: Female | M7: Total treated | N7: Total treated in need of PC | O7: (%) | Q7: Male | R7: Female | S7: Total treated | T7: Total treated in need of PC | U7: (%)
A9: =IF(COUNTRY_INFO!A9=0," ",COUNTRY_INFO!A9) -> Rwanda | B9: =IF(COUNTRY_INFO!B9=0," ",COUNTRY_INFO!B9) -> East | C9: =IF(COUNTRY_INFO!C9=0," ",COUNTRY_INFO!C9) -> Bugesera | D9: =COUNTRY_INFO!K9 -> Not required | G9: ='MDA2'!M9 -> 0 | H9: =IF(AND(COUNTRY_INFO!H9>0,COUNTRY_INFO!H9<4),IF(D9>'MDA2'!M9,'MDA2'!M9,D9),0) -> 0 | I9: =IF(AND(COUNTRY_INFO!H9>0,COUNTRY_INFO!H9<4), IF(G9/D9*100<>0, IF(G9/D9*100>100,100,G9/D9*100), "-"),0) -> 0 | J9: =COUNTRY_INFO!L9 -> 162424 | M9: =SUM(MAX('MDA2'!J9, 'T1'!L9, MAX(T3_R1!K9, T3_R2!K9)), MAX('MDA2'!K9, 'T1'!M9, MAX(T3_R1!L9, T3_R2!L9)), MAX('MDA2'!L9, 'T1'!N9, MAX(T3_R1!M9, T3_R2!M9))) -> 158647 | N9: =IF(AND(COUNTRY_INFO!I9>1,COUNTRY_INFO!I9<4),IF(J9>SUM(MAX('MDA2'!J9,MAX(T3_R1!K9,T3_R2!K9)),MAX('MDA2'!K9,'T1'!M9,MAX(T3_R1!L9,T3_R2!L9))),SUM(MAX('MDA2'!J9,MAX(T3_R1!K9,T3_R2!K9)),MAX('MDA2'!K9,'T1'!M9,MAX(T3_R1!L9,T3_R2!L9))),J9),0) -> 158647 | O9: =IF(AND(COUNTRY_INFO!I9>1,COUNTRY_INFO!I9<4), IF(M9/J9*100<>0, IF(N9/J9*100>100,100,N9/J9*100), "-"),0) -> 97.67460474 | P9: =COUNTRY_INFO!M9 -> 103149.6 | S9: =MAX(SUM('T1'!L9:'T1'!N9),SUM('T2'!J9:'T2'!L9)) -> 0 | T9: =IF(AND(COUNTRY_INFO!J9>0,COUNTRY_INFO!J9<4),IF(P9>MAX('T1'!M9,'T2'!M9),MAX('T1'!M9,'T2'!M9),P9),0) -> 0 | U9: =IF(AND(COUNTRY_INFO!J9>0,COUNTRY_INFO!J9<4), IF(S9/P9*100<>0, IF(T9/P9*100>100,100,T9/P9*100), "-"),0) -> -
A10: =IF(COUNTRY_INFO!A10=0," ",COUNTRY_INFO!A10) -> Rwanda | B10: =IF(COUNTRY_INFO!B10=0," ",COUNTRY_INFO!B10) -> North | C10: =IF(COUNTRY_INFO!C10=0," ",COUNTRY_INFO!C10) -> Burera | D10: =COUNTRY_INFO!K10 -> Not required | G10: ='MDA2'!M10 -> 0 | H10: =IF(AND(COUNTRY_INFO!H10>0,COUNTRY_INFO!H10<4),IF(D10>'MDA2'!M10,'MDA2'!M10,D10),0) -> 0 | I10: =IF(AND(COUNTRY_INFO!H10>0,COUNTRY_INFO!H10<4), IF(G10/D10*100<>0, IF(G10/D10*100>100,100,G10/D10*100), "-"),0) -> 0 | J10: =COUNTRY_INFO!L10 -> 151055 | M10: =SUM(MAX('MDA2'!J10, 'T1'!L10, MAX(T3_R1!K10, T3_R2!K10)), MAX('MDA2'!K10, 'T1'!M10, MAX(T3_R1!L10, T3_R2!L10)), MAX('MDA2'!L10, 'T1'!N10, MAX(T3_R1!M10, T3_R2!M10))) -> 165208 | N10: =IF(AND(COUNTRY_INFO!I10>1,COUNTRY_INFO!I10<4),IF(J10>SUM(MAX('MDA2'!J10,MAX(T3_R1!K10,T3_R2!K10)),MAX('MDA2'!K10,'T1'!M10,MAX(T3_R1!L10,T3_R2!L10))),SUM(MAX('MDA2'!J10,MAX(T3_R1!K10,T3_R2!K10)),MAX('MDA2'!K10,'T1'!M10,MAX(T3_R1!L10,T3_R2!L10))),J10),0) -> 151055 | O10: =IF(AND(COUNTRY_INFO!I10>1,COUNTRY_INFO!I10<4), IF(M10/J10*100<>0, IF(N10/J10*100>100,100,N10/J10*100), "-"),0) -> 100 | P10: =COUNTRY_INFO!M10 -> 95929.3 | S10: =MAX(SUM('T1'!L10:'T1'!N10),SUM('T2'!J10:'T2'!L10)) -> 0 | T10: =IF(AND(COUNTRY_INFO!J10>0,COUNTRY_INFO!J10<4),IF(P10>MAX('T1'!M10,'T2'!M10),MAX('T1'!M10,'T2'!M10),P10),0) -> 0 | U10: =IF(AND(COUNTRY_INFO!J10>0,COUNTRY_INFO!J10<4), IF(S10/P10*100<>0, IF(T10/P10*100>100,100,T10/P10*100), "-"),0) -> -
A11: =IF(COUNTRY_INFO!A11=0," ",COUNTRY_INFO!A11) -> Rwanda | B11: =IF(COUNTRY_INFO!B11=0," ",COUNTRY_INFO!B11) -> North | C11: =IF(COUNTRY_INFO!C11=0," ",COUNTRY_INFO!C11) -> Gakenke | D11: =COUNTRY_INFO!K11 -> Not required | G11: ='MDA2'!M11 -> 0 | H11: =IF(AND(COUNTRY_INFO!H11>0,COUNTRY_INFO!H11<4),IF(D11>'MDA2'!M11,'MDA2'!M11,D11),0) -> 0 | I11: =IF(AND(COUNTRY_INFO!H11>0,COUNTRY_INFO!H11<4), IF(G11/D11*100<>0, IF(G11/D11*100>100,100,G11/D11*100), "-"),0) -> 0 | J11: =COUNTRY_INFO!L11 -> 151796 | M11: =SUM(MAX('MDA2'!J11, 'T1'!L11, MAX(T3_R1!K11, T3_R2!K11)), MAX('MDA2'!K11, 'T1'!M11, MAX(T3_R1!L11, T3_R2!L11)), MAX('MDA2'!L11, 'T1'!N11, MAX(T3_R1!M11, T3_R2!M11))) -> 133493 | N11: =IF(AND(COUNTRY_INFO!I11>1,COUNTRY_INFO!I11<4),IF(J11>SUM(MAX('MDA2'!J11,MAX(T3_R1!K11,T3_R2!K11)),MAX('MDA2'!K11,'T1'!M11,MAX(T3_R1!L11,T3_R2!L11))),SUM(MAX('MDA2'!J11,MAX(T3_R1!K11,T3_R2!K11)),MAX('MDA2'!K11,'T1'!M11,MAX(T3_R1!L11,T3_R2!L11))),J11),0) -> 133493 | O11: =IF(AND(COUNTRY_INFO!I11>1,COUNTRY_INFO!I11<4), IF(M11/J11*100<>0, IF(N11/J11*100>100,100,N11/J11*100), "-"),0) -> 87.94237002 | P11: =COUNTRY_INFO!M11 -> 96400 | S11: =MAX(SUM('T1'!L11:'T1'!N11),SUM('T2'!J11:'T2'!L11)) -> 0 | T11: =IF(AND(COUNTRY_INFO!J11>0,COUNTRY_INFO!J11<4),IF(P11>MAX('T1'!M11,'T2'!M11),MAX('T1'!M11,'T2'!M11),P11),0) -> 0 | U11: =IF(AND(COUNTRY_INFO!J11>0,COUNTRY_INFO!J11<4), IF(S11/P11*100<>0, IF(T11/P11*100>100,100,T11/P11*100), "-"),0) -> -
A12: =IF(COUNTRY_INFO!A12=0," ",COUNTRY_INFO!A12) -> Rwanda | B12: =IF(COUNTRY_INFO!B12=0," ",COUNTRY_INFO!B12) -> Kigali | C12: =IF(COUNTRY_INFO!C12=0," ",COUNTRY_INFO!C12) -> Gasabo | D12: =COUNTRY_INFO!K12 -> Not required | G12: ='MDA2'!M12 -> 0 | H12: =IF(AND(COUNTRY_INFO!H12>0,COUNTRY_INFO!H12<4),IF(D12>'MDA2'!M12,'MDA2'!M12,D12),0) -> 0 | I12: =IF(AND(COUNTRY_INFO!H12>0,COUNTRY_INFO!H12<4), IF(G12/D12*100<>0, IF(G12/D12*100>100,100,G12/D12*100), "-"),0) -> 0 | J12: =COUNTRY_INFO!L12 -> 0 | M12: =SUM(MAX('MDA2'!J12, 'T1'!L12, MAX(T3_R1!K12, T3_R2!K12)), MAX('MDA2'!K12, 'T1'!M12, MAX(T3_R1!L12, T3_R2!L12)), MAX('MDA2'!L12, 'T1'!N12, MAX(T3_R1!M12, T3_R2!M12))) -> 204272 | N12: =IF(AND(COUNTRY_INFO!I12>1,COUNTRY_INFO!I12<4),IF(J12>SUM(MAX('MDA2'!J12,MAX(T3_R1!K12,T3_R2!K12)),MAX('MDA2'!K12,'T1'!M12,MAX(T3_R1!L12,T3_R2!L12))),SUM(MAX('MDA2'!J12,MAX(T3_R1!K12,T3_R2!K12)),MAX('MDA2'!K12,'T1'!M12,MAX(T3_R1!L12,T3_R2!L12))),J12),0) -> 0 | O12: =IF(AND(COUNTRY_INFO!I12>1,COUNTRY_INFO!I12<4), IF(M12/J12*100<>0, IF(N12/J12*100>100,100,N12/J12*100), "-"),0) -> 0 | P12: =COUNTRY_INFO!M12 -> 55771.32 | S12: =MAX(SUM('T1'!L12:'T1'!N12),SUM('T2'!J12:'T2'!L12)) -> 0 | T12: =IF(AND(COUNTRY_INFO!J12>0,COUNTRY_INFO!J12<4),IF(P12>MAX('T1'!M12,'T2'!M12),MAX('T1'!M12,'T2'!M12),P12),0) -> 0 | U12: =IF(AND(COUNTRY_INFO!J12>0,COUNTRY_INFO!J12<4), IF(S12/P12*100<>0, IF(T12/P12*100>100,100,T12/P12*100), "-"),0) -> -
A13: =IF(COUNTRY_INFO!A13=0," ",COUNTRY_INFO!A13) -> Rwanda | B13: =IF(COUNTRY_INFO!B13=0," ",COUNTRY_INFO!B13) -> East | C13: =IF(COUNTRY_INFO!C13=0," ",COUNTRY_INFO!C13) -> Gatsibo | D13: =COUNTRY_INFO!K13 -> Not required | G13: ='MDA2'!M13 -> 0 | H13: =IF(AND(COUNTRY_INFO!H13>0,COUNTRY_INFO!H13<4),IF(D13>'MDA2'!M13,'MDA2'!M13,D13),0) -> 0 | I13: =IF(AND(COUNTRY_INFO!H13>0,COUNTRY_INFO!H13<4), IF(G13/D13*100<>0, IF(G13/D13*100>100,100,G13/D13*100), "-"),0) -> 0 | J13: =COUNTRY_INFO!L13 -> 194335 | M13: =SUM(MAX('MDA2'!J13, 'T1'!L13, MAX(T3_R1!K13, T3_R2!K13)), MAX('MDA2'!K13, 'T1'!M13, MAX(T3_R1!L13, T3_R2!L13)), MAX('MDA2'!L13, 'T1'!N13, MAX(T3_R1!M13, T3_R2!M13))) -> 194880 | N13: =IF(AND(COUNTRY_INFO!I13>1,COUNTRY_INFO!I13<4),IF(J13>SUM(MAX('MDA2'!J13,MAX(T3_R1!K13,T3_R2!K13)),MAX('MDA2'!K13,'T1'!M13,MAX(T3_R1!L13,T3_R2!L13))),SUM(MAX('MDA2'!J13,MAX(T3_R1!K13,T3_R2!K13)),MAX('MDA2'!K13,'T1'!M13,MAX(T3_R1!L13,T3_R2!L13))),J13),0) -> 194335 | O13: =IF(AND(COUNTRY_INFO!I13>1,COUNTRY_INFO!I13<4), IF(M13/J13*100<>0, IF(N13/J13*100>100,100,N13/J13*100), "-"),0) -> 100 | P13: =COUNTRY_INFO!M13 -> 0 | S13: =MAX(SUM('T1'!L13:'T1'!N13),SUM('T2'!J13:'T2'!L13)) -> 0 | T13: =IF(AND(COUNTRY_INFO!J13>0,COUNTRY_INFO!J13<4),IF(P13>MAX('T1'!M13,'T2'!M13),MAX('T1'!M13,'T2'!M13),P13),0) -> 0 | U13: =IF(AND(COUNTRY_INFO!J13>0,COUNTRY_INFO!J13<4), IF(S13/P13*100<>0, IF(T13/P13*100>100,100,T13/P13*100), "-"),0) -> 0
A14: =IF(COUNTRY_INFO!A14=0," ",COUNTRY_INFO!A14) -> Rwanda | B14: =IF(COUNTRY_INFO!B14=0," ",COUNTRY_INFO!B14) -> North | C14: =IF(COUNTRY_INFO!C14=0," ",COUNTRY_INFO!C14) -> Gicumbi | D14: =COUNTRY_INFO!K14 -> Not required | G14: ='MDA2'!M14 -> 0 | H14: =IF(AND(COUNTRY_INFO!H14>0,COUNTRY_INFO!H14<4),IF(D14>'MDA2'!M14,'MDA2'!M14,D14),0) -> 0 | I14: =IF(AND(COUNTRY_INFO!H14>0,COUNTRY_INFO!H14<4), IF(G14/D14*100<>0, IF(G14/D14*100>100,100,G14/D14*100), "-"),0) -> 0 | J14: =COUNTRY_INFO!L14 -> 177545 | M14: =SUM(MAX('MDA2'!J14, 'T1'!L14, MAX(T3_R1!K14, T3_R2!K14)), MAX('MDA2'!K14, 'T1'!M14, MAX(T3_R1!L14, T3_R2!L14)), MAX('MDA2'!L14, 'T1'!N14, MAX(T3_R1!M14, T3_R2!M14))) -> 159678 | N14: =IF(AND(COUNTRY_INFO!I14>1,COUNTRY_INFO!I14<4),IF(J14>SUM(MAX('MDA2'!J14,MAX(T3_R1!K14,T3_R2!K14)),MAX('MDA2'!K14,'T1'!M14,MAX(T3_R1!L14,T3_R2!L14))),SUM(MAX('MDA2'!J14,MAX(T3_R1!K14,T3_R2!K14)),MAX('MDA2'!K14,'T1'!M14,MAX(T3_R1!L14,T3_R2!L14))),J14),0) -> 159678 | O14: =IF(AND(COUNTRY_INFO!I14>1,COUNTRY_INFO!I14<4), IF(M14/J14*100<>0, IF(N14/J14*100>100,100,N14/J14*100), "-"),0) -> 89.93663578 | P14: =COUNTRY_INFO!M14 -> 374378 | S14: =MAX(SUM('T1'!L14:'T1'!N14),SUM('T2'!J14:'T2'!L14)) -> 0 | T14: =IF(AND(COUNTRY_INFO!J14>0,COUNTRY_INFO!J14<4),IF(P14>MAX('T1'!M14,'T2'!M14),MAX('T1'!M14,'T2'!M14),P14),0) -> 0 | U14: =IF(AND(COUNTRY_INFO!J14>0,COUNTRY_INFO!J14<4), IF(S14/P14*100<>0, IF(T14/P14*100>100,100,T14/P14*100), "-"),0) -> -
A15: =IF(COUNTRY_INFO!A15=0," ",COUNTRY_INFO!A15) -> Rwanda | B15: =IF(COUNTRY_INFO!B15=0," ",COUNTRY_INFO!B15) -> South | C15: =IF(COUNTRY_INFO!C15=0," ",COUNTRY_INFO!C15) -> Gisagara | D15: =COUNTRY_INFO!K15 -> Not required | G15: ='MDA2'!M15 -> 0 | H15: =IF(AND(COUNTRY_INFO!H15>0,COUNTRY_INFO!H15<4),IF(D15>'MDA2'!M15,'MDA2'!M15,D15),0) -> 0 | I15: =IF(AND(COUNTRY_INFO!H15>0,COUNTRY_INFO!H15<4), IF(G15/D15*100<>0, IF(G15/D15*100>100,100,G15/D15*100), "-"),0) -> 0 | J15: =COUNTRY_INFO!L15 -> 144738 | M15: =SUM(MAX('MDA2'!J15, 'T1'!L15, MAX(T3_R1!K15, T3_R2!K15)), MAX('MDA2'!K15, 'T1'!M15, MAX(T3_R1!L15, T3_R2!L15)), MAX('MDA2'!L15, 'T1'!N15, MAX(T3_R1!M15, T3_R2!M15))) -> 138710 | N15: =IF(AND(COUNTRY_INFO!I15>1,COUNTRY_INFO!I15<4),IF(J15>SUM(MAX('MDA2'!J15,MAX(T3_R1!K15,T3_R2!K15)),MAX('MDA2'!K15,'T1'!M15,MAX(T3_R1!L15,T3_R2!L15))),SUM(MAX('MDA2'!J15,MAX(T3_R1!K15,T3_R2!K15)),MAX('MDA2'!K15,'T1'!M15,MAX(T3_R1!L15,T3_R2!L15))),J15),0) -> 138710 | O15: =IF(AND(COUNTRY_INFO!I15>1,COUNTRY_INFO!I15<4), IF(M15/J15*100<>0, IF(N15/J15*100>100,100,N15/J15*100), "-"),0) -> 95.83523332 | P15: =COUNTRY_INFO!M15 -> 33965.25 | S15: =MAX(SUM('T1'!L15:'T1'!N15),SUM('T2'!J15:'T2'!L15)) -> 0 | T15: =IF(AND(COUNTRY_INFO!J15>0,COUNTRY_INFO!J15<4),IF(P15>MAX('T1'!M15,'T2'!M15),MAX('T1'!M15,'T2'!M15),P15),0) -> 0 | U15: =IF(AND(COUNTRY_INFO!J15>0,COUNTRY_INFO!J15<4), IF(S15/P15*100<>0, IF(T15/P15*100>100,100,T15/P15*100), "-"),0) -> -
A16: =IF(COUNTRY_INFO!A16=0," ",COUNTRY_INFO!A16) -> Rwanda | B16: =IF(COUNTRY_INFO!B16=0," ",COUNTRY_INFO!B16) -> South | C16: =IF(COUNTRY_INFO!C16=0," ",COUNTRY_INFO!C16) -> Huye | D16: =COUNTRY_INFO!K16 -> Not required | G16: ='MDA2'!M16 -> 0 | H16: =IF(AND(COUNTRY_INFO!H16>0,COUNTRY_INFO!H16<4),IF(D16>'MDA2'!M16,'MDA2'!M16,D16),0) -> 0 | I16: =IF(AND(COUNTRY_INFO!H16>0,COUNTRY_INFO!H16<4), IF(G16/D16*100<>0, IF(G16/D16*100>100,100,G16/D16*100), "-"),0) -> 0 | J16: =COUNTRY_INFO!L16 -> 147382 | M16: =SUM(MAX('MDA2'!J16, 'T1'!L16, MAX(T3_R1!K16, T3_R2!K16)), MAX('MDA2'!K16, 'T1'!M16, MAX(T3_R1!L16, T3_R2!L16)), MAX('MDA2'!L16, 'T1'!N16, MAX(T3_R1!M16, T3_R2!M16))) -> 145471 | N16: =IF(AND(COUNTRY_INFO!I16>1,COUNTRY_INFO!I16<4),IF(J16>SUM(MAX('MDA2'!J16,MAX(T3_R1!K16,T3_R2!K16)),MAX('MDA2'!K16,'T1'!M16,MAX(T3_R1!L16,T3_R2!L16))),SUM(MAX('MDA2'!J16,MAX(T3_R1!K16,T3_R2!K16)),MAX('MDA2'!K16,'T1'!M16,MAX(T3_R1!L16,T3_R2!L16))),J16),0) -> 145471 | O16: =IF(AND(COUNTRY_INFO!I16>1,COUNTRY_INFO!I16<4), IF(M16/J16*100<>0, IF(N16/J16*100>100,100,N16/J16*100), "-"),0) -> 98.70336948 | P16: =COUNTRY_INFO!M16 -> 0 | S16: =MAX(SUM('T1'!L16:'T1'!N16),SUM('T2'!J16:'T2'!L16)) -> 0 | T16: =IF(AND(COUNTRY_INFO!J16>0,COUNTRY_INFO!J16<4),IF(P16>MAX('T1'!M16,'T2'!M16),MAX('T1'!M16,'T2'!M16),P16),0) -> 0 | U16: =IF(AND(COUNTRY_INFO!J16>0,COUNTRY_INFO!J16<4), IF(S16/P16*100<>0, IF(T16/P16*100>100,100,T16/P16*100), "-"),0) -> 0
A17: =IF(COUNTRY_INFO!A17=0," ",COUNTRY_INFO!A17) -> Rwanda | B17: =IF(COUNTRY_INFO!B17=0," ",COUNTRY_INFO!B17) -> South | C17: =IF(COUNTRY_INFO!C17=0," ",COUNTRY_INFO!C17) -> Kamonyi | D17: =COUNTRY_INFO!K17 -> Not required | G17: ='MDA2'!M17 -> 0 | H17: =IF(AND(COUNTRY_INFO!H17>0,COUNTRY_INFO!H17<4),IF(D17>'MDA2'!M17,'MDA2'!M17,D17),0) -> 0 | I17: =IF(AND(COUNTRY_INFO!H17>0,COUNTRY_INFO!H17<4), IF(G17/D17*100<>0, IF(G17/D17*100>100,100,G17/D17*100), "-"),0) -> 0 | J17: =COUNTRY_INFO!L17 -> 152814 | M17: =SUM(MAX('MDA2'!J17, 'T1'!L17, MAX(T3_R1!K17, T3_R2!K17)), MAX('MDA2'!K17, 'T1'!M17, MAX(T3_R1!L17, T3_R2!L17)), MAX('MDA2'!L17, 'T1'!N17, MAX(T3_R1!M17, T3_R2!M17))) -> 146227 | N17: =IF(AND(COUNTRY_INFO!I17>1,COUNTRY_INFO!I17<4),IF(J17>SUM(MAX('MDA2'!J17,MAX(T3_R1!K17,T3_R2!K17)),MAX('MDA2'!K17,'T1'!M17,MAX(T3_R1!L17,T3_R2!L17))),SUM(MAX('MDA2'!J17,MAX(T3_R1!K17,T3_R2!K17)),MAX('MDA2'!K17,'T1'!M17,MAX(T3_R1!L17,T3_R2!L17))),J17),0) -> 146227 | O17: =IF(AND(COUNTRY_INFO!I17>1,COUNTRY_INFO!I17<4), IF(M17/J17*100<>0, IF(N17/J17*100>100,100,N17/J17*100), "-"),0) -> 95.68953106 | P17: =COUNTRY_INFO!M17 -> 0 | S17: =MAX(SUM('T1'!L17:'T1'!N17),SUM('T2'!J17:'T2'!L17)) -> 0 | T17: =IF(AND(COUNTRY_INFO!J17>0,COUNTRY_INFO!J17<4),IF(P17>MAX('T1'!M17,'T2'!M17),MAX('T1'!M17,'T2'!M17),P17),0) -> 0 | U17: =IF(AND(COUNTRY_INFO!J17>0,COUNTRY_INFO!J17<4), IF(S17/P17*100<>0, IF(T17/P17*100>100,100,T17/P17*100), "-"),0) -> 0
A18: =IF(COUNTRY_INFO!A18=0," ",COUNTRY_INFO!A18) -> Rwanda | B18: =IF(COUNTRY_INFO!B18=0," ",COUNTRY_INFO!B18) -> West | C18: =IF(COUNTRY_INFO!C18=0," ",COUNTRY_INFO!C18) -> Karongi | D18: =COUNTRY_INFO!K18 -> Not required | G18: ='MDA2'!M18 -> 0 | H18: =IF(AND(COUNTRY_INFO!H18>0,COUNTRY_INFO!H18<4),IF(D18>'MDA2'!M18,'MDA2'!M18,D18),0) -> 0 | I18: =IF(AND(COUNTRY_INFO!H18>0,COUNTRY_INFO!H18<4), IF(G18/D18*100<>0, IF(G18/D18*100>100,100,G18/D18*100), "-"),0) -> 0 | J18: =COUNTRY_INFO!L18 -> 148913 | M18: =SUM(MAX('MDA2'!J18, 'T1'!L18, MAX(T3_R1!K18, T3_R2!K18)), MAX('MDA2'!K18, 'T1'!M18, MAX(T3_R1!L18, T3_R2!L18)), MAX('MDA2'!L18, 'T1'!N18, MAX(T3_R1!M18, T3_R2!M18))) -> 155917 | N18: =IF(AND(COUNTRY_INFO!I18>1,COUNTRY_INFO!I18<4),IF(J18>SUM(MAX('MDA2'!J18,MAX(T3_R1!K18,T3_R2!K18)),MAX('MDA2'!K18,'T1'!M18,MAX(T3_R1!L18,T3_R2!L18))),SUM(MAX('MDA2'!J18,MAX(T3_R1!K18,T3_R2!K18)),MAX('MDA2'!K18,'T1'!M18,MAX(T3_R1!L18,T3_R2!L18))),J18),0) -> 148913 | O18: =IF(AND(COUNTRY_INFO!I18>1,COUNTRY_INFO!I18<4), IF(M18/J18*100<>0, IF(N18/J18*100>100,100,N18/J18*100), "-"),0) -> 100 | P18: =COUNTRY_INFO!M18 -> 34945.02 | S18: =MAX(SUM('T1'!L18:'T1'!N18),SUM('T2'!J18:'T2'!L18)) -> 0 | T18: =IF(AND(COUNTRY_INFO!J18>0,COUNTRY_INFO!J18<4),IF(P18>MAX('T1'!M18,'T2'!M18),MAX('T1'!M18,'T2'!M18),P18),0) -> 0 | U18: =IF(AND(COUNTRY_INFO!J18>0,COUNTRY_INFO!J18<4), IF(S18/P18*100<>0, IF(T18/P18*100>100,100,T18/P18*100), "-"),0) -> -
A19: =IF(COUNTRY_INFO!A19=0," ",COUNTRY_INFO!A19) -> Rwanda | B19: =IF(COUNTRY_INFO!B19=0," ",COUNTRY_INFO!B19) -> East | C19: =IF(COUNTRY_INFO!C19=0," ",COUNTRY_INFO!C19) -> Kayonza | D19: =COUNTRY_INFO!K19 -> Not required | G19: ='MDA2'!M19 -> 0 | H19: =IF(AND(COUNTRY_INFO!H19>0,COUNTRY_INFO!H19<4),IF(D19>'MDA2'!M19,'MDA2'!M19,D19),0) -> 0 | I19: =IF(AND(COUNTRY_INFO!H19>0,COUNTRY_INFO!H19<4), IF(G19/D19*100<>0, IF(G19/D19*100>100,100,G19/D19*100), "-"),0) -> 0 | J19: =COUNTRY_INFO!L19 -> 154454 | M19: =SUM(MAX('MDA2'!J19, 'T1'!L19, MAX(T3_R1!K19, T3_R2!K19)), MAX('MDA2'!K19, 'T1'!M19, MAX(T3_R1!L19, T3_R2!L19)), MAX('MDA2'!L19, 'T1'!N19, MAX(T3_R1!M19, T3_R2!M19))) -> 169839 | N19: =IF(AND(COUNTRY_INFO!I19>1,COUNTRY_INFO!I19<4),IF(J19>SUM(MAX('MDA2'!J19,MAX(T3_R1!K19,T3_R2!K19)),MAX('MDA2'!K19,'T1'!M19,MAX(T3_R1!L19,T3_R2!L19))),SUM(MAX('MDA2'!J19,MAX(T3_R1!K19,T3_R2!K19)),MAX('MDA2'!K19,'T1'!M19,MAX(T3_R1!L19,T3_R2!L19))),J19),0) -> 154454 | O19: =IF(AND(COUNTRY_INFO!I19>1,COUNTRY_INFO!I19<4), IF(M19/J19*100<>0, IF(N19/J19*100>100,100,N19/J19*100), "-"),0) -> 100 | P19: =COUNTRY_INFO!M19 -> 0 | S19: =MAX(SUM('T1'!L19:'T1'!N19),SUM('T2'!J19:'T2'!L19)) -> 0 | T19: =IF(AND(COUNTRY_INFO!J19>0,COUNTRY_INFO!J19<4),IF(P19>MAX('T1'!M19,'T2'!M19),MAX('T1'!M19,'T2'!M19),P19),0) -> 0 | U19: =IF(AND(COUNTRY_INFO!J19>0,COUNTRY_INFO!J19<4), IF(S19/P19*100<>0, IF(T19/P19*100>100,100,T19/P19*100), "-"),0) -> 0
A20: =IF(COUNTRY_INFO!A20=0," ",COUNTRY_INFO!A20) -> Rwanda | B20: =IF(COUNTRY_INFO!B20=0," ",COUNTRY_INFO!B20) -> Kigali | C20: =IF(COUNTRY_INFO!C20=0," ",COUNTRY_INFO!C20) -> Kicukiro | D20: =COUNTRY_INFO!K20 -> Not required | G20: ='MDA2'!M20 -> 0 | H20: =IF(AND(COUNTRY_INFO!H20>0,COUNTRY_INFO!H20<4),IF(D20>'MDA2'!M20,'MDA2'!M20,D20),0) -> 0 | I20: =IF(AND(COUNTRY_INFO!H20>0,COUNTRY_INFO!H20<4), IF(G20/D20*100<>0, IF(G20/D20*100>100,100,G20/D20*100), "-"),0) -> 0 | J20: =COUNTRY_INFO!L20 -> 0 | M20: =SUM(MAX('MDA2'!J20, 'T1'!L20, MAX(T3_R1!K20, T3_R2!K20)), MAX('MDA2'!K20, 'T1'!M20, MAX(T3_R1!L20, T3_R2!L20)), MAX('MDA2'!L20, 'T1'!N20, MAX(T3_R1!M20, T3_R2!M20))) -> 136270 | N20: =IF(AND(COUNTRY_INFO!I20>1,COUNTRY_INFO!I20<4),IF(J20>SUM(MAX('MDA2'!J20,MAX(T3_R1!K20,T3_R2!K20)),MAX('MDA2'!K20,'T1'!M20,MAX(T3_R1!L20,T3_R2!L20))),SUM(MAX('MDA2'!J20,MAX(T3_R1!K20,T3_R2!K20)),MAX('MDA2'!K20,'T1'!M20,MAX(T3_R1!L20,T3_R2!L20))),J20),0) -> 0 | O20: =IF(AND(COUNTRY_INFO!I20>1,COUNTRY_INFO!I20<4), IF(M20/J20*100<>0, IF(N20/J20*100>100,100,N20/J20*100), "-"),0) -> 0 | P20: =COUNTRY_INFO!M20 -> 0 | S20: =MAX(SUM('T1'!L20:'T1'!N20),SUM('T2'!J20:'T2'!L20)) -> 0 | T20: =IF(AND(COUNTRY_INFO!J20>0,COUNTRY_INFO!J20<4),IF(P20>MAX('T1'!M20,'T2'!M20),MAX('T1'!M20,'T2'!M20),P20),0) -> 0 | U20: =IF(AND(COUNTRY_INFO!J20>0,COUNTRY_INFO!J20<4), IF(S20/P20*100<>0, IF(T20/P20*100>100,100,T20/P20*100), "-"),0) -> 0
A21: =IF(COUNTRY_INFO!A21=0," ",COUNTRY_INFO!A21) -> Rwanda | B21: =IF(COUNTRY_INFO!B21=0," ",COUNTRY_INFO!B21) -> East | C21: =IF(COUNTRY_INFO!C21=0," ",COUNTRY_INFO!C21) -> Kirehe | D21: =COUNTRY_INFO!K21 -> Not required | G21: ='MDA2'!M21 -> 0 | H21: =IF(AND(COUNTRY_INFO!H21>0,COUNTRY_INFO!H21<4),IF(D21>'MDA2'!M21,'MDA2'!M21,D21),0) -> 0 | I21: =IF(AND(COUNTRY_INFO!H21>0,COUNTRY_INFO!H21<4), IF(G21/D21*100<>0, IF(G21/D21*100>100,100,G21/D21*100), "-"),0) -> 0 | J21: =COUNTRY_INFO!L21 -> 152754 | M21: =SUM(MAX('MDA2'!J21, 'T1'!L21, MAX(T3_R1!K21, T3_R2!K21)), MAX('MDA2'!K21, 'T1'!M21, MAX(T3_R1!L21, T3_R2!L21)), MAX('MDA2'!L21, 'T1'!N21, MAX(T3_R1!M21, T3_R2!M21))) -> 161517 | N21: =IF(AND(COUNTRY_INFO!I21>1,COUNTRY_INFO!I21<4),IF(J21>SUM(MAX('MDA2'!J21,MAX(T3_R1!K21,T3_R2!K21)),MAX('MDA2'!K21,'T1'!M21,MAX(T3_R1!L21,T3_R2!L21))),SUM(MAX('MDA2'!J21,MAX(T3_R1!K21,T3_R2!K21)),MAX('MDA2'!K21,'T1'!M21,MAX(T3_R1!L21,T3_R2!L21))),J21),0) -> 152754 | O21: =IF(AND(COUNTRY_INFO!I21>1,COUNTRY_INFO!I21<4), IF(M21/J21*100<>0, IF(N21/J21*100>100,100,N21/J21*100), "-"),0) -> 100 | P21: =COUNTRY_INFO!M21 -> 0 | S21: =MAX(SUM('T1'!L21:'T1'!N21),SUM('T2'!J21:'T2'!L21)) -> 0 | T21: =IF(AND(COUNTRY_INFO!J21>0,COUNTRY_INFO!J21<4),IF(P21>MAX('T1'!M21,'T2'!M21),MAX('T1'!M21,'T2'!M21),P21),0) -> 0 | U21: =IF(AND(COUNTRY_INFO!J21>0,COUNTRY_INFO!J21<4), IF(S21/P21*100<>0, IF(T21/P21*100>100,100,T21/P21*100), "-"),0) -> 0
A22: =IF(COUNTRY_INFO!A22=0," ",COUNTRY_INFO!A22) -> Rwanda | B22: =IF(COUNTRY_INFO!B22=0," ",COUNTRY_INFO!B22) -> South | C22: =IF(COUNTRY_INFO!C22=0," ",COUNTRY_INFO!C22) -> Muhanga | D22: =COUNTRY_INFO!K22 -> Not required | G22: ='MDA2'!M22 -> 0 | H22: =IF(AND(COUNTRY_INFO!H22>0,COUNTRY_INFO!H22<4),IF(D22>'MDA2'!M22,'MDA2'!M22,D22),0) -> 0 | I22: =IF(AND(COUNTRY_INFO!H22>0,COUNTRY_INFO!H22<4), IF(G22/D22*100<>0, IF(G22/D22*100>100,100,G22/D22*100), "-"),0) -> 0 | J22: =COUNTRY_INFO!L22 -> 143228 | M22: =SUM(MAX('MDA2'!J22, 'T1'!L22, MAX(T3_R1!K22, T3_R2!K22)), MAX('MDA2'!K22, 'T1'!M22, MAX(T3_R1!L22, T3_R2!L22)), MAX('MDA2'!L22, 'T1'!N22, MAX(T3_R1!M22, T3_R2!M22))) -> 131049 | N22: =IF(AND(COUNTRY_INFO!I22>1,COUNTRY_INFO!I22<4),IF(J22>SUM(MAX('MDA2'!J22,MAX(T3_R1!K22,T3_R2!K22)),MAX('MDA2'!K22,'T1'!M22,MAX(T3_R1!L22,T3_R2!L22))),SUM(MAX('MDA2'!J22,MAX(T3_R1!K22,T3_R2!K22)),MAX('MDA2'!K22,'T1'!M22,MAX(T3_R1!L22,T3_R2!L22))),J22),0) -> 131049 | O22: =IF(AND(COUNTRY_INFO!I22>1,COUNTRY_INFO!I22<4), IF(M22/J22*100<>0, IF(N22/J22*100>100,100,N22/J22*100), "-"),0) -> 91.49677437 | P22: =COUNTRY_INFO!M22 -> 33610.83 | S22: =MAX(SUM('T1'!L22:'T1'!N22),SUM('T2'!J22:'T2'!L22)) -> 0 | T22: =IF(AND(COUNTRY_INFO!J22>0,COUNTRY_INFO!J22<4),IF(P22>MAX('T1'!M22,'T2'!M22),MAX('T1'!M22,'T2'!M22),P22),0) -> 0 | U22: =IF(AND(COUNTRY_INFO!J22>0,COUNTRY_INFO!J22<4), IF(S22/P22*100<>0, IF(T22/P22*100>100,100,T22/P22*100), "-"),0) -> -
A23: =IF(COUNTRY_INFO!A23=0," ",COUNTRY_INFO!A23) -> Rwanda | B23: =IF(COUNTRY_INFO!B23=0," ",COUNTRY_INFO!B23) -> North | C23: =IF(COUNTRY_INFO!C23=0," ",COUNTRY_INFO!C23) -> Musanze | D23: =COUNTRY_INFO!K23 -> Not required | G23: ='MDA2'!M23 -> 0 | H23: =IF(AND(COUNTRY_INFO!H23>0,COUNTRY_INFO!H23<4),IF(D23>'MDA2'!M23,'MDA2'!M23,D23),0) -> 0 | I23: =IF(AND(COUNTRY_INFO!H23>0,COUNTRY_INFO!H23<4), IF(G23/D23*100<>0, IF(G23/D23*100>100,100,G23/D23*100), "-"),0) -> 0 | J23: =COUNTRY_INFO!L23 -> 165275 | M23: =SUM(MAX('MDA2'!J23, 'T1'!L23, MAX(T3_R1!K23, T3_R2!K23)), MAX('MDA2'!K23, 'T1'!M23, MAX(T3_R1!L23, T3_R2!L23)), MAX('MDA2'!L23, 'T1'!N23, MAX(T3_R1!M23, T3_R2!M23))) -> 174879 | N23: =IF(AND(COUNTRY_INFO!I23>1,COUNTRY_INFO!I23<4),IF(J23>SUM(MAX('MDA2'!J23,MAX(T3_R1!K23,T3_R2!K23)),MAX('MDA2'!K23,'T1'!M23,MAX(T3_R1!L23,T3_R2!L23))),SUM(MAX('MDA2'!J23,MAX(T3_R1!K23,T3_R2!K23)),MAX('MDA2'!K23,'T1'!M23,MAX(T3_R1!L23,T3_R2!L23))),J23),0) -> 165275 | O23: =IF(AND(COUNTRY_INFO!I23>1,COUNTRY_INFO!I23<4), IF(M23/J23*100<>0, IF(N23/J23*100>100,100,N23/J23*100), "-"),0) -> 100 | P23: =COUNTRY_INFO!M23 -> 104959.9 | S23: =MAX(SUM('T1'!L23:'T1'!N23),SUM('T2'!J23:'T2'!L23)) -> 0 | T23: =IF(AND(COUNTRY_INFO!J23>0,COUNTRY_INFO!J23<4),IF(P23>MAX('T1'!M23,'T2'!M23),MAX('T1'!M23,'T2'!M23),P23),0) -> 0 | U23: =IF(AND(COUNTRY_INFO!J23>0,COUNTRY_INFO!J23<4), IF(S23/P23*100<>0, IF(T23/P23*100>100,100,T23/P23*100), "-"),0) -> -
A24: =IF(COUNTRY_INFO!A24=0," ",COUNTRY_INFO!A24) -> Rwanda | B24: =IF(COUNTRY_INFO!B24=0," ",COUNTRY_INFO!B24) -> East | C24: =IF(COUNTRY_INFO!C24=0," ",COUNTRY_INFO!C24) -> Ngoma | D24: =COUNTRY_INFO!K24 -> Not required | G24: ='MDA2'!M24 -> 0 | H24: =IF(AND(COUNTRY_INFO!H24>0,COUNTRY_INFO!H24<4),IF(D24>'MDA2'!M24,'MDA2'!M24,D24),0) -> 0 | I24: =IF(AND(COUNTRY_INFO!H24>0,COUNTRY_INFO!H24<4), IF(G24/D24*100<>0, IF(G24/D24*100>100,100,G24/D24*100), "-"),0) -> 0 | J24: =COUNTRY_INFO!L24 -> 151210 | M24: =SUM(MAX('MDA2'!J24, 'T1'!L24, MAX(T3_R1!K24, T3_R2!K24)), MAX('MDA2'!K24, 'T1'!M24, MAX(T3_R1!L24, T3_R2!L24)), MAX('MDA2'!L24, 'T1'!N24, MAX(T3_R1!M24, T3_R2!M24))) -> 165260 | N24: =IF(AND(COUNTRY_INFO!I24>1,COUNTRY_INFO!I24<4),IF(J24>SUM(MAX('MDA2'!J24,MAX(T3_R1!K24,T3_R2!K24)),MAX('MDA2'!K24,'T1'!M24,MAX(T3_R1!L24,T3_R2!L24))),SUM(MAX('MDA2'!J24,MAX(T3_R1!K24,T3_R2!K24)),MAX('MDA2'!K24,'T1'!M24,MAX(T3_R1!L24,T3_R2!L24))),J24),0) -> 151210 | O24: =IF(AND(COUNTRY_INFO!I24>1,COUNTRY_INFO!I24<4), IF(M24/J24*100<>0, IF(N24/J24*100>100,100,N24/J24*100), "-"),0) -> 100 | P24: =COUNTRY_INFO!M24 -> 35483.91 | S24: =MAX(SUM('T1'!L24:'T1'!N24),SUM('T2'!J24:'T2'!L24)) -> 0 | T24: =IF(AND(COUNTRY_INFO!J24>0,COUNTRY_INFO!J24<4),IF(P24>MAX('T1'!M24,'T2'!M24),MAX('T1'!M24,'T2'!M24),P24),0) -> 0 | U24: =IF(AND(COUNTRY_INFO!J24>0,COUNTRY_INFO!J24<4), IF(S24/P24*100<>0, IF(T24/P24*100>100,100,T24/P24*100), "-"),0) -> -
A25: =IF(COUNTRY_INFO!A25=0," ",COUNTRY_INFO!A25) -> Rwanda | B25: =IF(COUNTRY_INFO!B25=0," ",COUNTRY_INFO!B25) -> West | C25: =IF(COUNTRY_INFO!C25=0," ",COUNTRY_INFO!C25) -> Ngororero | D25: =COUNTRY_INFO!K25 -> Not required | G25: ='MDA2'!M25 -> 0 | H25: =IF(AND(COUNTRY_INFO!H25>0,COUNTRY_INFO!H25<4),IF(D25>'MDA2'!M25,'MDA2'!M25,D25),0) -> 0 | I25: =IF(AND(COUNTRY_INFO!H25>0,COUNTRY_INFO!H25<4), IF(G25/D25*100<>0, IF(G25/D25*100>100,100,G25/D25*100), "-"),0) -> 0 | J25: =COUNTRY_INFO!L25 -> 149767 | M25: =SUM(MAX('MDA2'!J25, 'T1'!L25, MAX(T3_R1!K25, T3_R2!K25)), MAX('MDA2'!K25, 'T1'!M25, MAX(T3_R1!L25, T3_R2!L25)), MAX('MDA2'!L25, 'T1'!N25, MAX(T3_R1!M25, T3_R2!M25))) -> 156664 | N25: =IF(AND(COUNTRY_INFO!I25>1,COUNTRY_INFO!I25<4),IF(J25>SUM(MAX('MDA2'!J25,MAX(T3_R1!K25,T3_R2!K25)),MAX('MDA2'!K25,'T1'!M25,MAX(T3_R1!L25,T3_R2!L25))),SUM(MAX('MDA2'!J25,MAX(T3_R1!K25,T3_R2!K25)),MAX('MDA2'!K25,'T1'!M25,MAX(T3_R1!L25,T3_R2!L25))),J25),0) -> 149767 | O25: =IF(AND(COUNTRY_INFO!I25>1,COUNTRY_INFO!I25<4), IF(M25/J25*100<>0, IF(N25/J25*100>100,100,N25/J25*100), "-"),0) -> 100 | P25: =COUNTRY_INFO!M25 -> 0 | S25: =MAX(SUM('T1'!L25:'T1'!N25),SUM('T2'!J25:'T2'!L25)) -> 0 | T25: =IF(AND(COUNTRY_INFO!J25>0,COUNTRY_INFO!J25<4),IF(P25>MAX('T1'!M25,'T2'!M25),MAX('T1'!M25,'T2'!M25),P25),0) -> 0 | U25: =IF(AND(COUNTRY_INFO!J25>0,COUNTRY_INFO!J25<4), IF(S25/P25*100<>0, IF(T25/P25*100>100,100,T25/P25*100), "-"),0) -> 0
A26: =IF(COUNTRY_INFO!A26=0," ",COUNTRY_INFO!A26) -> Rwanda | B26: =IF(COUNTRY_INFO!B26=0," ",COUNTRY_INFO!B26) -> West | C26: =IF(COUNTRY_INFO!C26=0," ",COUNTRY_INFO!C26) -> Nyabihu | D26: =COUNTRY_INFO!K26 -> Not required | G26: ='MDA2'!M26 -> 0 | H26: =IF(AND(COUNTRY_INFO!H26>0,COUNTRY_INFO!H26<4),IF(D26>'MDA2'!M26,'MDA2'!M26,D26),0) -> 0 | I26: =IF(AND(COUNTRY_INFO!H26>0,COUNTRY_INFO!H26<4), IF(G26/D26*100<>0, IF(G26/D26*100>100,100,G26/D26*100), "-"),0) -> 0 | J26: =COUNTRY_INFO!L26 -> 132277 | M26: =SUM(MAX('MDA2'!J26, 'T1'!L26, MAX(T3_R1!K26, T3_R2!K26)), MAX('MDA2'!K26, 'T1'!M26, MAX(T3_R1!L26, T3_R2!L26)), MAX('MDA2'!L26, 'T1'!N26, MAX(T3_R1!M26, T3_R2!M26))) -> 137514 | N26: =IF(AND(COUNTRY_INFO!I26>1,COUNTRY_INFO!I26<4),IF(J26>SUM(MAX('MDA2'!J26,MAX(T3_R1!K26,T3_R2!K26)),MAX('MDA2'!K26,'T1'!M26,MAX(T3_R1!L26,T3_R2!L26))),SUM(MAX('MDA2'!J26,MAX(T3_R1!K26,T3_R2!K26)),MAX('MDA2'!K26,'T1'!M26,MAX(T3_R1!L26,T3_R2!L26))),J26),0) -> 132277 | O26: =IF(AND(COUNTRY_INFO!I26>1,COUNTRY_INFO!I26<4), IF(M26/J26*100<>0, IF(N26/J26*100>100,100,N26/J26*100), "-"),0) -> 100 | P26: =COUNTRY_INFO!M26 -> 31041.12 | S26: =MAX(SUM('T1'!L26:'T1'!N26),SUM('T2'!J26:'T2'!L26)) -> 0 | T26: =IF(AND(COUNTRY_INFO!J26>0,COUNTRY_INFO!J26<4),IF(P26>MAX('T1'!M26,'T2'!M26),MAX('T1'!M26,'T2'!M26),P26),0) -> 0 | U26: =IF(AND(COUNTRY_INFO!J26>0,COUNTRY_INFO!J26<4), IF(S26/P26*100<>0, IF(T26/P26*100>100,100,T26/P26*100), "-"),0) -> -
A27: =IF(COUNTRY_INFO!A27=0," ",COUNTRY_INFO!A27) -> Rwanda | B27: =IF(COUNTRY_INFO!B27=0," ",COUNTRY_INFO!B27) -> East | C27: =IF(COUNTRY_INFO!C27=0," ",COUNTRY_INFO!C27) -> Nyagatare | D27: =COUNTRY_INFO!K27 -> Not required | G27: ='MDA2'!M27 -> 0 | H27: =IF(AND(COUNTRY_INFO!H27>0,COUNTRY_INFO!H27<4),IF(D27>'MDA2'!M27,'MDA2'!M27,D27),0) -> 0 | I27: =IF(AND(COUNTRY_INFO!H27>0,COUNTRY_INFO!H27<4), IF(G27/D27*100<>0, IF(G27/D27*100>100,100,G27/D27*100), "-"),0) -> 0 | J27: =COUNTRY_INFO!L27 -> 209072 | M27: =SUM(MAX('MDA2'!J27, 'T1'!L27, MAX(T3_R1!K27, T3_R2!K27)), MAX('MDA2'!K27, 'T1'!M27, MAX(T3_R1!L27, T3_R2!L27)), MAX('MDA2'!L27, 'T1'!N27, MAX(T3_R1!M27, T3_R2!M27))) -> 227606 | N27: =IF(AND(COUNTRY_INFO!I27>1,COUNTRY_INFO!I27<4),IF(J27>SUM(MAX('MDA2'!J27,MAX(T3_R1!K27,T3_R2!K27)),MAX('MDA2'!K27,'T1'!M27,MAX(T3_R1!L27,T3_R2!L27))),SUM(MAX('MDA2'!J27,MAX(T3_R1!K27,T3_R2!K27)),MAX('MDA2'!K27,'T1'!M27,MAX(T3_R1!L27,T3_R2!L27))),J27),0) -> 209072 | O27: =IF(AND(COUNTRY_INFO!I27>1,COUNTRY_INFO!I27<4), IF(M27/J27*100<>0, IF(N27/J27*100>100,100,N27/J27*100), "-"),0) -> 100 | P27: =COUNTRY_INFO!M27 -> 132773.3 | S27: =MAX(SUM('T1'!L27:'T1'!N27),SUM('T2'!J27:'T2'!L27)) -> 0 | T27: =IF(AND(COUNTRY_INFO!J27>0,COUNTRY_INFO!J27<4),IF(P27>MAX('T1'!M27,'T2'!M27),MAX('T1'!M27,'T2'!M27),P27),0) -> 0 | U27: =IF(AND(COUNTRY_INFO!J27>0,COUNTRY_INFO!J27<4), IF(S27/P27*100<>0, IF(T27/P27*100>100,100,T27/P27*100), "-"),0) -> -
A28: =IF(COUNTRY_INFO!A28=0," ",COUNTRY_INFO!A28) -> Rwanda | B28: =IF(COUNTRY_INFO!B28=0," ",COUNTRY_INFO!B28) -> South | C28: =IF(COUNTRY_INFO!C28=0," ",COUNTRY_INFO!C28) -> Nyamagabe | D28: =COUNTRY_INFO!K28 -> Not required | G28: ='MDA2'!M28 -> 0 | H28: =IF(AND(COUNTRY_INFO!H28>0,COUNTRY_INFO!H28<4),IF(D28>'MDA2'!M28,'MDA2'!M28,D28),0) -> 0 | I28: =IF(AND(COUNTRY_INFO!H28>0,COUNTRY_INFO!H28<4), IF(G28/D28*100<>0, IF(G28/D28*100>100,100,G28/D28*100), "-"),0) -> 0 | J28: =COUNTRY_INFO!L28 -> 153259 | M28: =SUM(MAX('MDA2'!J28, 'T1'!L28, MAX(T3_R1!K28, T3_R2!K28)), MAX('MDA2'!K28, 'T1'!M28, MAX(T3_R1!L28, T3_R2!L28)), MAX('MDA2'!L28, 'T1'!N28, MAX(T3_R1!M28, T3_R2!M28))) -> 158161 | N28: =IF(AND(COUNTRY_INFO!I28>1,COUNTRY_INFO!I28<4),IF(J28>SUM(MAX('MDA2'!J28,MAX(T3_R1!K28,T3_R2!K28)),MAX('MDA2'!K28,'T1'!M28,MAX(T3_R1!L28,T3_R2!L28))),SUM(MAX('MDA2'!J28,MAX(T3_R1!K28,T3_R2!K28)),MAX('MDA2'!K28,'T1'!M28,MAX(T3_R1!L28,T3_R2!L28))),J28),0) -> 153259 | O28: =IF(AND(COUNTRY_INFO!I28>1,COUNTRY_INFO!I28<4), IF(M28/J28*100<>0, IF(N28/J28*100>100,100,N28/J28*100), "-"),0) -> 100 | P28: =COUNTRY_INFO!M28 -> 0 | S28: =MAX(SUM('T1'!L28:'T1'!N28),SUM('T2'!J28:'T2'!L28)) -> 0 | T28: =IF(AND(COUNTRY_INFO!J28>0,COUNTRY_INFO!J28<4),IF(P28>MAX('T1'!M28,'T2'!M28),MAX('T1'!M28,'T2'!M28),P28),0) -> 0 | U28: =IF(AND(COUNTRY_INFO!J28>0,COUNTRY_INFO!J28<4), IF(S28/P28*100<>0, IF(T28/P28*100>100,100,T28/P28*100), "-"),0) -> 0
A29: =IF(COUNTRY_INFO!A29=0," ",COUNTRY_INFO!A29) -> Rwanda | B29: =IF(COUNTRY_INFO!B29=0," ",COUNTRY_INFO!B29) -> West | C29: =IF(COUNTRY_INFO!C29=0," ",COUNTRY_INFO!C29) -> Nyamasheke | D29: =COUNTRY_INFO!K29 -> Not required | G29: ='MDA2'!M29 -> 0 | H29: =IF(AND(COUNTRY_INFO!H29>0,COUNTRY_INFO!H29<4),IF(D29>'MDA2'!M29,'MDA2'!M29,D29),0) -> 0 | I29: =IF(AND(COUNTRY_INFO!H29>0,COUNTRY_INFO!H29<4), IF(G29/D29*100<>0, IF(G29/D29*100>100,100,G29/D29*100), "-"),0) -> 0 | J29: =COUNTRY_INFO!L29 -> 171350 | M29: =SUM(MAX('MDA2'!J29, 'T1'!L29, MAX(T3_R1!K29, T3_R2!K29)), MAX('MDA2'!K29, 'T1'!M29, MAX(T3_R1!L29, T3_R2!L29)), MAX('MDA2'!L29, 'T1'!N29, MAX(T3_R1!M29, T3_R2!M29))) -> 180422 | N29: =IF(AND(COUNTRY_INFO!I29>1,COUNTRY_INFO!I29<4),IF(J29>SUM(MAX('MDA2'!J29,MAX(T3_R1!K29,T3_R2!K29)),MAX('MDA2'!K29,'T1'!M29,MAX(T3_R1!L29,T3_R2!L29))),SUM(MAX('MDA2'!J29,MAX(T3_R1!K29,T3_R2!K29)),MAX('MDA2'!K29,'T1'!M29,MAX(T3_R1!L29,T3_R2!L29))),J29),0) -> 171350 | O29: =IF(AND(COUNTRY_INFO!I29>1,COUNTRY_INFO!I29<4), IF(M29/J29*100<>0, IF(N29/J29*100>100,100,N29/J29*100), "-"),0) -> 100 | P29: =COUNTRY_INFO!M29 -> 108818.1 | S29: =MAX(SUM('T1'!L29:'T1'!N29),SUM('T2'!J29:'T2'!L29)) -> 0 | T29: =IF(AND(COUNTRY_INFO!J29>0,COUNTRY_INFO!J29<4),IF(P29>MAX('T1'!M29,'T2'!M29),MAX('T1'!M29,'T2'!M29),P29),0) -> 0 | U29: =IF(AND(COUNTRY_INFO!J29>0,COUNTRY_INFO!J29<4), IF(S29/P29*100<>0, IF(T29/P29*100>100,100,T29/P29*100), "-"),0) -> -
A30: =IF(COUNTRY_INFO!A30=0," ",COUNTRY_INFO!A30) -> Rwanda | B30: =IF(COUNTRY_INFO!B30=0," ",COUNTRY_INFO!B30) -> South | C30: =IF(COUNTRY_INFO!C30=0," ",COUNTRY_INFO!C30) -> Nyanza | D30: =COUNTRY_INFO!K30 -> Not required | G30: ='MDA2'!M30 -> 0 | H30: =IF(AND(COUNTRY_INFO!H30>0,COUNTRY_INFO!H30<4),IF(D30>'MDA2'!M30,'MDA2'!M30,D30),0) -> 0 | I30: =IF(AND(COUNTRY_INFO!H30>0,COUNTRY_INFO!H30<4), IF(G30/D30*100<>0, IF(G30/D30*100>100,100,G30/D30*100), "-"),0) -> 0 | J30: =COUNTRY_INFO!L30 -> 145282 | M30: =SUM(MAX('MDA2'!J30, 'T1'!L30, MAX(T3_R1!K30, T3_R2!K30)), MAX('MDA2'!K30, 'T1'!M30, MAX(T3_R1!L30, T3_R2!L30)), MAX('MDA2'!L30, 'T1'!N30, MAX(T3_R1!M30, T3_R2!M30))) -> 144017 | N30: =IF(AND(COUNTRY_INFO!I30>1,COUNTRY_INFO!I30<4),IF(J30>SUM(MAX('MDA2'!J30,MAX(T3_R1!K30,T3_R2!K30)),MAX('MDA2'!K30,'T1'!M30,MAX(T3_R1!L30,T3_R2!L30))),SUM(MAX('MDA2'!J30,MAX(T3_R1!K30,T3_R2!K30)),MAX('MDA2'!K30,'T1'!M30,MAX(T3_R1!L30,T3_R2!L30))),J30),0) -> 144017 | O30: =IF(AND(COUNTRY_INFO!I30>1,COUNTRY_INFO!I30<4), IF(M30/J30*100<>0, IF(N30/J30*100>100,100,N30/J30*100), "-"),0) -> 99.12927961 | P30: =COUNTRY_INFO!M30 -> 0 | S30: =MAX(SUM('T1'!L30:'T1'!N30),SUM('T2'!J30:'T2'!L30)) -> 0 | T30: =IF(AND(COUNTRY_INFO!J30>0,COUNTRY_INFO!J30<4),IF(P30>MAX('T1'!M30,'T2'!M30),MAX('T1'!M30,'T2'!M30),P30),0) -> 0 | U30: =IF(AND(COUNTRY_INFO!J30>0,COUNTRY_INFO!J30<4), IF(S30/P30*100<>0, IF(T30/P30*100>100,100,T30/P30*100), "-"),0) -> 0
A31: =IF(COUNTRY_INFO!A31=0," ",COUNTRY_INFO!A31) -> Rwanda | B31: =IF(COUNTRY_INFO!B31=0," ",COUNTRY_INFO!B31) -> Kigali | C31: =IF(COUNTRY_INFO!C31=0," ",COUNTRY_INFO!C31) -> Nyarugenge | D31: =COUNTRY_INFO!K31 -> Not required | G31: ='MDA2'!M31 -> 0 | H31: =IF(AND(COUNTRY_INFO!H31>0,COUNTRY_INFO!H31<4),IF(D31>'MDA2'!M31,'MDA2'!M31,D31),0) -> 0 | I31: =IF(AND(COUNTRY_INFO!H31>0,COUNTRY_INFO!H31<4), IF(G31/D31*100<>0, IF(G31/D31*100>100,100,G31/D31*100), "-"),0) -> 0 | J31: =COUNTRY_INFO!L31 -> 127709 | M31: =SUM(MAX('MDA2'!J31, 'T1'!L31, MAX(T3_R1!K31, T3_R2!K31)), MAX('MDA2'!K31, 'T1'!M31, MAX(T3_R1!L31, T3_R2!L31)), MAX('MDA2'!L31, 'T1'!N31, MAX(T3_R1!M31, T3_R2!M31))) -> 121677 | N31: =IF(AND(COUNTRY_INFO!I31>1,COUNTRY_INFO!I31<4),IF(J31>SUM(MAX('MDA2'!J31,MAX(T3_R1!K31,T3_R2!K31)),MAX('MDA2'!K31,'T1'!M31,MAX(T3_R1!L31,T3_R2!L31))),SUM(MAX('MDA2'!J31,MAX(T3_R1!K31,T3_R2!K31)),MAX('MDA2'!K31,'T1'!M31,MAX(T3_R1!L31,T3_R2!L31))),J31),0) -> 121677 | O31: =IF(AND(COUNTRY_INFO!I31>1,COUNTRY_INFO!I31<4), IF(M31/J31*100<>0, IF(N31/J31*100>100,100,N31/J31*100), "-"),0) -> 95.27676201 | P31: =COUNTRY_INFO!M31 -> 0 | S31: =MAX(SUM('T1'!L31:'T1'!N31),SUM('T2'!J31:'T2'!L31)) -> 0 | T31: =IF(AND(COUNTRY_INFO!J31>0,COUNTRY_INFO!J31<4),IF(P31>MAX('T1'!M31,'T2'!M31),MAX('T1'!M31,'T2'!M31),P31),0) -> 0 | U31: =IF(AND(COUNTRY_INFO!J31>0,COUNTRY_INFO!J31<4), IF(S31/P31*100<>0, IF(T31/P31*100>100,100,T31/P31*100), "-"),0) -> 0
A32: =IF(COUNTRY_INFO!A32=0," ",COUNTRY_INFO!A32) -> Rwanda | B32: =IF(COUNTRY_INFO!B32=0," ",COUNTRY_INFO!B32) -> South | C32: =IF(COUNTRY_INFO!C32=0," ",COUNTRY_INFO!C32) -> Nyaruguru | D32: =COUNTRY_INFO!K32 -> Not required | G32: ='MDA2'!M32 -> 0 | H32: =IF(AND(COUNTRY_INFO!H32>0,COUNTRY_INFO!H32<4),IF(D32>'MDA2'!M32,'MDA2'!M32,D32),0) -> 0 | I32: =IF(AND(COUNTRY_INFO!H32>0,COUNTRY_INFO!H32<4), IF(G32/D32*100<>0, IF(G32/D32*100>100,100,G32/D32*100), "-"),0) -> 0 | J32: =COUNTRY_INFO!L32 -> 132095 | M32: =SUM(MAX('MDA2'!J32, 'T1'!L32, MAX(T3_R1!K32, T3_R2!K32)), MAX('MDA2'!K32, 'T1'!M32, MAX(T3_R1!L32, T3_R2!L32)), MAX('MDA2'!L32, 'T1'!N32, MAX(T3_R1!M32, T3_R2!M32))) -> 131775 | N32: =IF(AND(COUNTRY_INFO!I32>1,COUNTRY_INFO!I32<4),IF(J32>SUM(MAX('MDA2'!J32,MAX(T3_R1!K32,T3_R2!K32)),MAX('MDA2'!K32,'T1'!M32,MAX(T3_R1!L32,T3_R2!L32))),SUM(MAX('MDA2'!J32,MAX(T3_R1!K32,T3_R2!K32)),MAX('MDA2'!K32,'T1'!M32,MAX(T3_R1!L32,T3_R2!L32))),J32),0) -> 131775 | O32: =IF(AND(COUNTRY_INFO!I32>1,COUNTRY_INFO!I32<4), IF(M32/J32*100<>0, IF(N32/J32*100>100,100,N32/J32*100), "-"),0) -> 99.7577501 | P32: =COUNTRY_INFO!M32 -> 0 | S32: =MAX(SUM('T1'!L32:'T1'!N32),SUM('T2'!J32:'T2'!L32)) -> 0 | T32: =IF(AND(COUNTRY_INFO!J32>0,COUNTRY_INFO!J32<4),IF(P32>MAX('T1'!M32,'T2'!M32),MAX('T1'!M32,'T2'!M32),P32),0) -> 0 | U32: =IF(AND(COUNTRY_INFO!J32>0,COUNTRY_INFO!J32<4), IF(S32/P32*100<>0, IF(T32/P32*100>100,100,T32/P32*100), "-"),0) -> 0
A33: =IF(COUNTRY_INFO!A33=0," ",COUNTRY_INFO!A33) -> Rwanda | B33: =IF(COUNTRY_INFO!B33=0," ",COUNTRY_INFO!B33) -> West | C33: =IF(COUNTRY_INFO!C33=0," ",COUNTRY_INFO!C33) -> Rubavu | D33: =COUNTRY_INFO!K33 -> Not required | G33: ='MDA2'!M33 -> 0 | H33: =IF(AND(COUNTRY_INFO!H33>0,COUNTRY_INFO!H33<4),IF(D33>'MDA2'!M33,'MDA2'!M33,D33),0) -> 0 | I33: =IF(AND(COUNTRY_INFO!H33>0,COUNTRY_INFO!H33<4), IF(G33/D33*100<>0, IF(G33/D33*100>100,100,G33/D33*100), "-"),0) -> 0 | J33: =COUNTRY_INFO!L33 -> 181160 | M33: =SUM(MAX('MDA2'!J33, 'T1'!L33, MAX(T3_R1!K33, T3_R2!K33)), MAX('MDA2'!K33, 'T1'!M33, MAX(T3_R1!L33, T3_R2!L33)), MAX('MDA2'!L33, 'T1'!N33, MAX(T3_R1!M33, T3_R2!M33))) -> 181021 | N33: =IF(AND(COUNTRY_INFO!I33>1,COUNTRY_INFO!I33<4),IF(J33>SUM(MAX('MDA2'!J33,MAX(T3_R1!K33,T3_R2!K33)),MAX('MDA2'!K33,'T1'!M33,MAX(T3_R1!L33,T3_R2!L33))),SUM(MAX('MDA2'!J33,MAX(T3_R1!K33,T3_R2!K33)),MAX('MDA2'!K33,'T1'!M33,MAX(T3_R1!L33,T3_R2!L33))),J33),0) -> 181021 | O33: =IF(AND(COUNTRY_INFO!I33>1,COUNTRY_INFO!I33<4), IF(M33/J33*100<>0, IF(N33/J33*100>100,100,N33/J33*100), "-"),0) -> 99.92327225 | P33: =COUNTRY_INFO!M33 -> 42512.25 | S33: =MAX(SUM('T1'!L33:'T1'!N33),SUM('T2'!J33:'T2'!L33)) -> 0 | T33: =IF(AND(COUNTRY_INFO!J33>0,COUNTRY_INFO!J33<4),IF(P33>MAX('T1'!M33,'T2'!M33),MAX('T1'!M33,'T2'!M33),P33),0) -> 0 | U33: =IF(AND(COUNTRY_INFO!J33>0,COUNTRY_INFO!J33<4), IF(S33/P33*100<>0, IF(T33/P33*100>100,100,T33/P33*100), "-"),0) -> -
A34: =IF(COUNTRY_INFO!A34=0," ",COUNTRY_INFO!A34) -> Rwanda | B34: =IF(COUNTRY_INFO!B34=0," ",COUNTRY_INFO!B34) -> South | C34: =IF(COUNTRY_INFO!C34=0," ",COUNTRY_INFO!C34) -> Ruhango | D34: =COUNTRY_INFO!K34 -> Not required | G34: ='MDA2'!M34 -> 0 | H34: =IF(AND(COUNTRY_INFO!H34>0,COUNTRY_INFO!H34<4),IF(D34>'MDA2'!M34,'MDA2'!M34,D34),0) -> 0 | I34: =IF(AND(COUNTRY_INFO!H34>0,COUNTRY_INFO!H34<4), IF(G34/D34*100<>0, IF(G34/D34*100>100,100,G34/D34*100), "-"),0) -> 0 | J34: =COUNTRY_INFO!L34 -> 143561 | M34: =SUM(MAX('MDA2'!J34, 'T1'!L34, MAX(T3_R1!K34, T3_R2!K34)), MAX('MDA2'!K34, 'T1'!M34, MAX(T3_R1!L34, T3_R2!L34)), MAX('MDA2'!L34, 'T1'!N34, MAX(T3_R1!M34, T3_R2!M34))) -> 148452 | N34: =IF(AND(COUNTRY_INFO!I34>1,COUNTRY_INFO!I34<4),IF(J34>SUM(MAX('MDA2'!J34,MAX(T3_R1!K34,T3_R2!K34)),MAX('MDA2'!K34,'T1'!M34,MAX(T3_R1!L34,T3_R2!L34))),SUM(MAX('MDA2'!J34,MAX(T3_R1!K34,T3_R2!K34)),MAX('MDA2'!K34,'T1'!M34,MAX(T3_R1!L34,T3_R2!L34))),J34),0) -> 143561 | O34: =IF(AND(COUNTRY_INFO!I34>1,COUNTRY_INFO!I34<4), IF(M34/J34*100<>0, IF(N34/J34*100>100,100,N34/J34*100), "-"),0) -> 100 | P34: =COUNTRY_INFO!M34 -> 0 | S34: =MAX(SUM('T1'!L34:'T1'!N34),SUM('T2'!J34:'T2'!L34)) -> 0 | T34: =IF(AND(COUNTRY_INFO!J34>0,COUNTRY_INFO!J34<4),IF(P34>MAX('T1'!M34,'T2'!M34),MAX('T1'!M34,'T2'!M34),P34),0) -> 0 | U34: =IF(AND(COUNTRY_INFO!J34>0,COUNTRY_INFO!J34<4), IF(S34/P34*100<>0, IF(T34/P34*100>100,100,T34/P34*100), "-"),0) -> 0
A35: =IF(COUNTRY_INFO!A35=0," ",COUNTRY_INFO!A35) -> Rwanda | B35: =IF(COUNTRY_INFO!B35=0," ",COUNTRY_INFO!B35) -> North | C35: =IF(COUNTRY_INFO!C35=0," ",COUNTRY_INFO!C35) -> Rulindo | D35: =COUNTRY_INFO!K35 -> Not required | G35: ='MDA2'!M35 -> 0 | H35: =IF(AND(COUNTRY_INFO!H35>0,COUNTRY_INFO!H35<4),IF(D35>'MDA2'!M35,'MDA2'!M35,D35),0) -> 0 | I35: =IF(AND(COUNTRY_INFO!H35>0,COUNTRY_INFO!H35<4), IF(G35/D35*100<>0, IF(G35/D35*100>100,100,G35/D35*100), "-"),0) -> 0 | J35: =COUNTRY_INFO!L35 -> 129109 | M35: =SUM(MAX('MDA2'!J35, 'T1'!L35, MAX(T3_R1!K35, T3_R2!K35)), MAX('MDA2'!K35, 'T1'!M35, MAX(T3_R1!L35, T3_R2!L35)), MAX('MDA2'!L35, 'T1'!N35, MAX(T3_R1!M35, T3_R2!M35))) -> 132348 | N35: =IF(AND(COUNTRY_INFO!I35>1,COUNTRY_INFO!I35<4),IF(J35>SUM(MAX('MDA2'!J35,MAX(T3_R1!K35,T3_R2!K35)),MAX('MDA2'!K35,'T1'!M35,MAX(T3_R1!L35,T3_R2!L35))),SUM(MAX('MDA2'!J35,MAX(T3_R1!K35,T3_R2!K35)),MAX('MDA2'!K35,'T1'!M35,MAX(T3_R1!L35,T3_R2!L35))),J35),0) -> 129109 | O35: =IF(AND(COUNTRY_INFO!I35>1,COUNTRY_INFO!I35<4), IF(M35/J35*100<>0, IF(N35/J35*100>100,100,N35/J35*100), "-"),0) -> 100 | P35: =COUNTRY_INFO!M35 -> 0 | S35: =MAX(SUM('T1'!L35:'T1'!N35),SUM('T2'!J35:'T2'!L35)) -> 0 | T35: =IF(AND(COUNTRY_INFO!J35>0,COUNTRY_INFO!J35<4),IF(P35>MAX('T1'!M35,'T2'!M35),MAX('T1'!M35,'T2'!M35),P35),0) -> 0 | U35: =IF(AND(COUNTRY_INFO!J35>0,COUNTRY_INFO!J35<4), IF(S35/P35*100<>0, IF(T35/P35*100>100,100,T35/P35*100), "-"),0) -> 0
A36: =IF(COUNTRY_INFO!A36=0," ",COUNTRY_INFO!A36) -> Rwanda | B36: =IF(COUNTRY_INFO!B36=0," ",COUNTRY_INFO!B36) -> West | C36: =IF(COUNTRY_INFO!C36=0," ",COUNTRY_INFO!C36) -> Rusizi | D36: =COUNTRY_INFO!K36 -> Not required | G36: ='MDA2'!M36 -> 0 | H36: =IF(AND(COUNTRY_INFO!H36>0,COUNTRY_INFO!H36<4),IF(D36>'MDA2'!M36,'MDA2'!M36,D36),0) -> 0 | I36: =IF(AND(COUNTRY_INFO!H36>0,COUNTRY_INFO!H36<4), IF(G36/D36*100<>0, IF(G36/D36*100>100,100,G36/D36*100), "-"),0) -> 0 | J36: =COUNTRY_INFO!L36 -> 179902 | M36: =SUM(MAX('MDA2'!J36, 'T1'!L36, MAX(T3_R1!K36, T3_R2!K36)), MAX('MDA2'!K36, 'T1'!M36, MAX(T3_R1!L36, T3_R2!L36)), MAX('MDA2'!L36, 'T1'!N36, MAX(T3_R1!M36, T3_R2!M36))) -> 187463 | N36: =IF(AND(COUNTRY_INFO!I36>1,COUNTRY_INFO!I36<4),IF(J36>SUM(MAX('MDA2'!J36,MAX(T3_R1!K36,T3_R2!K36)),MAX('MDA2'!K36,'T1'!M36,MAX(T3_R1!L36,T3_R2!L36))),SUM(MAX('MDA2'!J36,MAX(T3_R1!K36,T3_R2!K36)),MAX('MDA2'!K36,'T1'!M36,MAX(T3_R1!L36,T3_R2!L36))),J36),0) -> 179902 | O36: =IF(AND(COUNTRY_INFO!I36>1,COUNTRY_INFO!I36<4), IF(M36/J36*100<>0, IF(N36/J36*100>100,100,N36/J36*100), "-"),0) -> 100 | P36: =COUNTRY_INFO!M36 -> 379348 | S36: =MAX(SUM('T1'!L36:'T1'!N36),SUM('T2'!J36:'T2'!L36)) -> 0 | T36: =IF(AND(COUNTRY_INFO!J36>0,COUNTRY_INFO!J36<4),IF(P36>MAX('T1'!M36,'T2'!M36),MAX('T1'!M36,'T2'!M36),P36),0) -> 0 | U36: =IF(AND(COUNTRY_INFO!J36>0,COUNTRY_INFO!J36<4), IF(S36/P36*100<>0, IF(T36/P36*100>100,100,T36/P36*100), "-"),0) -> -
A37: =IF(COUNTRY_INFO!A37=0," ",COUNTRY_INFO!A37) -> Rwanda | B37: =IF(COUNTRY_INFO!B37=0," ",COUNTRY_INFO!B37) -> West | C37: =IF(COUNTRY_INFO!C37=0," ",COUNTRY_INFO!C37) -> Rutsiro | D37: =COUNTRY_INFO!K37 -> Not required | G37: ='MDA2'!M37 -> 0 | H37: =IF(AND(COUNTRY_INFO!H37>0,COUNTRY_INFO!H37<4),IF(D37>'MDA2'!M37,'MDA2'!M37,D37),0) -> 0 | I37: =IF(AND(COUNTRY_INFO!H37>0,COUNTRY_INFO!H37<4), IF(G37/D37*100<>0, IF(G37/D37*100>100,100,G37/D37*100), "-"),0) -> 0 | J37: =COUNTRY_INFO!L37 -> 145702 | M37: =SUM(MAX('MDA2'!J37, 'T1'!L37, MAX(T3_R1!K37, T3_R2!K37)), MAX('MDA2'!K37, 'T1'!M37, MAX(T3_R1!L37, T3_R2!L37)), MAX('MDA2'!L37, 'T1'!N37, MAX(T3_R1!M37, T3_R2!M37))) -> 143516 | N37: =IF(AND(COUNTRY_INFO!I37>1,COUNTRY_INFO!I37<4),IF(J37>SUM(MAX('MDA2'!J37,MAX(T3_R1!K37,T3_R2!K37)),MAX('MDA2'!K37,'T1'!M37,MAX(T3_R1!L37,T3_R2!L37))),SUM(MAX('MDA2'!J37,MAX(T3_R1!K37,T3_R2!K37)),MAX('MDA2'!K37,'T1'!M37,MAX(T3_R1!L37,T3_R2!L37))),J37),0) -> 143516 | O37: =IF(AND(COUNTRY_INFO!I37>1,COUNTRY_INFO!I37<4), IF(M37/J37*100<>0, IF(N37/J37*100>100,100,N37/J37*100), "-"),0) -> 98.49967742 | P37: =COUNTRY_INFO!M37 -> 92529.6 | S37: =MAX(SUM('T1'!L37:'T1'!N37),SUM('T2'!J37:'T2'!L37)) -> 0 | T37: =IF(AND(COUNTRY_INFO!J37>0,COUNTRY_INFO!J37<4),IF(P37>MAX('T1'!M37,'T2'!M37),MAX('T1'!M37,'T2'!M37),P37),0) -> 0 | U37: =IF(AND(COUNTRY_INFO!J37>0,COUNTRY_INFO!J37<4), IF(S37/P37*100<>0, IF(T37/P37*100>100,100,T37/P37*100), "-"),0) -> -
A38: =IF(COUNTRY_INFO!A38=0," ",COUNTRY_INFO!A38) -> Rwanda | B38: =IF(COUNTRY_INFO!B38=0," ",COUNTRY_INFO!B38) -> East | C38: =IF(COUNTRY_INFO!C38=0," ",COUNTRY_INFO!C38) -> Rwamagana | D38: =COUNTRY_INFO!K38 -> Not required | G38: ='MDA2'!M38 -> 0 | H38: =IF(AND(COUNTRY_INFO!H38>0,COUNTRY_INFO!H38<4),IF(D38>'MDA2'!M38,'MDA2'!M38,D38),0) -> 0 | I38: =IF(AND(COUNTRY_INFO!H38>0,COUNTRY_INFO!H38<4), IF(G38/D38*100<>0, IF(G38/D38*100>100,100,G38/D38*100), "-"),0) -> 0 | J38: =COUNTRY_INFO!L38 -> 140678 | M38: =SUM(MAX('MDA2'!J38, 'T1'!L38, MAX(T3_R1!K38, T3_R2!K38)), MAX('MDA2'!K38, 'T1'!M38, MAX(T3_R1!L38, T3_R2!L38)), MAX('MDA2'!L38, 'T1'!N38, MAX(T3_R1!M38, T3_R2!M38))) -> 144052 | N38: =IF(AND(COUNTRY_INFO!I38>1,COUNTRY_INFO!I38<4),IF(J38>SUM(MAX('MDA2'!J38,MAX(T3_R1!K38,T3_R2!K38)),MAX('MDA2'!K38,'T1'!M38,MAX(T3_R1!L38,T3_R2!L38))),SUM(MAX('MDA2'!J38,MAX(T3_R1!K38,T3_R2!K38)),MAX('MDA2'!K38,'T1'!M38,MAX(T3_R1!L38,T3_R2!L38))),J38),0) -> 140678 | O38: =IF(AND(COUNTRY_INFO!I38>1,COUNTRY_INFO!I38<4), IF(M38/J38*100<>0, IF(N38/J38*100>100,100,N38/J38*100), "-"),0) -> 100 | P38: =COUNTRY_INFO!M38 -> 33012.54 | S38: =MAX(SUM('T1'!L38:'T1'!N38),SUM('T2'!J38:'T2'!L38)) -> 0 | T38: =IF(AND(COUNTRY_INFO!J38>0,COUNTRY_INFO!J38<4),IF(P38>MAX('T1'!M38,'T2'!M38),MAX('T1'!M38,'T2'!M38),P38),0) -> 0 | U38: =IF(AND(COUNTRY_INFO!J38>0,COUNTRY_INFO!J38<4), IF(S38/P38*100<>0, IF(T38/P38*100>100,100,T38/P38*100), "-"),0) -> -

Sheet SUMMARY
B1: The current version should be used in countries non-endemic for onchocerciasis
B2: PC Joint Reporting Form v.2
B4: Country | D4: =IF(INTRO!$E$34<>0,INTRO!$E$34," ") -> Rwanda | G4: Year | H4: =IF(INTRO!$E$36<>0,INTRO!$E$36," ") -> 2016
B6: National authorities are requested to complete the Joint Reporting Form (JRF) for submission to the World Health Organization any time before 15 August of the current year for reporting data on PC interventions implemented during the previous year.
B14: Number of people received treatment (at least once) for the diseases
E16: PreSAC | F16: SAC | G16: Adults | H16: Total
B17: Lymphatic filariasis | H17: =SUM(E17:G17) -> 0
B18: Soil-transmitted helminthiases | E18: =T3_R1!K4 -> 1412841 | F18: =T3_R1!L4 -> 3323164 | G18: 0 | H18: =SUM(E18:G18) -> 4736005
B19: Schistosomiasis | E19: Not targeted | G19: 0 | H19: =SUM(E19:G19) -> 0
H20: =SUM(E20:G20) -> 0
B22: Coverage of PC interventions for the diseases (%)
G24: Geographical | H24: National
B25: Lymphatic filariasis | G25: 0 | H25: 0
B26: Soil-transmitted helminthiases | G26: 100 | H26: =T3_R1!R4 -> 100.9106882
B27: Schistosomiasis
B30: Number of people treated and programme coverage (%) by PC interventions
D32: PreSAC | E32: SAC | F32: Adults | G32: Total | H32: Coverage (%)
B34: MDA 2 (DEC+ALB) | D34: ='MDA2'!$J$4 -> 0 | E34: ='MDA2'!$K$4 -> 0 | F34: ='MDA2'!$L$4 -> 0 | G34: ='MDA2'!$M$4 -> 0 | H34: ='MDA2'!$Q$4 -> 
B36: T 1 (PZQ+ALB/MBD) | D36: =IF('T1'!$L$4<>0,'T1'!$L$4,"Not targeted") -> Not targeted | E36: ='T1'!$M$4 -> 0 | F36: =IF('T1'!$N$4<>0,'T1'!$N$4,"Not targeted") -> Not targeted | G36: ='T1'!$O$4 -> 0 | H36: ='T1'!$S$4 -> 
B37: T 2 (PZQ) | D37: =IF('T2'!$J$4<>0,'T2'!$J$4,"Not targeted") -> Not targeted | E37: ='T2'!$K$4 -> 0 | F37: ='T2'!$L$4 -> 0 | G37: ='T2'!$M$4 -> 0 | H37: ='T2'!$Q$4 -> 
B38: T 3 (ALB/MBD) - round 1 | D38: =T3_R1!$K$4 -> 1412841 | E38: =T3_R1!$L$4 -> 3323164 | F38: =IF(T3_R1!$M$4<>0,T3_R1!$M$4,"Not targeted") -> Not targeted | G38: =T3_R1!$N$4 -> 4736005 | H38: =T3_R1!$R$4 -> 100.9106882
B39: T 3 (ALB/MBD) - round 2 | D39: =T3_R2!$K$4 -> 0 | E39: =T3_R2!$L$4 -> 0 | F39: =IF(T3_R2!$M$4<>0,T3_R2!$M$4,"Not targeted") -> Not targeted | G39: =T3_R2!$N$4 -> 0 | H39: =T3_R2!$R$4 -> 
B41: Inventory of PC medicines in the country
D43: DEC | E43: ALB (LF) | F43: ALB (STH) | G43: MBD | H43: PZQ
B44: Available
B45: Distributed
B46: Wasted
B47: Received
B48: Remaining | F48: =F47-F45-F46 -> 0 | G48: =G47-G45-G46 -> 0 | H48: 0
B50: Please indicate the medicine has been used to treat PreSAC for STH and delivery channels
B51: PC medicine | C51: Mebendazole | D51: Delivery channels | F51: WHO, UNICEF | G51: Source | H51: Johnson&Johnson
B53: Additional information
B55: In 2016, there was only Round 1 treatment for STH and no treatment for schistosomiasis due to lack of funds for distribution. The signature of partnership with END Fund was still in process.
B63: Name and signature of NTD coordinator or Ministry of Health representative: | D63: Dr Aimable MBITUYUMUREMYI
D64: 2017-04-24
B65: Date:
B67: Please send the national report (signed and in electronic format) to the concerned WR with copy to:
B69: WHO headquarters | D69: PC_JointForms@who.int
B70: WHO Regional Office | D70: Regional Advisor for NTD
